BodyName,ServiceAreaCategorisation,ServiceDivisionCategorisation,ExpensesType,Date,TransactionNumber,Amount,CapitalorRevenue,SupplierName,MerchantCategory
Peterborough City Council,Corporate Property,Commercial Propety,Rents,01/12/2018,30204761,39000.00,Revenue,Savills (UK) Ltd,Rent
Peterborough City Council,Adults,Independent Sector Placements,Services,03/12/2018,30202609,5686.80,Revenue,Lifeways Community Care,Residential Care
Peterborough City Council,Westcombe Engineering,Westcombe Engineering,"Tools, Equipment, Furniture & Materials",03/12/2018,30202749,522.00,Revenue,SMW Autoblok Telbrook Ltd,Materials
Peterborough City Council,Director of Governance,Gov HOS,Agency Staff,03/12/2018,30202751,8750.00,Revenue,LGSS Law Ltd,External Temporary Staff
Peterborough City Council,Westcombe Engineering,Westcombe Engineering,"Tools, Equipment, Furniture & Materials",03/12/2018,30202777,10860.40,Revenue,BWC Aluminium Ltd,Materials
Peterborough City Council,Children's & Safeguarding,Children's Social Care,Agency Staff,03/12/2018,30202829,1406.00,Revenue,NonStop Recruitment Ltd,External Temporary Staff
Peterborough City Council,City Centre Management,"Markets, Tourism & Events",Services,03/12/2018,30202833,960.00,Revenue,R J Mason Blacksmith & Farrier,Hired Services
Peterborough City Council,Adults,Strategic Commissioning - Management,Agency Staff,03/12/2018,30202834,2647.05,Revenue,Badenoch & Clark Ltd,External Temporary Staff
Peterborough City Council,Westcombe Engineering,Westcombe Engineering,"Tools, Equipment, Furniture & Materials",03/12/2018,30202835,800.00,Revenue,AALCO,Materials
Peterborough City Council,Adults,Independent Sector Placements,Services,03/12/2018,30202969,568.00,Revenue,Mencap,Home Care
Peterborough City Council,Adults,Independent Sector Placements,Services,03/12/2018,30202970,1107.60,Revenue,Mencap,Home Care
Peterborough City Council,Adults,Independent Sector Placements,Services,03/12/2018,30202971,7439.20,Revenue,Mencap,Home Care
Peterborough City Council,Adults,Independent Sector Placements,Services,03/12/2018,30202972,1476.80,Revenue,Mencap,Home Care
Peterborough City Council,Adults,Independent Sector Placements,Services,03/12/2018,30202973,2215.20,Revenue,Mencap,Home Care
Peterborough City Council,Adults,Independent Sector Placements,Services,03/12/2018,30202976,852.00,Revenue,Mencap,Home Care
Peterborough City Council,Adults,Independent Sector Placements,Services,03/12/2018,30202977,681.60,Revenue,Mencap,Home Care
Peterborough City Council,Adults,Independent Sector Placements,Services,03/12/2018,30202978,8106.00,Revenue,Mencap,Home Care
Peterborough City Council,Adults,Independent Sector Placements,Services,03/12/2018,30202979,562.40,Revenue,Mencap,Home Care
Peterborough City Council,Adults,Independent Sector Placements,Services,03/12/2018,30202980,568.00,Revenue,Mencap,Home Care
Peterborough City Council,Adults,Independent Sector Placements,Services,03/12/2018,30202982,852.00,Revenue,Mencap,Home Care
Peterborough City Council,Adults,Independent Sector Placements,Services,03/12/2018,30202983,3687.04,Revenue,Mencap,Home Care
Peterborough City Council,Adults,Independent Sector Placements,Services,03/12/2018,30202986,1500.64,Revenue,Mencap,Home Care
Peterborough City Council,Adults,Independent Sector Placements,Services,03/12/2018,30202989,1940.68,Revenue,Mencap,Home Care
Peterborough City Council,Adults,Independent Sector Placements,Services,03/12/2018,30202990,7277.40,Revenue,Mencap,Home Care
Peterborough City Council,Adults,Independent Sector Placements,Services,03/12/2018,30202992,2223.00,Revenue,Mencap,Home Care
Peterborough City Council,Adults,Independent Sector Placements,Services,03/12/2018,30202994,695.80,Revenue,Mencap,Home Care
Peterborough City Council,Adults,Independent Sector Placements,Services,03/12/2018,30202995,2034.40,Revenue,Mencap,Home Care
Peterborough City Council,Adults,Independent Sector Placements,Services,03/12/2018,30202996,979.80,Revenue,Mencap,Home Care
Peterborough City Council,Westcombe Engineering,Westcombe Engineering,"Tools, Equipment, Furniture & Materials",03/12/2018,30203239,834.40,Revenue,Barron Clark Castings Ltd,Materials
Peterborough City Council,Westcombe Engineering,Westcombe Engineering,"Tools, Equipment, Furniture & Materials",03/12/2018,30203241,1215.60,Revenue,Barron Clark Castings Ltd,Materials
Peterborough City Council,Peterborough Highway Services,Highway Services - HoS,Interview & Training Expenses,03/12/2018,30203649,3428.62,Revenue,APSE,Training
Peterborough City Council,Adults,Independent Sector Placements,Services,03/12/2018,30203790,4397.00,Revenue,OAKFIELD (EASTON MAUDIT) LTD,Residential Care
Peterborough City Council,Adults,Independent Sector Placements,Services,03/12/2018,30203791,2015.00,Revenue,Klair House Residential Care Homes,Residential Care
Peterborough City Council,Peterborough Highway Services,Transport & Infrastructure Commissioning,Transport Costs,03/12/2018,30204032,28687.50,Revenue,Stagecoach in Peterborough,Public Transport
Peterborough City Council,"Waste, Cleansing and Open Spaces",Waste Management,Services,03/12/2018,30204039,23091.56,Revenue,Material Change Composting Ltd,Recycling
Peterborough City Council,Commissioning and Commercial Operations,Clare Lodge,Agency Staff,03/12/2018,30204192,795.56,Revenue,Reed Specialist Recruitment Limited,External Temporary Staff
Peterborough City Council,Corporate,Corporate,Non Revenue,03/12/2018,30204288,13717.00,Capital,Allworks Home Improvements Ltd,Grant Payment
Peterborough City Council,Adults,Mental Capacity Act & DoLs,Services,03/12/2018,30204459,750.40,Revenue,SS Psychiatric Services Ltd,Hired Services
Peterborough City Council,Commissioning and Commercial Operations,Early Years & Quality Improvement,Services,03/12/2018,30204496,546.00,Revenue,Toddlers Inn Day Nursery,Grant Payment
Peterborough City Council,Commissioning and Commercial Operations,Early Years & Quality Improvement,Services,03/12/2018,30204499,2216.50,Revenue,Kiddi Caru Day Nursery,Grant Payment
Peterborough City Council,Corporate,Corporate,Non Revenue,03/12/2018,30204666,25163.10,Capital,MORLEY BUILDING SERVICES LTD,Grant Payment
Peterborough City Council,Corporate,Corporate,Non Revenue,03/12/2018,30204839,1473.42,Capital,Specialised Movers Ltd,Building And Site Works
Peterborough City Council,Adults,Independent Sector Placements,Services,03/12/2018,30204911,3767.20,Revenue,Community Care Solutions Ltd,Residential Care
Peterborough City Council,Adults,Independent Sector Placements,Services,03/12/2018,30204913,3767.20,Revenue,Community Care Solutions Ltd,Residential Care
Peterborough City Council,Adults,Independent Sector Placements,Services,03/12/2018,30204914,3767.20,Revenue,Community Care Solutions Ltd,Residential Care
Peterborough City Council,Adults,Independent Sector Placements,Services,03/12/2018,30204915,3767.20,Revenue,Community Care Solutions Ltd,Residential Care
Peterborough City Council,Adults,Independent Sector Placements,Services,03/12/2018,30204916,5600.00,Revenue,Community Care Solutions Ltd,Residential Care
Peterborough City Council,Adults,Independent Sector Placements,Services,03/12/2018,30204917,8049.72,Revenue,Community Care Solutions Ltd,Residential Care
Peterborough City Council,Adults,Independent Sector Placements,Services,03/12/2018,30204955,595.00,Revenue,Springfield Care Limited  T/a Caring Crew,Home Care
Peterborough City Council,Adults,Independent Sector Placements,Services,03/12/2018,30205192,538.25,Revenue,PRESTIGE NURSING LIMITED,Home Care
Peterborough City Council,Adults,Independent Sector Placements,Services,03/12/2018,30205193,536.25,Revenue,PRESTIGE NURSING LIMITED,Home Care
Peterborough City Council,Adults,Independent Sector Placements,Services,03/12/2018,30205196,10889.07,Revenue,PRESTIGE NURSING LIMITED,Home Care
Peterborough City Council,Adults,Independent Sector Placements,Services,03/12/2018,30205197,10885.33,Revenue,PRESTIGE NURSING LIMITED,Home Care
Peterborough City Council,Adults,Independent Sector Placements,Services,03/12/2018,30205204,617.40,Revenue,K2 CARE LTD,Home Care
Peterborough City Council,Adults,Independent Sector Placements,Services,03/12/2018,30205205,668.50,Revenue,K2 CARE LTD,Home Care
Peterborough City Council,Adults,Independent Sector Placements,Services,03/12/2018,30205211,1291.81,Revenue,K2 CARE LTD,Home Care
Peterborough City Council,Adults,Independent Sector Placements,Services,03/12/2018,30205213,1567.30,Revenue,K2 CARE LTD,Home Care
Peterborough City Council,Adults,Independent Sector Placements,Services,03/12/2018,30205278,1269.48,Revenue,FIELD HOUSE (EYE) LTD,Residential Care
Peterborough City Council,Adults,Independent Sector Placements,Services,03/12/2018,30205280,1383.48,Revenue,Bee's Care Ltd,Home Care
Peterborough City Council,Adults,Independent Sector Placements,Services,03/12/2018,30205281,594.17,Revenue,Bee's Care Ltd,Home Care
Peterborough City Council,Legal Services,Legal Services,Services,03/12/2018,30205404,830.32,Revenue,Thomson Reuters UK Limited,Subscriptions
Peterborough City Council,Corporate,Corporate,Non Revenue,03/12/2018,30205405,1200.00,Capital,Brodies LLP,Land/Building Acquisition
Peterborough City Council,Adults,Independent Sector Placements,Services,03/12/2018,8000130443,1978.05,Revenue,MEARS GROUP,Home Care
Peterborough City Council,Adults,Independent Sector Placements,Services,03/12/2018,8000130444,928.50,Revenue,MEARS GROUP,Home Care
Peterborough City Council,Adults,Independent Sector Placements,Services,03/12/2018,8000130445,755.85,Revenue,MEARS GROUP,Home Care
Peterborough City Council,Adults,Independent Sector Placements,Services,03/12/2018,8000130446,1047.90,Revenue,MEARS GROUP,Home Care
Peterborough City Council,Adults,Independent Sector Placements,Services,03/12/2018,8000130447,616.95,Revenue,MEARS GROUP,Home Care
Peterborough City Council,Adults,Independent Sector Placements,Services,03/12/2018,8000130450,1209.45,Revenue,MEARS GROUP,Home Care
Peterborough City Council,Adults,Independent Sector Placements,Services,03/12/2018,8000130451,867.75,Revenue,MEARS GROUP,Home Care
Peterborough City Council,Adults,Independent Sector Placements,Services,03/12/2018,8000130452,630.30,Revenue,MEARS GROUP,Home Care
Peterborough City Council,Adults,Independent Sector Placements,Services,03/12/2018,8000130454,765.15,Revenue,MEARS GROUP,Home Care
Peterborough City Council,Adults,Independent Sector Placements,Services,03/12/2018,8000130457,502.80,Revenue,MEARS GROUP,Home Care
Peterborough City Council,Adults,Independent Sector Placements,Services,03/12/2018,8000130461,1722.30,Revenue,MEARS GROUP,Home Care
Peterborough City Council,Adults,Independent Sector Placements,Services,03/12/2018,8000130467,780.90,Revenue,MEARS GROUP,Home Care
Peterborough City Council,Adults,Independent Sector Placements,Services,03/12/2018,8000130472,679.05,Revenue,MEARS GROUP,Home Care
Peterborough City Council,Adults,Independent Sector Placements,Services,03/12/2018,8000130475,1007.10,Revenue,MEARS GROUP,Home Care
Peterborough City Council,Adults,Independent Sector Placements,Services,03/12/2018,8000130477,1819.35,Revenue,MEARS GROUP,Home Care
Peterborough City Council,Adults,Independent Sector Placements,Services,03/12/2018,8000130478,690.15,Revenue,MEARS GROUP,Home Care
Peterborough City Council,Adults,Independent Sector Placements,Services,03/12/2018,8000130482,837.15,Revenue,MEARS GROUP,Home Care
Peterborough City Council,Adults,Independent Sector Placements,Services,03/12/2018,8000130483,1597.50,Revenue,MEARS GROUP,Home Care
Peterborough City Council,Adults,Independent Sector Placements,Services,03/12/2018,8000130486,582.15,Revenue,MEARS GROUP,Home Care
Peterborough City Council,Adults,Independent Sector Placements,Services,03/12/2018,8000130487,559.80,Revenue,MEARS GROUP,Home Care
Peterborough City Council,Adults,Independent Sector Placements,Services,03/12/2018,8000130488,1081.35,Revenue,MEARS GROUP,Home Care
Peterborough City Council,Adults,Independent Sector Placements,Services,03/12/2018,8000130491,570.75,Revenue,MEARS GROUP,Home Care
Peterborough City Council,Adults,Independent Sector Placements,Services,03/12/2018,8000130493,583.20,Revenue,MEARS GROUP,Home Care
Peterborough City Council,Adults,Independent Sector Placements,Services,03/12/2018,8000130497,627.15,Revenue,MEARS GROUP,Home Care
Peterborough City Council,Adults,Independent Sector Placements,Services,03/12/2018,8000130498,691.95,Revenue,MEARS GROUP,Home Care
Peterborough City Council,Adults,Independent Sector Placements,Services,03/12/2018,8000130503,1220.70,Revenue,MEARS GROUP,Home Care
Peterborough City Council,Adults,Independent Sector Placements,Services,03/12/2018,8000130504,504.90,Revenue,MEARS GROUP,Home Care
Peterborough City Council,Adults,Independent Sector Placements,Services,03/12/2018,8000130509,563.85,Revenue,MEARS GROUP,Home Care
Peterborough City Council,Adults,Independent Sector Placements,Services,03/12/2018,8000130510,696.30,Revenue,MEARS GROUP,Home Care
Peterborough City Council,Adults,Independent Sector Placements,Services,03/12/2018,8000130511,520.95,Revenue,MEARS GROUP,Home Care
Peterborough City Council,Adults,Independent Sector Placements,Services,03/12/2018,8000130512,2025.15,Revenue,MEARS GROUP,Home Care
Peterborough City Council,Adults,Independent Sector Placements,Services,03/12/2018,8000130514,1297.35,Revenue,MEARS GROUP,Home Care
Peterborough City Council,Adults,Independent Sector Placements,Services,03/12/2018,8000130515,744.75,Revenue,MEARS GROUP,Home Care
Peterborough City Council,Adults,Independent Sector Placements,Services,03/12/2018,8000130517,742.95,Revenue,MEARS GROUP,Home Care
Peterborough City Council,Adults,Independent Sector Placements,Services,03/12/2018,8000130522,900.90,Revenue,MEARS GROUP,Home Care
Peterborough City Council,Adults,Independent Sector Placements,Services,03/12/2018,8000130526,1382.70,Revenue,MEARS GROUP,Home Care
Peterborough City Council,Adults,Independent Sector Placements,Services,03/12/2018,8000130527,536.85,Revenue,MEARS GROUP,Home Care
Peterborough City Council,Adults,Independent Sector Placements,Services,03/12/2018,8000130529,522.60,Revenue,MEARS GROUP,Home Care
Peterborough City Council,Adults,Independent Sector Placements,Services,03/12/2018,8000130531,740.55,Revenue,MEARS GROUP,Home Care
Peterborough City Council,Adults,Independent Sector Placements,Services,03/12/2018,8000130532,881.10,Revenue,MEARS GROUP,Home Care
Peterborough City Council,Adults,Independent Sector Placements,Services,03/12/2018,8000130538,543.30,Revenue,MEARS GROUP,Home Care
Peterborough City Council,Adults,Independent Sector Placements,Services,03/12/2018,8000130540,1983.90,Revenue,MEARS GROUP,Home Care
Peterborough City Council,Adults,Independent Sector Placements,Services,03/12/2018,8000130542,824.85,Revenue,MEARS GROUP,Home Care
Peterborough City Council,Adults,Independent Sector Placements,Services,03/12/2018,8000130546,766.84,Revenue,MEARS GROUP,Home Care
Peterborough City Council,Adults,Independent Sector Placements,Services,03/12/2018,8000130550,617.97,Revenue,MEARS GROUP,Home Care
Peterborough City Council,Adults,Independent Sector Placements,Services,03/12/2018,8000130551,790.40,Revenue,MEARS GROUP,Home Care
Peterborough City Council,Adults,Independent Sector Placements,Services,03/12/2018,8000130725,975.45,Revenue,MEARS GROUP,Home Care
Peterborough City Council,Adults,Independent Sector Placements,Services,03/12/2018,8000130728,659.25,Revenue,MEARS GROUP,Home Care
Peterborough City Council,Adults,Independent Sector Placements,Services,03/12/2018,8000130733,876.60,Revenue,MEARS GROUP,Home Care
Peterborough City Council,Adults,Independent Sector Placements,Services,03/12/2018,8000130734,584.25,Revenue,MEARS GROUP,Home Care
Peterborough City Council,Marketing & Communications,Marketing & Communications,Services,05/12/2018,30190872,688.00,Revenue,Fisherprint Ltd,Printing
Peterborough City Council,Communities,Housing,Repair & Maintenance of Buildings,05/12/2018,30191107,560.00,Revenue,M J Greaves,Premises Repairs
Peterborough City Council,Marketing & Communications,Marketing & Communications,Services,05/12/2018,30196607,1072.00,Revenue,Fisherprint Ltd,Printing
Peterborough City Council,Marketing & Communications,Marketing & Communications,Services,05/12/2018,30196608,699.00,Revenue,Fisherprint Ltd,Printing
Peterborough City Council,Adults,Community Team,Agency Staff,05/12/2018,30200307,5379.38,Revenue,Liquid Personnel,External Temporary Staff
Peterborough City Council,Communities,Housing,Interview & Training Expenses,05/12/2018,30201687,933.00,Revenue,Shelter the National Campaign for Homeless People,Training
Peterborough City Council,Communities,Housing,Interview & Training Expenses,05/12/2018,30201692,1026.00,Revenue,Shelter the National Campaign for Homeless People,Training
Peterborough City Council,Children's & Safeguarding,Child Health,Services,05/12/2018,30201878,3103.75,Revenue,Circles Network,Purchased Social Care Services
Peterborough City Council,Legal Services,Legal Services,Services,05/12/2018,30202241,635.00,Revenue,"Walji, Miss Shabnam",Legal Costs
Peterborough City Council,Adults,Independent Sector Placements,Services,05/12/2018,30202260,956.99,Revenue,Pilgrim Havens,Residential Care
Peterborough City Council,Adults,Independent Sector Placements,Services,05/12/2018,30202301,1847.60,Revenue,Alysia Caring Ltd T/a Cherry Blossom care Home,Residential Care
Peterborough City Council,Adults,Independent Sector Placements,Services,05/12/2018,30202302,1023.84,Revenue,Alysia Caring Ltd T/a Cherry Blossom care Home,Residential Care
Peterborough City Council,Adults,Independent Sector Placements,Services,05/12/2018,30202303,2930.04,Revenue,Alysia Caring Ltd T/a Cherry Blossom care Home,Residential Care
Peterborough City Council,Adults,Independent Sector Placements,Services,05/12/2018,30202304,2825.04,Revenue,Alysia Caring Ltd T/a Cherry Blossom care Home,Residential Care
Peterborough City Council,Adults,Independent Sector Placements,Services,05/12/2018,30202305,2128.00,Revenue,Alysia Caring Ltd T/a Cherry Blossom care Home,Residential Care
Peterborough City Council,Adults,Independent Sector Placements,Services,05/12/2018,30202315,2737.04,Revenue,Alysia Caring Ltd T/a Cherry Blossom care Home,Residential Care
Peterborough City Council,Adults,Independent Sector Placements,Services,05/12/2018,30202316,1773.88,Revenue,Alysia Caring Ltd T/a Cherry Blossom care Home,Residential Care
Peterborough City Council,Adults,Independent Sector Placements,Services,05/12/2018,30202317,2825.04,Revenue,Alysia Caring Ltd T/a Cherry Blossom care Home,Residential Care
Peterborough City Council,Adults,Independent Sector Placements,Services,05/12/2018,30202318,3100.00,Revenue,Alysia Caring Ltd T/a Cherry Blossom care Home,Residential Care
Peterborough City Council,Adults,Independent Sector Placements,Services,05/12/2018,30202319,1023.84,Revenue,Alysia Caring Ltd T/a Cherry Blossom care Home,Residential Care
Peterborough City Council,Adults,Independent Sector Placements,Services,05/12/2018,30202320,1883.32,Revenue,Alysia Caring Ltd T/a Cherry Blossom care Home,Residential Care
Peterborough City Council,Adults,Independent Sector Placements,Services,05/12/2018,30202321,2512.68,Revenue,Alysia Caring Ltd T/a Cherry Blossom care Home,Residential Care
Peterborough City Council,Adults,Independent Sector Placements,Services,05/12/2018,30202324,1887.96,Revenue,Alysia Caring Ltd T/a Cherry Blossom care Home,Residential Care
Peterborough City Council,Adults,Independent Sector Placements,Services,05/12/2018,30202325,825.88,Revenue,Alysia Caring Ltd T/a Cherry Blossom care Home,Residential Care
Peterborough City Council,Adults,Independent Sector Placements,Services,05/12/2018,30202326,825.88,Revenue,Alysia Caring Ltd T/a Cherry Blossom care Home,Residential Care
Peterborough City Council,Adults,Independent Sector Placements,Services,05/12/2018,30202327,1887.96,Revenue,Alysia Caring Ltd T/a Cherry Blossom care Home,Residential Care
Peterborough City Council,Adults,Independent Sector Placements,Services,05/12/2018,30202328,589.44,Revenue,Alysia Caring Ltd T/a Cherry Blossom care Home,Residential Care
Peterborough City Council,Commissioning and Commercial Operations,Early Years & Quality Improvement,Services,05/12/2018,30202495,5150.00,Revenue,Cambridgeshire County Council,Hired Services
Peterborough City Council,Sustainable Growth Strategy,Housing & Strategic Planning,Services,05/12/2018,30202496,5150.00,Revenue,Cambridgeshire County Council,Hired Services
Peterborough City Council,Public Health,DPH Office,Services,05/12/2018,30202497,5150.00,Revenue,Cambridgeshire County Council,Hired Services
Peterborough City Council,Commissioning and Commercial Operations,Clare Lodge,Agency Staff,05/12/2018,30202537,1640.00,Revenue,Wrixon Care Services,External Temporary Staff
Peterborough City Council,Commissioning and Commercial Operations,Clare Lodge,Agency Staff,05/12/2018,30202538,3184.00,Revenue,Wrixon Care Services,External Temporary Staff
Peterborough City Council,Commissioning and Commercial Operations,Clare Lodge,Agency Staff,05/12/2018,30202539,2184.00,Revenue,Wrixon Care Services,External Temporary Staff
Peterborough City Council,Commissioning and Commercial Operations,Clare Lodge,Agency Staff,05/12/2018,30202540,912.00,Revenue,Wrixon Care Services,External Temporary Staff
Peterborough City Council,Commissioning and Commercial Operations,Clare Lodge,Agency Staff,05/12/2018,30202541,2224.00,Revenue,Wrixon Care Services,External Temporary Staff
Peterborough City Council,Commissioning and Commercial Operations,Clare Lodge,Agency Staff,05/12/2018,30202542,1000.00,Revenue,Wrixon Care Services,External Temporary Staff
Peterborough City Council,Commissioning and Commercial Operations,Clare Lodge,Agency Staff,05/12/2018,30202543,1952.00,Revenue,Wrixon Care Services,External Temporary Staff
Peterborough City Council,Commissioning and Commercial Operations,Clare Lodge,Agency Staff,05/12/2018,30202544,544.00,Revenue,Wrixon Care Services,External Temporary Staff
Peterborough City Council,Commissioning and Commercial Operations,Clare Lodge,Agency Staff,05/12/2018,30202545,1488.00,Revenue,Wrixon Care Services,External Temporary Staff
Peterborough City Council,Commissioning and Commercial Operations,Clare Lodge,Agency Staff,05/12/2018,30202546,552.00,Revenue,Wrixon Care Services,External Temporary Staff
Peterborough City Council,Commissioning and Commercial Operations,Clare Lodge,Agency Staff,05/12/2018,30202547,704.00,Revenue,Wrixon Care Services,External Temporary Staff
Peterborough City Council,Adults,Independent Sector Placements,Services,05/12/2018,30202610,5574.47,Revenue,Action on Hearing Loss,Residential Care
Peterborough City Council,Legal Services,Legal Services,Services,05/12/2018,30202876,550.00,Revenue,"Walji, Miss Shabnam",Legal Costs
Peterborough City Council,Communities,Targeted Youth Service,Services,05/12/2018,30202914,2400.00,Revenue,Hilltop Outdoor Centre,Youth Programmes
Peterborough City Council,Adults,Independent Sector Placements,Services,05/12/2018,30203031,3686.00,Revenue,Carers Trust Cambridgeshire,Home Care
Peterborough City Council,Adults,Independent Sector Placements,Services,05/12/2018,30203036,593.46,Revenue,Carers Trust Cambridgeshire,Home Care
Peterborough City Council,City Centre Management,"Markets, Tourism & Events",Services,05/12/2018,30203062,520.00,Revenue,APMS Ambulance Service Limited,Hired Services
Peterborough City Council,Education,Special Educational Needs / Inclusion,Services,05/12/2018,30203063,2038.40,Revenue,Becky Frewin Ltd,Hired Services
Peterborough City Council,HR,HR,Services,05/12/2018,30203068,691.50,Revenue,AXA PPP Healthcare OHS Ltd,Consultants Fees
Peterborough City Council,Westcombe Engineering,Westcombe Engineering,"Tools, Equipment, Furniture & Materials",05/12/2018,30203069,3361.70,Revenue,AALCO,Materials
Peterborough City Council,Adults,Independent Sector Placements,Services,05/12/2018,30203085,529.20,Revenue,Carers Trust Cambridgeshire,Home Care
Peterborough City Council,Adults,Independent Sector Placements,Services,05/12/2018,30203086,544.32,Revenue,Carers Trust Cambridgeshire,Home Care
Peterborough City Council,Commissioning and Commercial Operations,Clare Lodge,Agency Staff,05/12/2018,30203098,2000.00,Revenue,Wrixon Care Services,External Temporary Staff
Peterborough City Council,ICT,ICT,Agency Staff,05/12/2018,30203110,1500.00,Revenue,Cranford Solutions Ltd,External Temporary Staff
Peterborough City Council,Commissioning and Commercial Operations,Clare Lodge,Catering,05/12/2018,30203135,635.63,Revenue,King Bros Lady Lodge Ltd,Catering Provisions
Peterborough City Council,Children's & Safeguarding,Children's Social Care,Third Party Payments,05/12/2018,30203136,4000.00,Revenue,Adoption UK,Third Party Payments - Contract
Peterborough City Council,Children's & Safeguarding,Children's Social Care,Contract Hire and Operating Leases,05/12/2018,30203186,1950.00,Revenue,Stagecoach in Peterborough,Hired Transport
Peterborough City Council,Peterborough Highway Services,Transport & Infrastructure Commissioning,Transport Costs,05/12/2018,30203189,1192.31,Revenue,Stagecoach in Peterborough,Public Transport
Peterborough City Council,Peterborough Highway Services,Transport & Infrastructure Commissioning,Transport Costs,05/12/2018,30203192,1192.31,Revenue,Stagecoach in Peterborough,Public Transport
Peterborough City Council,Peterborough Highway Services,Transport & Infrastructure Commissioning,Transport Costs,05/12/2018,30203194,1192.31,Revenue,Stagecoach in Peterborough,Public Transport
Peterborough City Council,Peterborough Highway Services,Transport & Infrastructure Commissioning,Transport Costs,05/12/2018,30203195,1192.31,Revenue,Stagecoach in Peterborough,Public Transport
Peterborough City Council,Peterborough Highway Services,Transport & Infrastructure Commissioning,Transport Costs,05/12/2018,30203196,1192.31,Revenue,Stagecoach in Peterborough,Public Transport
Peterborough City Council,Peterborough Highway Services,Transport & Infrastructure Commissioning,Transport Costs,05/12/2018,30203199,1192.31,Revenue,Stagecoach in Peterborough,Public Transport
Peterborough City Council,"Waste, Cleansing and Open Spaces",Waste Management,Third Party Payments,05/12/2018,30203259,12783.04,Revenue,H W Martin Waste Ltd,Third Party Payments - Contract
Peterborough City Council,Legal Services,Legal Services,Agency Staff,05/12/2018,30203268,979.00,Revenue,Venn Group Ltd,External Temporary Staff
Peterborough City Council,Legal Services,Legal Services,Agency Staff,05/12/2018,30203270,1650.00,Revenue,Venn Group Ltd,External Temporary Staff
Peterborough City Council,Adults,Independent Sector Placements,Services,05/12/2018,30203277,914.56,Revenue,Maxey House Res Home,Residential Care
Peterborough City Council,Adults,Independent Sector Placements,Services,05/12/2018,30203278,1215.16,Revenue,Maxey House Res Home,Residential Care
Peterborough City Council,Adults,Independent Sector Placements,Services,05/12/2018,30203280,1037.16,Revenue,Maxey House Res Home,Residential Care
Peterborough City Council,Adults,Independent Sector Placements,Services,05/12/2018,30203281,1821.88,Revenue,Maxey House Res Home,Residential Care
Peterborough City Council,Adults,Independent Sector Placements,Services,05/12/2018,30203282,1576.24,Revenue,Maxey House Res Home,Residential Care
Peterborough City Council,Adults,Independent Sector Placements,Services,05/12/2018,30203283,1236.92,Revenue,Maxey House Res Home,Residential Care
Peterborough City Council,Adults,Independent Sector Placements,Services,05/12/2018,30203284,1225.20,Revenue,Maxey House Res Home,Residential Care
Peterborough City Council,Adults,Independent Sector Placements,Services,05/12/2018,30203286,996.68,Revenue,Maxey House Res Home,Residential Care
Peterborough City Council,Adults,Independent Sector Placements,Services,05/12/2018,30203287,1301.48,Revenue,Maxey House Res Home,Residential Care
Peterborough City Council,Adults,Independent Sector Placements,Services,05/12/2018,30203288,1821.88,Revenue,Maxey House Res Home,Residential Care
Peterborough City Council,Adults,Independent Sector Placements,Services,05/12/2018,30203290,1679.96,Revenue,Maxey House Res Home,Residential Care
Peterborough City Council,Legal Services,Legal Services,Agency Staff,05/12/2018,30203370,2263.89,Revenue,Venn Group Ltd,External Temporary Staff
Peterborough City Council,Legal Services,Legal Services,Agency Staff,05/12/2018,30203372,526.79,Revenue,Venn Group Ltd,External Temporary Staff
Peterborough City Council,ICT,ICT,Services,05/12/2018,30203375,1052.88,Revenue,Idox Software Ltd,Computer Software
Peterborough City Council,Corporate,Corporate,Non Revenue,05/12/2018,30203477,3691.00,Capital,Allworks Home Improvements Ltd,Grant Payment
Peterborough City Council,Commissioning and Commercial Operations,Commissioning,Services,05/12/2018,30203499,3500.00,Revenue,121 Social Care Limited,Hired Services
Peterborough City Council,Commissioning and Commercial Operations,Commissioning,Services,05/12/2018,30203500,5500.00,Revenue,121 Social Care Limited,Hired Services
Peterborough City Council,Adults,Community Team,Agency Staff,05/12/2018,30203510,1221.00,Revenue,Medicare First Ltd,External Temporary Staff
Peterborough City Council,"Cemeteries, Cremation & Registrars",Bereavement Service,Services,05/12/2018,30203523,786.64,Revenue,Clear Skies Software Ltd,Computer Software
Peterborough City Council,City Centre Management,"Markets, Tourism & Events",Services,05/12/2018,30203646,1000.00,Revenue,New Vision Group Trading as NVG,Ict Services
Peterborough City Council,Communities,Other Enforcement,Services,05/12/2018,30203662,2892.93,Revenue,Quadrant Security Group Ltd,Cctv
Peterborough City Council,Education,Special Educational Needs / Inclusion,Interview & Training Expenses,05/12/2018,30203673,3882.00,Revenue,The University Of Birmingham,Training
Peterborough City Council,Education,Special Educational Needs / Inclusion,Interview & Training Expenses,05/12/2018,30203676,3882.00,Revenue,The University Of Birmingham,Training
Peterborough City Council,Education,Special Educational Needs / Inclusion,Interview & Training Expenses,05/12/2018,30203678,3882.00,Revenue,The University Of Birmingham,Training
Peterborough City Council,Peterborough Highway Services,Transport & Infrastructure Commissioning,Transport Costs,05/12/2018,30203684,1192.31,Revenue,Stagecoach in Peterborough,Public Transport
Peterborough City Council,Peterborough Highway Services,Transport & Infrastructure Commissioning,Transport Costs,05/12/2018,30203685,1192.31,Revenue,Stagecoach in Peterborough,Public Transport
Peterborough City Council,Peterborough Highway Services,Transport & Infrastructure Commissioning,Transport Costs,05/12/2018,30203686,1192.31,Revenue,Stagecoach in Peterborough,Public Transport
Peterborough City Council,Peterborough Highway Services,Transport & Infrastructure Commissioning,Transport Costs,05/12/2018,30203687,1192.31,Revenue,Stagecoach in Peterborough,Public Transport
Peterborough City Council,Adults,Independent Sector Placements,Services,05/12/2018,30203706,1205.68,Revenue,Oakhouse Home Care Cambs Ltd,Residential Care
Peterborough City Council,Adults,Independent Sector Placements,Services,05/12/2018,30203707,984.32,Revenue,Oakhouse Home Care Cambs Ltd,Residential Care
Peterborough City Council,Adults,Independent Sector Placements,Services,05/12/2018,30203709,1137.48,Revenue,Oakhouse Home Care Cambs Ltd,Residential Care
Peterborough City Council,Adults,Independent Sector Placements,Services,05/12/2018,30203710,1171.21,Revenue,Park Vista Care Home,Residential Care
Peterborough City Council,Communities,Travellers,Services,05/12/2018,30203726,606.48,Revenue,Bryan Lecoche Ltd,Hired Services
Peterborough City Council,Education,Special Educational Needs / Inclusion,Services,05/12/2018,30203829,780.03,Revenue,Children's Therapy Solutions Ltd,Hired Services
Peterborough City Council,Education,Special Educational Needs / Inclusion,Services,05/12/2018,30203833,642.66,Revenue,Children's Therapy Solutions Ltd,Hired Services
Peterborough City Council,Westcombe Engineering,Westcombe Engineering,"Tools, Equipment, Furniture & Materials",05/12/2018,30203875,508.82,Revenue,Barron Clark Castings Ltd,Materials
Peterborough City Council,Westcombe Engineering,Westcombe Engineering,"Tools, Equipment, Furniture & Materials",05/12/2018,30203877,870.20,Revenue,Barron Clark Castings Ltd,Materials
Peterborough City Council,Westcombe Engineering,Westcombe Engineering,"Tools, Equipment, Furniture & Materials",05/12/2018,30203886,614.90,Revenue,Barron Clark Castings Ltd,Materials
Peterborough City Council,Adults,Therapy/Reablement/Community Equipment,"Tools, Equipment, Furniture & Materials",05/12/2018,30203949,595.95,Revenue,Action on Hearing Loss,Occupational Therapy Equipment
Peterborough City Council,Adults,Therapy/Reablement/Community Equipment,"Tools, Equipment, Furniture & Materials",05/12/2018,30203950,791.63,Revenue,Action on Hearing Loss,Occupational Therapy Equipment
Peterborough City Council,Adults,Therapy/Reablement/Community Equipment,"Tools, Equipment, Furniture & Materials",05/12/2018,30203951,700.93,Revenue,Action on Hearing Loss,Occupational Therapy Equipment
Peterborough City Council,Corporate,Corporate,Non Revenue,05/12/2018,30203953,18000.00,Capital,Casbon Building Services,Grant Payment
Peterborough City Council,Peterborough Highway Services,Transport & Infrastructure Commissioning,Transport Costs,05/12/2018,30204030,7206.96,Revenue,Stagecoach in Peterborough,Public Transport
Peterborough City Council,Legal Services,Legal Services,Services,05/12/2018,30204170,1750.00,Revenue,"White, Ms Elizabeth",Legal Costs
Peterborough City Council,Corporate Property,Commercial Propety,Agency Staff,05/12/2018,30204246,1906.67,Revenue,Reed Specialist Recruitment Limited,External Temporary Staff
Peterborough City Council,Adults,Independent Sector Placements,Services,05/12/2018,30204263,12771.43,Revenue,Glenholme Healthcare Limited,Residential Care
Peterborough City Council,Westcombe Engineering,Westcombe Engineering,"Tools, Equipment, Furniture & Materials",05/12/2018,30204270,595.00,Revenue,Olis Machine Tools Ltd,Equipment Repairs
Peterborough City Council,Communities,Housing,Services,05/12/2018,30204283,38722.50,Revenue,Stef & Philips Ltd,Temporary Accommodation Costs
Peterborough City Council,Adults,Independent Sector Placements,Services,05/12/2018,30204435,4955.87,Revenue,Glenholme Healthcare Limited,Residential Care
Peterborough City Council,Communities,Cultural Services,Services,05/12/2018,30204461,1500.00,Revenue,The Cresset (Peterborough) Ltd,Hired Services
Peterborough City Council,"Cemeteries, Cremation & Registrars",Bereavement Service,Services,05/12/2018,30204503,1554.00,Revenue,Anglia Co-operative Funerals,Contract Funerals
Peterborough City Council,Commissioning and Commercial Operations,Clare Lodge,Agency Staff,05/12/2018,30204621,4264.67,Revenue,Southview Building Solutions Ltd,External Temporary Staff
Peterborough City Council,Communities,Housing,Agency Staff,05/12/2018,30204626,1822.51,Revenue,Reed Specialist Recruitment Limited,External Temporary Staff
Peterborough City Council,Peterborough Highway Services,Highway Services - HoS,Agency Staff,05/12/2018,30204629,1235.80,Revenue,Reed Specialist Recruitment Limited,External Temporary Staff
Peterborough City Council,Commissioning and Commercial Operations,Clare Lodge,Agency Staff,05/12/2018,30204657,1824.50,Revenue,Wrixon Care Services,External Temporary Staff
Peterborough City Council,Adults,Independent Sector Placements,Services,05/12/2018,30204723,1322.10,Revenue,Better Healthcare Services,Home Care
Peterborough City Council,Adults,Independent Sector Placements,Services,05/12/2018,30204725,1625.92,Revenue,Better Healthcare Services,Home Care
Peterborough City Council,Commissioning and Commercial Operations,Clare Lodge,Energy Costs,05/12/2018,30204755,582.57,Revenue,Corona Energy Retail 4 Limited,Gas
Peterborough City Council,Education,Schools Finance,Services,05/12/2018,30204781,1375.00,Revenue,RM Education Ltd,Computer Software
Peterborough City Council,Education,School Standards & Effectiveness,Services,05/12/2018,30204786,1674.20,Revenue,The EAL Academy,Hired Services
Peterborough City Council,Legal Services,Legal Services,Agency Staff,05/12/2018,30204843,1171.21,Revenue,Reed Specialist Recruitment Limited,External Temporary Staff
Peterborough City Council,Adults,Independent Sector Placements,Services,05/12/2018,30204855,6966.72,Revenue,Autism Care (UK) Ltd,Residential Care
Peterborough City Council,Communities,Cultural Services,Energy Costs,05/12/2018,30204858,1542.49,Revenue,Corona Energy Retail 4 Limited,Gas
Peterborough City Council,Corporate Property,Office Accomodation,Energy Costs,05/12/2018,30204859,666.69,Revenue,Corona Energy Retail 4 Limited,Gas
Peterborough City Council,Communities,Cultural Services,Energy Costs,05/12/2018,30204859,5076.89,Revenue,Corona Energy Retail 4 Limited,Gas
Peterborough City Council,Corporate,Corporate,Non Revenue,05/12/2018,30204963,4999.89,Capital,Rawheat Heating & Plumbing Eng.,Grant Payment
Peterborough City Council,Adults,Independent Sector Placements,Services,05/12/2018,30204998,1787.14,Revenue,Park Vista Care Home,Residential Care
Peterborough City Council,Adults,Independent Sector Placements,Services,05/12/2018,30205012,910.94,Revenue,Park Vista Care Home,Residential Care
Peterborough City Council,Adults,Independent Sector Placements,Services,05/12/2018,30205014,2057.14,Revenue,Park Vista Care Home,Residential Care
Peterborough City Council,Adults,Independent Sector Placements,Services,05/12/2018,30205017,893.57,Revenue,Park Vista Care Home,Residential Care
Peterborough City Council,Corporate Property,Commercial Propety,Energy Costs,05/12/2018,30205216,539.21,Revenue,Corona Energy Retail 4 Limited,Gas
Peterborough City Council,Adults,Independent Sector Placements,Services,05/12/2018,30205284,2400.00,Revenue,Park Vista Care Home,Residential Care
Peterborough City Council,Education,PFI,Water Services,05/12/2018,30205303,4410.74,Revenue,Anglian Water Business National,Water
Peterborough City Council,Communities,Cultural Services,Water Services,05/12/2018,30205303,646.70,Revenue,Anglian Water Business National,Water
Peterborough City Council,Communities,Cultural Services,Water Services,05/12/2018,30205303,15767.52,Revenue,Anglian Water Business National,Water
Peterborough City Council,Adults,Independent Sector Placements,Services,05/12/2018,30205311,933.33,Revenue,Bee's Care Ltd,Home Care
Peterborough City Council,Adults,Independent Sector Placements,Services,05/12/2018,30205316,530.63,Revenue,Bee's Care Ltd,Home Care
Peterborough City Council,Adults,Independent Sector Placements,Services,05/12/2018,30205319,1120.98,Revenue,Bee's Care Ltd,Home Care
Peterborough City Council,Adults,Independent Sector Placements,Services,05/12/2018,30205320,2275.44,Revenue,Bee's Care Ltd,Home Care
Peterborough City Council,Education,PFI,Water Services,05/12/2018,30205330,5074.94,Revenue,Anglian Water Business National,Water
Peterborough City Council,Communities,Cultural Services,Water Services,05/12/2018,30205330,591.56,Revenue,Anglian Water Business National,Water
Peterborough City Council,Adults,Mental Capacity Act & DoLs,Services,05/12/2018,30205344,2846.20,Revenue,Dr Nauman Khalil Ltd,Hired Services
Peterborough City Council,Adults,Independent Sector Placements,Services,05/12/2018,30205374,3591.00,Revenue,Carers Trust Cambridgeshire,Home Care
Peterborough City Council,Adults,Independent Sector Placements,Services,05/12/2018,30205392,963.89,Revenue,Sahara Community Care Services Limited,Home Care
Peterborough City Council,Adults,Independent Sector Placements,Services,05/12/2018,30205394,2941.12,Revenue,Maison Care Ltd,Residential Care
Peterborough City Council,Corporate,Corporate,Non Revenue,05/12/2018,30205407,4884.00,Capital,Brodies LLP,Land/Building Acquisition
Peterborough City Council,Legal Services,Legal Services,Agency Staff,05/12/2018,30205410,1027.13,Revenue,Giant Professional Limited,External Temporary Staff
Peterborough City Council,Communities,Cohesion,Third Party Payments,05/12/2018,30205421,3999.66,Revenue,Solutions 4 Health Ltd,Third Party Payments - Contract
Peterborough City Council,"Waste, Cleansing and Open Spaces",Waste & Operational Svs Mgmt,Water Services,05/12/2018,30205424,823.32,Revenue,Anglian Water Business National,Water
Peterborough City Council,"Waste, Cleansing and Open Spaces",Waste & Operational Svs Mgmt,Water Services,05/12/2018,30205424,2232.71,Revenue,Anglian Water Business National,Water
Peterborough City Council,Adults,Block Contracts,Third Party Payments,05/12/2018,30205463,2227.68,Revenue,Hales Group Ltd,Third Party Payments - Contract
Peterborough City Council,"Waste, Cleansing and Open Spaces",Waste & Operational Svs Mgmt,Third Party Payments,05/12/2018,30205476,507703.67,Revenue,Enterprise Managed Services Limited,Third Party Payments - Contract
Peterborough City Council,Adults,Home Services Delivery Model,Third Party Payments,05/12/2018,30205479,5017.14,Revenue,Peterborough Womens Aid,Grant-Third Party
Peterborough City Council,Legal Services,Legal Services,Agency Staff,05/12/2018,30205502,1848.70,Revenue,Reed Specialist Recruitment Limited,External Temporary Staff
Peterborough City Council,Development and Construction,Development Management,Agency Staff,05/12/2018,30205504,939.18,Revenue,Reed Specialist Recruitment Limited,External Temporary Staff
Peterborough City Council,ICT,ICT,Agency Staff,05/12/2018,30205510,678.80,Revenue,Reed Specialist Recruitment Limited,External Temporary Staff
Peterborough City Council,Peterborough Highway Services,Highway Services - HoS,Agency Staff,05/12/2018,30205512,1110.55,Revenue,Reed Specialist Recruitment Limited,External Temporary Staff
Peterborough City Council,Constitutional Services,Elections,Services,05/12/2018,30205513,1197.27,Revenue,Royal Mail,Postage
Peterborough City Council,Regulatory Services,Regulatory Services,Agency Staff,05/12/2018,30205516,1283.53,Revenue,Reed Specialist Recruitment Limited,External Temporary Staff
Peterborough City Council,Corporate,Corporate,Non Revenue,05/12/2018,30205518,2268.60,Capital,Reed Specialist Recruitment Limited,Consultants Fees
Peterborough City Council,Development and Construction,Development Management,Agency Staff,05/12/2018,30205523,896.49,Revenue,Reed Specialist Recruitment Limited,External Temporary Staff
Peterborough City Council,Development and Construction,Planning Compliance,Agency Staff,05/12/2018,30205527,645.05,Revenue,Reed Specialist Recruitment Limited,External Temporary Staff
Peterborough City Council,Education,Special Educational Needs / Inclusion,Agency Staff,05/12/2018,30205528,8470.00,Revenue,Protocol National Ltd,External Temporary Staff
Peterborough City Council,Development and Construction,Development Management,Agency Staff,05/12/2018,30205531,1261.09,Revenue,Reed Specialist Recruitment Limited,External Temporary Staff
Peterborough City Council,Communities,Service Director - Adults & Communities,Third Party Payments,05/12/2018,30205532,1928.94,Revenue,Peterborough Citizens Advice Bureau,Grant-Third Party
Peterborough City Council,Regulatory Services,Regulatory Services,Agency Staff,05/12/2018,30205533,982.08,Revenue,Reed Specialist Recruitment Limited,External Temporary Staff
Peterborough City Council,Corporate,Corporate,Non Revenue,05/12/2018,30205536,2583.60,Capital,Reed Specialist Recruitment Limited,Consultants Fees
Peterborough City Council,Development and Construction,Building Control,Agency Staff,05/12/2018,30205543,1860.73,Revenue,Reed Specialist Recruitment Limited,External Temporary Staff
Peterborough City Council,Development and Construction,Building Control,Agency Staff,05/12/2018,30205547,1075.05,Revenue,Reed Specialist Recruitment Limited,External Temporary Staff
Peterborough City Council,Adults,Home Services Delivery Model,Agency Staff,05/12/2018,30205553,1018.13,Revenue,Reed Specialist Recruitment Limited,External Temporary Staff
Peterborough City Council,Peterborough Highway Services,Highway & Drainage Control,Agency Staff,05/12/2018,30205558,1420.80,Revenue,Reed Specialist Recruitment Limited,External Temporary Staff
Peterborough City Council,Commissioning and Commercial Operations,Clare Lodge,Agency Staff,05/12/2018,30205562,642.20,Revenue,Reed Specialist Recruitment Limited,External Temporary Staff
Peterborough City Council,Financial Services,Finance,Agency Staff,05/12/2018,30205564,671.20,Revenue,Reed Specialist Recruitment Limited,External Temporary Staff
Peterborough City Council,Adults,Strategic Commissioning - Management,Agency Staff,05/12/2018,30205567,836.88,Revenue,Reed Specialist Recruitment Limited,External Temporary Staff
Peterborough City Council,Commissioning and Commercial Operations,Clare Lodge,Agency Staff,05/12/2018,30205572,687.61,Revenue,Reed Specialist Recruitment Limited,External Temporary Staff
Peterborough City Council,Peterborough Highway Services,Highway Services - HoS,Agency Staff,05/12/2018,30205573,846.85,Revenue,Reed Specialist Recruitment Limited,External Temporary Staff
Peterborough City Council,Development and Construction,Development Management,Agency Staff,05/12/2018,30205574,1568.80,Revenue,Reed Specialist Recruitment Limited,External Temporary Staff
Peterborough City Council,Regulatory Services,Regulatory Services,Agency Staff,05/12/2018,30205579,1224.93,Revenue,Reed Specialist Recruitment Limited,External Temporary Staff
Peterborough City Council,Corporate,Corporate,Non Revenue,05/12/2018,30205589,633327.35,Balance Sheet,Teachers Pensions,Pensions
Peterborough City Council,Children's & Safeguarding,Access to Resources & Specialist Commissioning,Services,05/12/2018,30205603,2572.70,Revenue,Key2 Futures Limited,Boarding Out Fees
Peterborough City Council,Children's & Safeguarding,Access to Resources & Specialist Commissioning,Services,05/12/2018,30205604,3067.45,Revenue,Key2 Futures Limited,Boarding Out Fees
Peterborough City Council,Children's & Safeguarding,Access to Resources & Specialist Commissioning,Services,05/12/2018,30205606,3067.45,Revenue,Key2 Futures Limited,Boarding Out Fees
Peterborough City Council,Children's & Safeguarding,Access to Resources & Specialist Commissioning,Services,05/12/2018,30205607,2176.90,Revenue,Key2 Futures Limited,Boarding Out Fees
Peterborough City Council,Children's & Safeguarding,Access to Resources & Specialist Commissioning,Services,05/12/2018,30205608,3082.33,Revenue,Key2 Futures Limited,Boarding Out Fees
Peterborough City Council,Children's & Safeguarding,Access to Resources & Specialist Commissioning,Services,05/12/2018,30205609,2968.50,Revenue,Key2 Futures Limited,Boarding Out Fees
Peterborough City Council,Children's & Safeguarding,Access to Resources & Specialist Commissioning,Services,05/12/2018,30205610,2968.50,Revenue,Key2 Futures Limited,Boarding Out Fees
Peterborough City Council,Children's & Safeguarding,Access to Resources & Specialist Commissioning,Services,05/12/2018,30205611,3067.45,Revenue,Key2 Futures Limited,Boarding Out Fees
Peterborough City Council,Children's & Safeguarding,Access to Resources & Specialist Commissioning,Services,05/12/2018,30205612,3067.45,Revenue,Key2 Futures Limited,Boarding Out Fees
Peterborough City Council,Children's & Safeguarding,Access to Resources & Specialist Commissioning,Services,05/12/2018,30205613,3067.45,Revenue,Key2 Futures Limited,Boarding Out Fees
Peterborough City Council,Children's & Safeguarding,Access to Resources & Specialist Commissioning,Services,05/12/2018,30205614,3082.33,Revenue,Key2 Futures Limited,Boarding Out Fees
Peterborough City Council,Communities,Housing,Services,05/12/2018,30205615,2275.00,Revenue,Singh and Sons Property Management Ltd,Temporary Accommodation Costs
Peterborough City Council,Communities,Housing,Services,05/12/2018,30205616,3220.00,Revenue,Singh and Sons Property Management Ltd,Temporary Accommodation Costs
Peterborough City Council,Communities,Housing,Services,05/12/2018,30205617,3150.00,Revenue,Singh and Sons Property Management Ltd,Temporary Accommodation Costs
Peterborough City Council,Communities,Housing,Services,05/12/2018,30205619,2975.00,Revenue,Singh and Sons Property Management Ltd,Temporary Accommodation Costs
Peterborough City Council,Communities,Cohesion,Services,05/12/2018,30205621,575.00,Revenue,Redacted Personal Information,Financial Assistance
Peterborough City Council,Public Health,PH Commissioning,Third Party Payments,05/12/2018,30205622,68697.41,Revenue,Solutions 4 Health Ltd,Third Party Payments - Contract
Peterborough City Council,Communities,Cohesion,Services,05/12/2018,30205623,800.00,Revenue,Rightroom Lettings Ltd,Financial Assistance
Peterborough City Council,Communities,Cohesion,Services,05/12/2018,30205624,750.00,Revenue,Redacted Personal Information,Financial Assistance
Peterborough City Council,Communities,Cohesion,Services,05/12/2018,30205625,625.00,Revenue,Record Property Solutions,Financial Assistance
Peterborough City Council,Communities,Cohesion,Services,05/12/2018,30205632,575.00,Revenue,Record Property Solutions,Financial Assistance
Peterborough City Council,Communities,Cohesion,Services,05/12/2018,30205638,625.00,Revenue,Record Property Solutions,Financial Assistance
Peterborough City Council,Communities,Cohesion,Services,05/12/2018,30205639,625.00,Revenue,Rightroom Lettings Ltd,Financial Assistance
Peterborough City Council,Communities,Cohesion,Services,05/12/2018,30205640,800.00,Revenue,Hope Into Action,Financial Assistance
Peterborough City Council,Communities,Cohesion,Services,05/12/2018,30205641,750.00,Revenue,Redacted Personal Information,Financial Assistance
Peterborough City Council,Adults,Independent Sector Placements,Services,05/12/2018,30205643,1236.72,Revenue,PHILIA LODGE REST HOME,Residential Care
Peterborough City Council,Adults,Independent Sector Placements,Services,05/12/2018,30205644,1822.20,Revenue,PHILIA LODGE REST HOME,Residential Care
Peterborough City Council,Adults,Independent Sector Placements,Services,05/12/2018,30205645,2648.00,Revenue,PHILIA LODGE REST HOME,Residential Care
Peterborough City Council,Adults,Independent Sector Placements,Services,05/12/2018,30205648,2648.00,Revenue,PHILIA LODGE REST HOME,Residential Care
Peterborough City Council,Adults,Independent Sector Placements,Services,05/12/2018,30205649,2648.00,Revenue,PHILIA LODGE REST HOME,Residential Care
Peterborough City Council,Adults,Independent Sector Placements,Services,05/12/2018,30205650,1490.24,Revenue,STAR RESIDENTIAL HOME LTD,Residential Care
Peterborough City Council,Adults,Independent Sector Placements,Services,05/12/2018,30205651,2680.24,Revenue,STAR RESIDENTIAL HOME LTD,Residential Care
Peterborough City Council,Adults,Independent Sector Placements,Services,05/12/2018,30205652,3233.44,Revenue,STAR RESIDENTIAL HOME LTD,Residential Care
Peterborough City Council,Adults,Independent Sector Placements,Services,05/12/2018,30205653,2354.56,Revenue,STAR RESIDENTIAL HOME LTD,Residential Care
Peterborough City Council,Adults,Independent Sector Placements,Services,05/12/2018,30205654,2580.04,Revenue,STAR RESIDENTIAL HOME LTD,Residential Care
Peterborough City Council,Adults,Independent Sector Placements,Services,05/12/2018,30205655,3233.44,Revenue,STAR RESIDENTIAL HOME LTD,Residential Care
Peterborough City Council,Adults,Independent Sector Placements,Services,05/12/2018,30205656,2776.84,Revenue,STAR RESIDENTIAL HOME LTD,Residential Care
Peterborough City Council,Adults,Independent Sector Placements,Services,05/12/2018,30205657,2824.44,Revenue,STAR RESIDENTIAL HOME LTD,Residential Care
Peterborough City Council,Adults,Independent Sector Placements,Services,05/12/2018,30205658,2684.04,Revenue,STAR RESIDENTIAL HOME LTD,Residential Care
Peterborough City Council,Adults,Independent Sector Placements,Services,05/12/2018,30205661,2542.00,Revenue,STAR RESIDENTIAL HOME LTD,Residential Care
Peterborough City Council,Adults,Independent Sector Placements,Services,05/12/2018,30205662,2685.04,Revenue,STAR RESIDENTIAL HOME LTD,Residential Care
Peterborough City Council,Adults,Independent Sector Placements,Services,05/12/2018,30205663,2651.80,Revenue,STAR RESIDENTIAL HOME LTD,Residential Care
Peterborough City Council,Adults,Independent Sector Placements,Services,05/12/2018,30205664,2867.96,Revenue,STAR RESIDENTIAL HOME LTD,Residential Care
Peterborough City Council,Adults,Independent Sector Placements,Services,05/12/2018,30205672,-1390.00,Revenue,Park Vista Care Home,Residential Care
Peterborough City Council,Adults,Independent Sector Placements,Services,05/12/2018,30205673,1131.53,Revenue,Park Vista Care Home,Residential Care
Peterborough City Council,Adults,Independent Sector Placements,Services,05/12/2018,30205674,-3517.43,Revenue,Park Vista Care Home,Residential Care
Peterborough City Council,Adults,Independent Sector Placements,Services,05/12/2018,30205676,-1083.85,Revenue,Park Vista Care Home,Residential Care
Peterborough City Council,Adults,Independent Sector Placements,Services,05/12/2018,30205678,-910.94,Revenue,Park Vista Care Home,Residential Care
Peterborough City Council,Adults,Independent Sector Placements,Services,05/12/2018,30205679,-2057.14,Revenue,Park Vista Care Home,Residential Care
Peterborough City Council,Adults,Independent Sector Placements,Services,05/12/2018,30205692,1386.15,Revenue,Hales Group Ltd,Home Care
Peterborough City Council,Adults,Independent Sector Placements,Services,05/12/2018,30205693,640.20,Revenue,Hales Group Ltd,Home Care
Peterborough City Council,Adults,Independent Sector Placements,Services,05/12/2018,30205702,2648.00,Revenue,PHILIA LODGE REST HOME,Residential Care
Peterborough City Council,Adults,Independent Sector Placements,Services,05/12/2018,30205703,2648.00,Revenue,PHILIA LODGE REST HOME,Residential Care
Peterborough City Council,Adults,Independent Sector Placements,Services,05/12/2018,30205708,1674.44,Revenue,PHILIA LODGE REST HOME,Residential Care
Peterborough City Council,Adults,Independent Sector Placements,Services,05/12/2018,30205709,2648.00,Revenue,PHILIA LODGE REST HOME,Residential Care
Peterborough City Council,Adults,Independent Sector Placements,Services,05/12/2018,30205710,1975.60,Revenue,PHILIA LODGE REST HOME,Residential Care
Peterborough City Council,Communities,Cultural Services,Services,05/12/2018,30205719,2000.00,Revenue,Peterborough Centre for Young Musicians,Hired Services
Peterborough City Council,Communities,Cultural Services,Services,05/12/2018,30205721,640.00,Revenue,Peterborough Centre for Young Musicians,Hired Services
Peterborough City Council,Adults,Independent Sector Placements,Services,05/12/2018,30205722,1757.80,Revenue,FIELD HOUSE (EYE) LTD,Residential Care
Peterborough City Council,Communities,Cultural Services,Services,05/12/2018,30205723,2800.00,Revenue,Peterborough Centre for Young Musicians,Hired Services
Peterborough City Council,Adults,Independent Sector Placements,Services,05/12/2018,30205724,1747.60,Revenue,FIELD HOUSE (EYE) LTD,Residential Care
Peterborough City Council,Communities,Cultural Services,Services,05/12/2018,30205725,700.00,Revenue,Peterborough Centre for Young Musicians,Hired Services
Peterborough City Council,Communities,Cultural Services,Services,05/12/2018,30205728,700.00,Revenue,Peterborough Centre for Young Musicians,Hired Services
Peterborough City Council,Children's & Safeguarding,CSC Quality Assurance,Contract Hire and Operating Leases,05/12/2018,30205735,4937.20,Revenue,Northumbria Healthcare NHS Foundation Trust,Leasing Charges
Peterborough City Council,Communities,Housing,Contract Hire and Operating Leases,05/12/2018,30205736,3274.82,Revenue,Northumbria Healthcare NHS Foundation Trust,Leasing Charges
Peterborough City Council,Education,School Standards & Effectiveness,Contract Hire and Operating Leases,05/12/2018,30205737,3604.82,Revenue,Northumbria Healthcare NHS Foundation Trust,Leasing Charges
Peterborough City Council,ICT,ICT,Services,05/12/2018,30205739,75960.03,Revenue,Amazon Web Services Inc.,Computer Software
Peterborough City Council,Adults,Independent Sector Placements,Services,05/12/2018,30205747,-637.52,Revenue,Bee's Care Ltd,Home Care
Peterborough City Council,Adults,Independent Sector Placements,Services,05/12/2018,30205756,1200.00,Revenue,FIELD HOUSE (EYE) LTD,Residential Care
Peterborough City Council,Adults,Independent Sector Placements,Services,05/12/2018,30205766,1295.20,Revenue,FIELD HOUSE (EYE) LTD,Residential Care
Peterborough City Council,Adults,Independent Sector Placements,Services,05/12/2018,30205767,559.32,Revenue,FIELD HOUSE (EYE) LTD,Residential Care
Peterborough City Council,Adults,Home Services Delivery Model,Agency Staff,05/12/2018,30205768,1094.64,Revenue,Reed Specialist Recruitment Limited,External Temporary Staff
Peterborough City Council,Adults,Independent Sector Placements,Services,05/12/2018,30205787,6942.86,Revenue,FIELD HOUSE (EYE) LTD,Residential Care
Peterborough City Council,Corporate,Corporate,Non Revenue,05/12/2018,30205793,898.97,Balance Sheet,The Prudential Assurance Company Ltd,Pensions
Peterborough City Council,Corporate,Corporate,Non Revenue,05/12/2018,30205796,5271.57,Balance Sheet,The Prudential Assurance Company Ltd,Pensions
Peterborough City Council,Adults,Independent Sector Placements,Services,05/12/2018,8000129702,526.20,Revenue,MEARS GROUP,Home Care
Peterborough City Council,Adults,Independent Sector Placements,Social Services,05/12/2018,8000130865,1012.10,Revenue,Redacted Personal Information,Direct Payments
Peterborough City Council,Adults,Independent Sector Placements,Social Services,05/12/2018,8000130867,989.26,Revenue,Redacted Personal Information,Direct Payments
Peterborough City Council,Adults,Independent Sector Placements,Social Services,05/12/2018,8000130868,1260.41,Revenue,Redacted Personal Information,Direct Payments
Peterborough City Council,Adults,Independent Sector Placements,Social Services,05/12/2018,8000130871,560.10,Revenue,Redacted Personal Information,Direct Payments
Peterborough City Council,Adults,Independent Sector Placements,Social Services,05/12/2018,8000130874,652.68,Revenue,Redacted Personal Information,Direct Payments
Peterborough City Council,Adults,Independent Sector Placements,Social Services,05/12/2018,8000130875,534.68,Revenue,Redacted Personal Information,Direct Payments
Peterborough City Council,Adults,Independent Sector Placements,Social Services,05/12/2018,8000130877,543.20,Revenue,Redacted Personal Information,Direct Payments
Peterborough City Council,Adults,Independent Sector Placements,Social Services,05/12/2018,8000130878,690.48,Revenue,Redacted Personal Information,Direct Payments
Peterborough City Council,Adults,Independent Sector Placements,Social Services,05/12/2018,8000130879,5132.00,Revenue,Redacted Personal Information,Direct Payments
Peterborough City Council,Adults,Independent Sector Placements,Social Services,05/12/2018,8000130880,6182.33,Revenue,Redacted Personal Information,Direct Payments
Peterborough City Council,Adults,Independent Sector Placements,Social Services,05/12/2018,8000130881,3350.49,Revenue,Redacted Personal Information,Direct Payments
Peterborough City Council,Adults,Independent Sector Placements,Social Services,05/12/2018,8000130882,758.86,Revenue,Redacted Personal Information,Direct Payments
Peterborough City Council,Adults,Independent Sector Placements,Social Services,05/12/2018,8000130883,5029.50,Revenue,Redacted Personal Information,Direct Payments
Peterborough City Council,Adults,Independent Sector Placements,Social Services,05/12/2018,8000130884,1880.00,Revenue,Redacted Personal Information,Direct Payments
Peterborough City Council,Adults,Independent Sector Placements,Social Services,05/12/2018,8000130885,593.76,Revenue,Redacted Personal Information,Direct Payments
Peterborough City Council,Adults,Independent Sector Placements,Social Services,05/12/2018,8000130886,641.30,Revenue,Redacted Personal Information,Direct Payments
Peterborough City Council,Adults,Independent Sector Placements,Social Services,05/12/2018,8000130887,551.58,Revenue,Redacted Personal Information,Direct Payments
Peterborough City Council,Children's & Safeguarding,Commissioning - CSC,Third Party Payments,05/12/2018,8000132589,610113.33,Revenue,IAS TACT,Third Party Payments - Contract
Peterborough City Council,Adults,Independent Sector Placements,Services,07/12/2018,30202477,3680.00,Revenue,Richmond Fellowship (The),Residential Care
Peterborough City Council,Legal Services,Legal Services,Services,07/12/2018,30202481,635.00,Revenue,"Elliott, Ms Margot",Legal Costs
Peterborough City Council,Commissioning and Commercial Operations,Clare Lodge,Agency Staff,07/12/2018,30202535,544.00,Revenue,Wrixon Care Services,External Temporary Staff
Peterborough City Council,Commissioning and Commercial Operations,Clare Lodge,Agency Staff,07/12/2018,30202536,504.00,Revenue,Wrixon Care Services,External Temporary Staff
Peterborough City Council,Legal Services,Legal Services,Services,07/12/2018,30202898,3475.00,Revenue,"Newport, Mr Ian",Legal Costs
Peterborough City Council,Commissioning and Commercial Operations,Clare Lodge,Agency Staff,07/12/2018,30203103,1888.00,Revenue,Wrixon Care Services,External Temporary Staff
Peterborough City Council,Commissioning and Commercial Operations,Clare Lodge,Agency Staff,07/12/2018,30203104,1920.00,Revenue,Wrixon Care Services,External Temporary Staff
Peterborough City Council,Commissioning and Commercial Operations,Clare Lodge,Agency Staff,07/12/2018,30203105,1472.00,Revenue,Wrixon Care Services,External Temporary Staff
Peterborough City Council,Commissioning and Commercial Operations,Clare Lodge,Agency Staff,07/12/2018,30203106,1944.00,Revenue,Wrixon Care Services,External Temporary Staff
Peterborough City Council,Commissioning and Commercial Operations,Clare Lodge,Agency Staff,07/12/2018,30203107,1952.00,Revenue,Wrixon Care Services,External Temporary Staff
Peterborough City Council,Adults,Independent Sector Placements,Services,07/12/2018,30203138,982.12,Revenue,Goldcare Homes t/a The Tudors Care Home,Residential Care
Peterborough City Council,Adults,Independent Sector Placements,Services,07/12/2018,30203139,1517.28,Revenue,Goldcare Homes t/a The Tudors Care Home,Residential Care
Peterborough City Council,Adults,Independent Sector Placements,Services,07/12/2018,30203140,2021.88,Revenue,Goldcare Homes t/a The Tudors Care Home,Residential Care
Peterborough City Council,Adults,Independent Sector Placements,Services,07/12/2018,30203142,1703.04,Revenue,Goldcare Homes t/a The Tudors Care Home,Residential Care
Peterborough City Council,Adults,Independent Sector Placements,Services,07/12/2018,30203144,1776.24,Revenue,Goldcare Homes t/a The Tudors Care Home,Residential Care
Peterborough City Council,Adults,Independent Sector Placements,Services,07/12/2018,30203145,2300.00,Revenue,Goldcare Homes t/a The Tudors Care Home,Residential Care
Peterborough City Council,Adults,Independent Sector Placements,Services,07/12/2018,30203146,1020.04,Revenue,Goldcare Homes t/a The Tudors Care Home,Residential Care
Peterborough City Council,Children's & Safeguarding,External Education Placements,Services,07/12/2018,30203168,25451.07,Revenue,Park House School,Boarding Out Fees
Peterborough City Council,Children's & Safeguarding,External Education Placements,Services,07/12/2018,30203169,19265.67,Revenue,Park House School,Boarding Out Fees
Peterborough City Council,Children's & Safeguarding,External Education Placements,Services,07/12/2018,30203170,28114.52,Revenue,Park House School,Boarding Out Fees
Peterborough City Council,Children's & Safeguarding,External Education Placements,Services,07/12/2018,30203172,19766.69,Revenue,Park House School,Boarding Out Fees
Peterborough City Council,Children's & Safeguarding,External Education Placements,Services,07/12/2018,30203174,19265.78,Revenue,Park House School,Boarding Out Fees
Peterborough City Council,Children's & Safeguarding,External Education Placements,Services,07/12/2018,30203176,19265.78,Revenue,Park House School,Boarding Out Fees
Peterborough City Council,Children's & Safeguarding,External Education Placements,Services,07/12/2018,30203178,28146.59,Revenue,Park House School,Boarding Out Fees
Peterborough City Council,Children's & Safeguarding,External Education Placements,Services,07/12/2018,30203179,20317.60,Revenue,Park House School,Boarding Out Fees
Peterborough City Council,Adults,Independent Sector Placements,Services,07/12/2018,30203553,2535.48,Revenue,Kemps Place Ltd,Residential Care
Peterborough City Council,Adults,Independent Sector Placements,Services,07/12/2018,30203554,1094.56,Revenue,Kemps Place Ltd,Residential Care
Peterborough City Council,Adults,Independent Sector Placements,Services,07/12/2018,30203555,2735.48,Revenue,Kemps Place Ltd,Residential Care
Peterborough City Council,Adults,Block Contracts,Third Party Payments,07/12/2018,30203651,6894.96,Revenue,Axiom Housing Association Ltd,Third Party Payments - Contract
Peterborough City Council,Adults,Independent Sector Placements,Services,07/12/2018,30203723,908.83,Revenue,Sense,Day Care
Peterborough City Council,Adults,Independent Sector Placements,Services,07/12/2018,30203724,4967.20,Revenue,Sense,Day Care
Peterborough City Council,Adults,Independent Sector Placements,Services,07/12/2018,30203725,2548.12,Revenue,Sense,Day Care
Peterborough City Council,Adults,Independent Sector Placements,Services,07/12/2018,30203727,3203.68,Revenue,Sense,Day Care
Peterborough City Council,Adults,Independent Sector Placements,Services,07/12/2018,30203728,1431.52,Revenue,Sense,Day Care
Peterborough City Council,Adults,Independent Sector Placements,Services,07/12/2018,30203731,5339.44,Revenue,Sense,Day Care
Peterborough City Council,Adults,Independent Sector Placements,Services,07/12/2018,30203734,4967.20,Revenue,Sense,Day Care
Peterborough City Council,Adults,Independent Sector Placements,Services,07/12/2018,30203735,1754.96,Revenue,Sense,Day Care
Peterborough City Council,Adults,Independent Sector Placements,Services,07/12/2018,30203736,599.04,Revenue,Sense,Day Care
Peterborough City Council,Adults,Independent Sector Placements,Services,07/12/2018,30203737,2757.12,Revenue,Sense,Day Care
Peterborough City Council,Adults,Independent Sector Placements,Services,07/12/2018,30203738,4967.20,Revenue,Sense,Day Care
Peterborough City Council,Adults,Independent Sector Placements,Services,07/12/2018,30203751,4632.04,Revenue,PossAbilities CIC,Home Care
Peterborough City Council,Adults,Independent Sector Placements,Services,07/12/2018,30203753,4632.04,Revenue,PossAbilities CIC,Home Care
Peterborough City Council,Adults,Independent Sector Placements,Services,07/12/2018,30203758,1021.12,Revenue,Sense,Day Care
Peterborough City Council,Adults,Independent Sector Placements,Services,07/12/2018,30203759,585.04,Revenue,Sense,Day Care
Peterborough City Council,Adults,Independent Sector Placements,Services,07/12/2018,30203760,3712.40,Revenue,Sense,Day Care
Peterborough City Council,Adults,Independent Sector Placements,Services,07/12/2018,30203761,2552.80,Revenue,Sense,Day Care
Peterborough City Council,Adults,Independent Sector Placements,Services,07/12/2018,30203762,5400.00,Revenue,Sense,Day Care
Peterborough City Council,Adults,Independent Sector Placements,Services,07/12/2018,30203805,818.64,Revenue,Sense,Home Care
Peterborough City Council,Westcombe Engineering,Westcombe Engineering,"Tools, Equipment, Furniture & Materials",07/12/2018,30203830,3473.10,Revenue,AALCO,Materials
Peterborough City Council,Adults,Independent Sector Placements,Services,07/12/2018,30203831,1012.32,Revenue,Sense,Home Care
Peterborough City Council,Adults,Day opportunities - Older People,Agency Staff,07/12/2018,30203843,5470.08,Revenue,Commercial Services Trading Limited,External Temporary Staff
Peterborough City Council,Westcombe Engineering,Westcombe Engineering,"Tools, Equipment, Furniture & Materials",07/12/2018,30203891,591.25,Revenue,Barron Clark Castings Ltd,Materials
Peterborough City Council,Westcombe Engineering,Westcombe Engineering,"Tools, Equipment, Furniture & Materials",07/12/2018,30203892,607.92,Revenue,Barron Clark Castings Ltd,Materials
Peterborough City Council,Westcombe Engineering,Westcombe Engineering,"Tools, Equipment, Furniture & Materials",07/12/2018,30203894,1520.80,Revenue,Barron Clark Castings Ltd,Materials
Peterborough City Council,Commissioning and Commercial Operations,Clare Lodge,Agency Staff,07/12/2018,30203924,1760.00,Revenue,Wrixon Care Services,External Temporary Staff
Peterborough City Council,Adults,Independent Sector Placements,Services,07/12/2018,30203945,1797.80,Revenue,THE LODGE TRUST,Residential Care
Peterborough City Council,Children's & Safeguarding,External Education Placements,Services,07/12/2018,30204028,3147.63,Revenue,Ethelbert Childrens Services,Boarding Out Fees
Peterborough City Council,Westcombe Engineering,Westcombe Engineering,"Tools, Equipment, Furniture & Materials",07/12/2018,30204037,812.24,Revenue,Carillon Industrial Services Ltd,Tools
Peterborough City Council,Education,Special Educational Needs / Inclusion,Services,07/12/2018,30204058,2012.50,Revenue,Priory Hospital School Priory,Boarding Out Fees
Peterborough City Council,Communities,Housing,Services,07/12/2018,30204062,12457.52,Revenue,DA Rosalia Hotel,Temporary Accommodation Costs
Peterborough City Council,Commissioning and Commercial Operations,Clare Lodge,Agency Staff,07/12/2018,30204079,1872.00,Revenue,Wrixon Care Services,External Temporary Staff
Peterborough City Council,Westcombe Engineering,Westcombe Engineering,"Tools, Equipment, Furniture & Materials",07/12/2018,30204095,667.52,Revenue,Barron Clark Castings Ltd,Materials
Peterborough City Council,Westcombe Engineering,Westcombe Engineering,"Tools, Equipment, Furniture & Materials",07/12/2018,30204105,988.00,Revenue,Barron Clark Castings Ltd,Materials
Peterborough City Council,Education,Special Educational Needs / Inclusion,Services,07/12/2018,30204141,3200.00,Revenue,ELYSIUM HEALTHCARE LTD,Boarding Out Fees
Peterborough City Council,Children's & Safeguarding,Access to Resources & Specialist Commissioning,Services,07/12/2018,30204253,840.00,Revenue,Florinee Homes Ltd,Boarding Out Fees
Peterborough City Council,Children's & Safeguarding,Access to Resources & Specialist Commissioning,Services,07/12/2018,30204254,1980.00,Revenue,Florinee Homes Ltd,Boarding Out Fees
Peterborough City Council,Children's & Safeguarding,Access to Resources & Specialist Commissioning,Services,07/12/2018,30204256,1980.00,Revenue,Florinee Homes Ltd,Boarding Out Fees
Peterborough City Council,Children's & Safeguarding,Access to Resources & Specialist Commissioning,Services,07/12/2018,30204366,840.00,Revenue,Florinee Homes Ltd,Boarding Out Fees
Peterborough City Council,Adults,Independent Sector Placements,Services,07/12/2018,30204398,660.00,Revenue,Anchor Trust,Residential Care
Peterborough City Council,Communities,Housing,Services,07/12/2018,30204578,9726.50,Revenue,Eastfield Guesthouse,Temporary Accommodation Costs
Peterborough City Council,Communities,Housing,Services,07/12/2018,30204581,11438.00,Revenue,Eastfield Guesthouse,Temporary Accommodation Costs
Peterborough City Council,Children's & Safeguarding,Access to Resources & Specialist Commissioning,Services,07/12/2018,30204586,1980.00,Revenue,Florinee Homes Ltd,Boarding Out Fees
Peterborough City Council,Children's & Safeguarding,Access to Resources & Specialist Commissioning,Services,07/12/2018,30204592,2400.00,Revenue,Florinee Homes Ltd,Boarding Out Fees
Peterborough City Council,Corporate,Corporate,Non Revenue,07/12/2018,30204667,768.33,Capital,Allworks Home Improvements Ltd,Grant Payment
Peterborough City Council,Peterborough Serco Strategic Partnership,PSSP Retained Services,Services,07/12/2018,30204668,2135.51,Revenue,Whistl UK Ltd,Postage
Peterborough City Council,Communities,Other Enforcement,"Tools, Equipment, Furniture & Materials",07/12/2018,30204678,649.41,Revenue,Uniform Express,Uniform/Protective Clothing
Peterborough City Council,Adults,Independent Sector Placements,Services,07/12/2018,30204956,-947.18,Revenue,Goldcare Homes t/a The Tudors Care Home,Residential Care
Peterborough City Council,Children's & Safeguarding,Children's Social Care,Services,07/12/2018,30205285,679.00,Revenue,Redacted Personal Information,Financial Assistance
Peterborough City Council,Corporate,Corporate,Non Revenue,07/12/2018,30205288,550.00,Balance Sheet,Redacted Personal Information,Insurance Claims
Peterborough City Council,Corporate,Corporate,Non Revenue,07/12/2018,30205443,246892.43,Capital,R G Carter Cambridge Ltd,Building And Site Works
Peterborough City Council,Adults,Strategic Commissioning - Management,Agency Staff,07/12/2018,30205503,637.98,Revenue,Reed Specialist Recruitment Limited,External Temporary Staff
Peterborough City Council,Communities,Housing,Agency Staff,07/12/2018,30205522,1822.51,Revenue,Reed Specialist Recruitment Limited,External Temporary Staff
Peterborough City Council,Adults,Strategic Commissioning - Management,Agency Staff,07/12/2018,30205576,871.66,Revenue,Reed Specialist Recruitment Limited,External Temporary Staff
Peterborough City Council,Commissioning and Commercial Operations,Commissioning Team,Agency Staff,07/12/2018,30205578,2243.60,Revenue,Reed Specialist Recruitment Limited,External Temporary Staff
Peterborough City Council,Corporate,Corporate,Non Revenue,07/12/2018,30205592,700.00,Capital,Hampton Community And Sports Association,Grant Payment
Peterborough City Council,Corporate,Corporate,Non Revenue,07/12/2018,30205593,600.00,Capital,Top Yard School of Boxing,Grant Payment
Peterborough City Council,Corporate,Corporate,Non Revenue,07/12/2018,30205595,600.00,Capital,Gladstone Connect Ltd,Grant Payment
Peterborough City Council,Adults,Independent Sector Placements,Services,07/12/2018,30205733,1827.32,Revenue,Ashmere,Residential Care
Peterborough City Council,Adults,Finance,Third Party Payments,07/12/2018,30205823,4800.00,Revenue,Cross Keys Homes,Third Party Payments - Contract
Peterborough City Council,Adults,Independent Sector Placements,Services,07/12/2018,30205878,7927.52,Revenue,Fins Care Ltd t/a St Margarets Rest Home,Residential Care
Peterborough City Council,Adults,Independent Sector Placements,Services,07/12/2018,30205879,3968.16,Revenue,Fins Care Ltd t/a St Margarets Rest Home,Residential Care
Peterborough City Council,Adults,Independent Sector Placements,Services,07/12/2018,30205880,4777.44,Revenue,Fins Care Ltd t/a St Margarets Rest Home,Residential Care
Peterborough City Council,Adults,Independent Sector Placements,Services,07/12/2018,30205881,5584.16,Revenue,Fins Care Ltd t/a St Margarets Rest Home,Residential Care
Peterborough City Council,Adults,Independent Sector Placements,Services,07/12/2018,30205882,13649.24,Revenue,Fins Care Ltd t/a St Margarets Rest Home,Residential Care
Peterborough City Council,Adults,Independent Sector Placements,Services,07/12/2018,30205883,6897.12,Revenue,Fins Care Ltd t/a St Margarets Rest Home,Residential Care
Peterborough City Council,Adults,Independent Sector Placements,Services,07/12/2018,30205885,7927.52,Revenue,Fins Care Ltd t/a St Margarets Rest Home,Residential Care
Peterborough City Council,Adults,Independent Sector Placements,Services,07/12/2018,30205887,4007.20,Revenue,Fins Care Ltd t/a St Margarets Rest Home,Residential Care
Peterborough City Council,Adults,Independent Sector Placements,Services,07/12/2018,30205888,5077.92,Revenue,Fins Care Ltd t/a St Margarets Rest Home,Residential Care
Peterborough City Council,Adults,Independent Sector Placements,Services,07/12/2018,30205890,4392.48,Revenue,Fins Care Ltd t/a St Margarets Rest Home,Residential Care
Peterborough City Council,Adults,Home Services Delivery Model,Agency Staff,07/12/2018,30205891,1109.93,Revenue,Reed Specialist Recruitment Limited,External Temporary Staff
Peterborough City Council,Legal Services,Legal Services,Agency Staff,07/12/2018,30205894,1909.51,Revenue,Reed Specialist Recruitment Limited,External Temporary Staff
Peterborough City Council,Adults,Strategic Commissioning - Management,Agency Staff,07/12/2018,30205904,664.28,Revenue,Reed Specialist Recruitment Limited,External Temporary Staff
Peterborough City Council,Adults,Independent Sector Placements,Services,07/12/2018,30205940,3767.20,Revenue,Community Care Solutions Ltd,Residential Care
Peterborough City Council,Adults,Independent Sector Placements,Services,07/12/2018,30205941,1892.00,Revenue,Community Care Solutions Ltd,Residential Care
Peterborough City Council,Adults,Independent Sector Placements,Services,07/12/2018,30205942,3784.00,Revenue,Community Care Solutions Ltd,Residential Care
Peterborough City Council,Adults,Independent Sector Placements,Services,07/12/2018,30205946,-791.76,Revenue,Peterborough Care  The Maltings,Residential Care
Peterborough City Council,Adults,Independent Sector Placements,Services,07/12/2018,30205948,3517.43,Revenue,BROADLEIGH NURSING HOME,Residential Care
Peterborough City Council,Adults,Independent Sector Placements,Services,07/12/2018,30205949,771.12,Revenue,Axiom Housing Association Ltd,Home Care
Peterborough City Council,Adults,Independent Sector Placements,Services,07/12/2018,30205950,3357.14,Revenue,Longueville Court (Barchester),Residential Care
Peterborough City Council,Adults,Independent Sector Placements,Services,07/12/2018,30205951,2128.92,Revenue,Peterborough Care  The Maltings,Residential Care
Peterborough City Council,Adults,Independent Sector Placements,Services,07/12/2018,30205963,1517.24,Revenue,Country Court Care (Rose Lodge),Residential Care
Peterborough City Council,Adults,Independent Sector Placements,Services,07/12/2018,30205964,1458.80,Revenue,Country Court Care (Rose Lodge),Residential Care
Peterborough City Council,Adults,Independent Sector Placements,Services,07/12/2018,30205965,2778.80,Revenue,Country Court Care (Rose Lodge),Residential Care
Peterborough City Council,Corporate,Corporate,Non Revenue,07/12/2018,30205967,6729.00,Capital,Casbon Building Services,Grant Payment
Peterborough City Council,Corporate,Corporate,Non Revenue,07/12/2018,30205968,7091.93,Capital,Casbon Building Services,Grant Payment
Peterborough City Council,Corporate,Corporate,Non Revenue,07/12/2018,30205971,5148.00,Capital,Allworks Home Improvements Ltd,Grant Payment
Peterborough City Council,Corporate,Corporate,Non Revenue,07/12/2018,30205972,661.07,Capital,Casbon Building Services,Grant Payment
Peterborough City Council,Adults,Independent Sector Placements,Services,07/12/2018,30205973,1932.00,Revenue,SOCIAL CARE SOLUTIONS LTD,Home Care
Peterborough City Council,Corporate,Corporate,Non Revenue,07/12/2018,30205974,18600.00,Capital,Gaswise Services Ltd,Grant Payment
Peterborough City Council,Corporate,Corporate,Non Revenue,07/12/2018,30205975,650.00,Capital,Spotless {Cleaning Services},Grant Payment
Peterborough City Council,Adults,Independent Sector Placements,Services,07/12/2018,30205976,4463.20,Revenue,SOCIAL CARE SOLUTIONS LTD,Home Care
Peterborough City Council,Adults,Independent Sector Placements,Services,07/12/2018,30205977,3740.12,Revenue,SOCIAL CARE SOLUTIONS LTD,Home Care
Peterborough City Council,Adults,Independent Sector Placements,Services,07/12/2018,30205978,3295.50,Revenue,SOCIAL CARE SOLUTIONS LTD,Home Care
Peterborough City Council,Adults,Independent Sector Placements,Services,07/12/2018,30205979,3210.64,Revenue,SOCIAL CARE SOLUTIONS LTD,Home Care
Peterborough City Council,Adults,Independent Sector Placements,Services,07/12/2018,30205980,3767.20,Revenue,SOCIAL CARE SOLUTIONS LTD,Residential Care
Peterborough City Council,Adults,Independent Sector Placements,Services,07/12/2018,30205981,3767.20,Revenue,SOCIAL CARE SOLUTIONS LTD,Residential Care
Peterborough City Council,Adults,Independent Sector Placements,Services,07/12/2018,30205982,3767.20,Revenue,SOCIAL CARE SOLUTIONS LTD,Residential Care
Peterborough City Council,Adults,Independent Sector Placements,Services,07/12/2018,30205984,6674.40,Revenue,SOCIAL CARE SOLUTIONS LTD,Home Care
Peterborough City Council,Adults,Independent Sector Placements,Services,07/12/2018,30205985,5600.00,Revenue,SOCIAL CARE SOLUTIONS LTD,Residential Care
Peterborough City Council,Adults,Independent Sector Placements,Services,07/12/2018,30205986,8049.72,Revenue,SOCIAL CARE SOLUTIONS LTD,Residential Care
Peterborough City Council,Adults,Independent Sector Placements,Services,07/12/2018,30205988,3213.00,Revenue,SOCIAL CARE SOLUTIONS LTD,Home Care
Peterborough City Council,Adults,Independent Sector Placements,Services,07/12/2018,30205989,1645.06,Revenue,SOCIAL CARE SOLUTIONS LTD,Home Care
Peterborough City Council,Children's & Safeguarding,Access to Resources & Specialist Commissioning,Services,07/12/2018,30205996,3067.45,Revenue,Key2 Futures Limited,Boarding Out Fees
Peterborough City Council,Children's & Safeguarding,Access to Resources & Specialist Commissioning,Services,07/12/2018,30205997,2386.32,Revenue,Key2 Futures Limited,Boarding Out Fees
Peterborough City Council,Children's & Safeguarding,Access to Resources & Specialist Commissioning,Services,07/12/2018,30205998,2386.32,Revenue,Key2 Futures Limited,Boarding Out Fees
Peterborough City Council,Children's & Safeguarding,Access to Resources & Specialist Commissioning,Services,07/12/2018,30205999,3067.45,Revenue,Key2 Futures Limited,Boarding Out Fees
Peterborough City Council,Adults,Strategic Commissioning - Management,Agency Staff,07/12/2018,30206014,2953.60,Revenue,Reed Specialist Recruitment Limited,External Temporary Staff
Peterborough City Council,Adults,Independent Sector Placements,Services,07/12/2018,30206032,1971.43,Revenue,Goldcare Homes t/a The Tudors Care Home,Residential Care
Peterborough City Council,Adults,Independent Sector Placements,Services,07/12/2018,30206035,-657.18,Revenue,Goldcare Homes t/a The Tudors Care Home,Residential Care
Peterborough City Council,Communities,Housing,Services,07/12/2018,30206039,2560.00,Revenue,Tower Properties (Peterborough) Ltd,Temporary Accommodation Costs
Peterborough City Council,Corporate,Corporate,Non Revenue,07/12/2018,30206131,10116.00,Capital,M J Greaves,Grant Payment
Peterborough City Council,Parking Services,Parking Services,Services,07/12/2018,30206145,3000.00,Revenue,C N SECURITY,Security
Peterborough City Council,Children's & Safeguarding,Access to Resources & Specialist Commissioning,Services,07/12/2018,30206146,12400.00,Revenue,Horizon Care & Education Group,Boarding Out Fees
Peterborough City Council,Children's & Safeguarding,External Education Placements,Services,07/12/2018,30206147,1903.43,Revenue,Kirkstone House School,Out Of Area Education Costs
Peterborough City Council,Children's & Safeguarding,External Education Placements,Services,07/12/2018,30206148,1656.75,Revenue,Kirkstone House School,Boarding Out Fees
Peterborough City Council,ICT,ICT,Services,07/12/2018,30206151,70089.37,Revenue,Amazon Web Services Inc.,Computer Software
Peterborough City Council,Director,Director,Services,07/12/2018,30206167,2724.62,Revenue,Suffolk County Council,Contributions
Peterborough City Council,Peterborough Serco Strategic Partnership,Peterborough Serco Strategic Partnership,Services,07/12/2018,30206195,10767.14,Revenue,Capita Business Services Ltd,Computer Software
Peterborough City Council,Adults,Independent Sector Placements,Services,07/12/2018,8000131040,823.20,Revenue,Axiom Housing Association Ltd,Home Care
Peterborough City Council,Adults,Independent Sector Placements,Services,07/12/2018,8000131042,543.90,Revenue,Axiom Housing Association Ltd,Home Care
Peterborough City Council,Adults,Independent Sector Placements,Services,07/12/2018,8000131043,746.45,Revenue,Atlas Care Services Ltd,Home Care
Peterborough City Council,Adults,Independent Sector Placements,Services,07/12/2018,8000131044,693.91,Revenue,Atlas Care Services Ltd,Home Care
Peterborough City Council,Adults,Independent Sector Placements,Services,07/12/2018,8000131099,1704.96,Revenue,Allied Healthcare (UK) Ltd,Home Care
Peterborough City Council,Adults,Independent Sector Placements,Services,07/12/2018,8000131100,715.54,Revenue,Allied Healthcare (UK) Ltd,Home Care
Peterborough City Council,Adults,Independent Sector Placements,Services,07/12/2018,8000131102,1697.47,Revenue,Allied Healthcare (UK) Ltd,Home Care
Peterborough City Council,Adults,Independent Sector Placements,Services,07/12/2018,8000131103,605.38,Revenue,Allied Healthcare (UK) Ltd,Home Care
Peterborough City Council,Adults,Independent Sector Placements,Services,07/12/2018,8000131113,610.42,Revenue,Allied Healthcare (UK) Ltd,Home Care
Peterborough City Council,Adults,Independent Sector Placements,Services,07/12/2018,8000131114,618.05,Revenue,Allied Healthcare (UK) Ltd,Home Care
Peterborough City Council,Adults,Independent Sector Placements,Services,07/12/2018,8000131117,536.54,Revenue,Allied Healthcare (UK) Ltd,Home Care
Peterborough City Council,Adults,Independent Sector Placements,Services,07/12/2018,8000131119,2692.80,Revenue,Allied Healthcare (UK) Ltd,Home Care
Peterborough City Council,Adults,Independent Sector Placements,Services,07/12/2018,8000131130,893.25,Revenue,Hales Group Ltd,Home Care
Peterborough City Council,Adults,Independent Sector Placements,Services,07/12/2018,8000131133,881.10,Revenue,Hales Group Ltd,Home Care
Peterborough City Council,Adults,Independent Sector Placements,Services,07/12/2018,8000131134,973.20,Revenue,Hales Group Ltd,Home Care
Peterborough City Council,Adults,Independent Sector Placements,Services,07/12/2018,8000131135,1016.40,Revenue,Hales Group Ltd,Home Care
Peterborough City Council,Adults,Independent Sector Placements,Services,07/12/2018,8000131136,1314.30,Revenue,Hales Group Ltd,Home Care
Peterborough City Council,Adults,Independent Sector Placements,Services,07/12/2018,8000131137,562.35,Revenue,Hales Group Ltd,Home Care
Peterborough City Council,Adults,Independent Sector Placements,Services,07/12/2018,8000131154,2533.05,Revenue,Hales Group Ltd,Home Care
Peterborough City Council,Education,HTS & CSC Transport,Contract Hire and Operating Leases,07/12/2018,8000131211,1568.99,Revenue,Redacted Personal Information,Hired Transport
Peterborough City Council,Education,HTS & CSC Transport,Contract Hire and Operating Leases,07/12/2018,8000131212,1142.25,Revenue,Redacted Personal Information,Hired Transport
Peterborough City Council,Education,HTS & CSC Transport,Contract Hire and Operating Leases,07/12/2018,8000131213,1466.62,Revenue,Redacted Personal Information,Hired Transport
Peterborough City Council,Education,HTS & CSC Transport,Contract Hire and Operating Leases,07/12/2018,8000131215,1186.12,Revenue,Redacted Personal Information,Hired Transport
Peterborough City Council,Education,HTS & CSC Transport,Contract Hire and Operating Leases,07/12/2018,8000131216,1448.29,Revenue,Redacted Personal Information,Hired Transport
Peterborough City Council,Education,HTS & CSC Transport,Contract Hire and Operating Leases,07/12/2018,8000131219,1784.24,Revenue,Redacted Personal Information,Hired Transport
Peterborough City Council,Education,HTS & CSC Transport,Contract Hire and Operating Leases,07/12/2018,8000131220,514.87,Revenue,Redacted Personal Information,Hired Transport
Peterborough City Council,Corporate,Corporate,Non Revenue,07/12/2018,8000132589,145000.00,Capital,Sharman Quinney Home Conveyancing,Land/Building Acquisition
Peterborough City Council,Adults,Independent Sector Placements,Services,10/12/2018,30203721,986.45,Revenue,Park Vista Care Home,Residential Care
Peterborough City Council,Adults,Independent Sector Placements,Services,10/12/2018,30203754,3991.00,Revenue,Mencap,Residential Care
Peterborough City Council,Adults,Independent Sector Placements,Services,10/12/2018,30203755,29718.40,Revenue,Mencap,Home Care
Peterborough City Council,Adults,Independent Sector Placements,Services,10/12/2018,30203756,4896.60,Revenue,Mencap,Residential Care
Peterborough City Council,Adults,Independent Sector Placements,Services,10/12/2018,30203757,4591.60,Revenue,Mencap,Residential Care
Peterborough City Council,Adults,Independent Sector Placements,Services,10/12/2018,30203801,1699.32,Revenue,Park Vista Care Home,Residential Care
Peterborough City Council,Adults,Independent Sector Placements,Services,10/12/2018,30203803,1906.80,Revenue,Park Vista Care Home,Residential Care
Peterborough City Council,Adults,Independent Sector Placements,Services,10/12/2018,30203804,2121.54,Revenue,Park Vista Care Home,Residential Care
Peterborough City Council,Children's & Safeguarding,External Education Placements,Services,10/12/2018,30203898,66339.03,Revenue,Cambridgeshire County Council,Out Of Area Education Costs
Peterborough City Council,City Centre Management,"Markets, Tourism & Events",Services,10/12/2018,30203899,521.00,Revenue,C N SECURITY,Security
Peterborough City Council,Westcombe Engineering,Westcombe Engineering,"Tools, Equipment, Furniture & Materials",10/12/2018,30203902,1774.20,Revenue,AALCO,Materials
Peterborough City Council,Adults,Independent Sector Placements,Services,10/12/2018,30203946,1797.80,Revenue,THE LODGE TRUST,Residential Care
Peterborough City Council,Adults,Independent Sector Placements,Contract Hire and Operating Leases,10/12/2018,30203947,975.46,Revenue,Peterborough Cars,Hired Transport
Peterborough City Council,Adults,Independent Sector Placements,Contract Hire and Operating Leases,10/12/2018,30203948,630.00,Revenue,Peterborough Cars,Hired Transport
Peterborough City Council,Commissioning and Commercial Operations,Clare Lodge,"Tools, Equipment, Furniture & Materials",10/12/2018,30203986,8953.60,Revenue,Pineapple Contracts,Furniture And Equipment Purchase
Peterborough City Council,Children's & Safeguarding,Children's Social Care,Agency Staff,10/12/2018,30204002,1406.00,Revenue,NonStop Recruitment Ltd,External Temporary Staff
Peterborough City Council,Corporate,Corporate,Non Revenue,10/12/2018,30204035,500.00,Capital,Capita Business Services Ltd,Computer Software
Peterborough City Council,Commissioning and Commercial Operations,Commissioning Team,Interview & Training Expenses,10/12/2018,30204065,2335.00,Revenue,Scotwork UK Ltd,Training
Peterborough City Council,Westcombe Engineering,Westcombe Engineering,"Tools, Equipment, Furniture & Materials",10/12/2018,30204188,2811.24,Revenue,Dieselprods limited,Materials
Peterborough City Council,Education,HTS & CSC Transport,Contract Hire and Operating Leases,10/12/2018,30204264,1242.00,Revenue,Redacted Commercial Confidentiality,Hired Transport
Peterborough City Council,Communities,Other Enforcement,Services,10/12/2018,30204464,605.60,Revenue,Quadrant Security Group Ltd,Cctv
Peterborough City Council,Peterborough Highway Services,Network and Traffic Management,Services,10/12/2018,30204595,3856.07,Revenue,Dynniq UK Ltd,Infrastructure Maintenance
Peterborough City Council,Peterborough Highway Services,Network and Traffic Management,Services,10/12/2018,30204599,3981.03,Revenue,Dynniq UK Ltd,Infrastructure Maintenance
Peterborough City Council,Corporate,Corporate,Non Revenue,10/12/2018,30204611,1209.25,Capital,Palmer Building Solutions Ltd,Furniture And Equipment Purchase
Peterborough City Council,City Centre Management,"Markets, Tourism & Events",Services,10/12/2018,30204749,2689.84,Revenue,Enterprise Managed Services Limited,Street Cleaning
Peterborough City Council,Adults,Independent Sector Placements,Services,10/12/2018,30205729,-1065.00,Revenue,Mencap,Home Care
Peterborough City Council,Commissioning and Commercial Operations,Early Years & Quality Improvement,Services,10/12/2018,30205782,17726.68,Revenue,SDN Ltd t/a Stars Day Nursery Bushfield,Grant Payment
Peterborough City Council,Education,Service Director Education,Employee Costs,10/12/2018,30205798,29091.97,Revenue,Teachers Pensions,Pensions
Peterborough City Council,Communities,Housing,Services,10/12/2018,30206063,528.00,Revenue,Cross Keys Homes,Financial Assistance
Peterborough City Council,Communities,Housing,Services,10/12/2018,30206072,550.00,Revenue,Redacted Personal Information,Financial Assistance
Peterborough City Council,Communities,Housing,Services,10/12/2018,30206074,575.00,Revenue,Redacted Personal Information,Financial Assistance
Peterborough City Council,Communities,Housing,Services,10/12/2018,30206076,825.00,Revenue,Redacted Personal Information,Financial Assistance
Peterborough City Council,Communities,Housing,Services,10/12/2018,30206078,560.00,Revenue,RWP Property Management Ltd,Financial Assistance
Peterborough City Council,Communities,Housing,Services,10/12/2018,30206089,1275.00,Revenue,Oak County Property Management,Financial Assistance
Peterborough City Council,Communities,Housing,Services,10/12/2018,30206092,1340.00,Revenue,Property Line,Financial Assistance
Peterborough City Council,Communities,Housing,Services,10/12/2018,30206093,1000.00,Revenue,The Guinness Partnership,Financial Assistance
Peterborough City Council,Communities,Housing,Services,10/12/2018,30206094,1300.00,Revenue,Redacted Personal Information,Financial Assistance
Peterborough City Council,Communities,Housing,Services,10/12/2018,30206095,1500.00,Revenue,AGT Property Managment Ltd,Financial Assistance
Peterborough City Council,Communities,Housing,Services,10/12/2018,30206096,775.00,Revenue,Okuwobi Properties Ltd,Financial Assistance
Peterborough City Council,Communities,Housing,Services,10/12/2018,30206097,1090.00,Revenue,Progressive Lets,Financial Assistance
Peterborough City Council,Communities,Housing,Services,10/12/2018,30206111,795.00,Revenue,M L Mills Trade,Financial Assistance
Peterborough City Council,Communities,Housing,Services,10/12/2018,30206112,550.00,Revenue,Hometime 2020 Ltd,Financial Assistance
Peterborough City Council,Communities,Housing,Services,10/12/2018,30206113,650.00,Revenue,Redacted Personal Information,Financial Assistance
Peterborough City Council,Communities,Housing,Services,10/12/2018,30206115,535.00,Revenue,Redacted Personal Information,Financial Assistance
Peterborough City Council,Communities,Housing,Services,10/12/2018,30206116,550.00,Revenue,Redacted Personal Information,Financial Assistance
Peterborough City Council,Communities,Housing,Services,10/12/2018,30206117,750.00,Revenue,M L Mills Trade,Financial Assistance
Peterborough City Council,Communities,Housing,Services,10/12/2018,30206118,750.00,Revenue,Bee Lettings Ltd,Financial Assistance
Peterborough City Council,Communities,Housing,Services,10/12/2018,30206119,825.00,Revenue,Redacted Personal Information,Financial Assistance
Peterborough City Council,Communities,Housing,Services,10/12/2018,30206120,545.00,Revenue,Redacted Personal Information,Financial Assistance
Peterborough City Council,Communities,Housing,Services,10/12/2018,30206121,535.00,Revenue,Redacted Personal Information,Financial Assistance
Peterborough City Council,Communities,Housing,Services,10/12/2018,30206123,500.00,Revenue,English Estates Property Agents,Financial Assistance
Peterborough City Council,Communities,Housing,Services,10/12/2018,30206124,560.00,Revenue,Property Squires,Financial Assistance
Peterborough City Council,Adults,Independent Sector Placements,Services,10/12/2018,30206126,728.00,Revenue,Choices Care Ltd,Home Care
Peterborough City Council,Communities,Housing,Services,10/12/2018,30206127,600.00,Revenue,Redacted Personal Information,Financial Assistance
Peterborough City Council,Adults,Independent Sector Placements,Services,10/12/2018,30206128,560.56,Revenue,Choices Care Ltd,Home Care
Peterborough City Council,Children's & Safeguarding,Early Help ASC/CSC,Services,10/12/2018,30206175,34225.00,Revenue,Triple P Uk Ltd,Hired Services
Peterborough City Council,Adults,Independent Sector Placements,Services,10/12/2018,30206203,674.18,Revenue,K2 CARE LTD,Home Care
Peterborough City Council,Adults,Independent Sector Placements,Services,10/12/2018,30206204,3334.98,Revenue,K2 CARE LTD,Home Care
Peterborough City Council,"Waste, Cleansing and Open Spaces",Waste Management,Services,10/12/2018,30206246,4928.60,Revenue,Sales Nova Limited,Consultants Fees
Peterborough City Council,"Waste, Cleansing and Open Spaces",Waste Management,Services,10/12/2018,30206247,3003.54,Revenue,Sales Nova Limited,Consultants Fees
Peterborough City Council,"Waste, Cleansing and Open Spaces",Waste Management,Services,10/12/2018,30206248,4931.60,Revenue,Sales Nova Limited,Consultants Fees
Peterborough City Council,HR,HR WFD & Training,Interview & Training Expenses,10/12/2018,30206300,3200.00,Revenue,In-Trac Training & Consultancy Services,Training
Peterborough City Council,Adults,Therapy/Reablement/Community Equipment,Agency Staff,10/12/2018,30206311,3320.47,Revenue,Eden Brown Ltd,External Temporary Staff
Peterborough City Council,"Waste, Cleansing and Open Spaces",Waste Management,Services,10/12/2018,30206345,4820.99,Revenue,Sales Nova Limited,Consultants Fees
Peterborough City Council,Peterborough Highway Services,Network and Traffic Management,Services,10/12/2018,30206400,1833.04,Revenue,Dynniq UK Ltd,Infrastructure Maintenance
Peterborough City Council,Education,PFI,Services,10/12/2018,30206410,14249.33,Revenue,IIC by Education (P'boro) Ltd,Service Charge
Peterborough City Council,Adults,Independent Sector Placements,Services,10/12/2018,8000131274,542.85,Revenue,Sagecare Ltd,Home Care
Peterborough City Council,Legal & Democratic,Democratic Services,Contract Hire and Operating Leases,11/12/2018,8000132407,534.32,Revenue,Lex Autolease Ltd,Leasing Charges
Peterborough City Council,Constitutional Services,Elections,Services,12/12/2018,30202624,1192.96,Revenue,CFH Docmail Limited,Postage
Peterborough City Council,Constitutional Services,Elections,Services,12/12/2018,30202627,1815.79,Revenue,CFH Docmail Limited,Postage
Peterborough City Council,City Centre Management,"Markets, Tourism & Events",Services,12/12/2018,30202846,2689.20,Revenue,Peterborough Firework Fiesta,Tickets
Peterborough City Council,Legal Services,Legal Services,Services,12/12/2018,30202892,1068.20,Revenue,"Corbino, Mr David",Legal Costs
Peterborough City Council,Legal Services,Legal Services,Services,12/12/2018,30202895,550.00,Revenue,"Martignetti, Mr Ian",Legal Costs
Peterborough City Council,Adults,Independent Sector Placements,Services,12/12/2018,30203167,2376.28,Revenue,Alysia Caring Ltd T/a Cherry Blossom care Home,Residential Care
Peterborough City Council,Adults,Independent Sector Placements,Services,12/12/2018,30203171,2376.28,Revenue,Alysia Caring Ltd T/a Cherry Blossom care Home,Residential Care
Peterborough City Council,Adults,Independent Sector Placements,Services,12/12/2018,30203173,1389.12,Revenue,Alysia Caring Ltd T/a Cherry Blossom care Home,Residential Care
Peterborough City Council,HR,HR WFD & Training,Services,12/12/2018,30203243,593.52,Revenue,Health Assured Ltd,Counselling
Peterborough City Council,Constitutional Services,Democratic Services,Services,12/12/2018,30203255,2200.00,Revenue,Service-AV.co.uk,Ict Services
Peterborough City Council,Adults,Independent Sector Placements,Services,12/12/2018,30203531,591.60,Revenue,Cross Keys Homes,Assistive Technology
Peterborough City Council,Adults,Independent Sector Placements,Services,12/12/2018,30203602,1385.36,Revenue,Barchester Wood Grange,Residential Care
Peterborough City Council,Legal Services,Legal Services,Agency Staff,12/12/2018,30203688,723.14,Revenue,Venn Group Ltd,External Temporary Staff
Peterborough City Council,Legal Services,Legal Services,Agency Staff,12/12/2018,30203689,2062.50,Revenue,Venn Group Ltd,External Temporary Staff
Peterborough City Council,Legal Services,Legal Services,Agency Staff,12/12/2018,30203690,765.00,Revenue,Venn Group Ltd,External Temporary Staff
Peterborough City Council,Legal Services,Legal Services,Agency Staff,12/12/2018,30203694,2344.98,Revenue,Venn Group Ltd,External Temporary Staff
Peterborough City Council,Legal Services,Legal Services,Agency Staff,12/12/2018,30203695,880.00,Revenue,Venn Group Ltd,External Temporary Staff
Peterborough City Council,Adults,Therapy/Reablement/Community Equipment,"Tools, Equipment, Furniture & Materials",12/12/2018,30203770,502.93,Revenue,Action on Hearing Loss,Occupational Therapy Equipment
Peterborough City Council,Adults,Independent Sector Placements,Services,12/12/2018,30203846,2607.00,Revenue,HEREWARD CARE SERVICES LIMITED,Residential Care
Peterborough City Council,Adults,Independent Sector Placements,Services,12/12/2018,30203849,2677.32,Revenue,HEREWARD CARE SERVICES LIMITED,Residential Care
Peterborough City Council,Adults,Independent Sector Placements,Services,12/12/2018,30203854,2167.60,Revenue,HEREWARD CARE SERVICES LIMITED,Residential Care
Peterborough City Council,Adults,Independent Sector Placements,Services,12/12/2018,30203860,2671.84,Revenue,HEREWARD CARE SERVICES LIMITED,Residential Care
Peterborough City Council,Adults,Independent Sector Placements,Services,12/12/2018,30203863,4491.36,Revenue,HEREWARD CARE SERVICES LIMITED,Residential Care
Peterborough City Council,Adults,Independent Sector Placements,Services,12/12/2018,30203865,3431.12,Revenue,HEREWARD CARE SERVICES LIMITED,Residential Care
Peterborough City Council,Adults,Independent Sector Placements,Services,12/12/2018,30203867,786.44,Revenue,Goldcare Homes t/a The Tudors Care Home,Residential Care
Peterborough City Council,Adults,Independent Sector Placements,Services,12/12/2018,30203870,1161.26,Revenue,Goldcare Homes t/a The Tudors Care Home,Residential Care
Peterborough City Council,Education,HTS & CSC Transport,Contract Hire and Operating Leases,12/12/2018,30203871,3920.00,Revenue,Fencabs Limited,Hired Transport
Peterborough City Council,Sustainable Growth Strategy,Natural & Historic Environment,Services,12/12/2018,30203905,957.00,Revenue,Bluesky International Ltd,Ict Services
Peterborough City Council,Commissioning and Commercial Operations,Clare Lodge,Agency Staff,12/12/2018,30203925,1944.00,Revenue,Wrixon Care Services,External Temporary Staff
Peterborough City Council,Legal Services,Legal Services,Services,12/12/2018,30203969,2300.00,Revenue,"Corbino, Mr David",Legal Costs
Peterborough City Council,Constitutional Services,Democratic Services,Services,12/12/2018,30203990,1576.00,Revenue,Service-AV.co.uk,Hired Services
Peterborough City Council,City Centre Management,"Markets, Tourism & Events",Services,12/12/2018,30204004,571.00,Revenue,Pearce Sound & Lighting Ltd T/a Pearce Hire,Hired Services
Peterborough City Council,Communities,Cultural Services,Services,12/12/2018,30204006,644.56,Revenue,Pearce Sound & Lighting Ltd T/a Pearce Hire,Hired Services
Peterborough City Council,Children's & Safeguarding,Commissioning - CSC,Services,12/12/2018,30204043,658.32,Revenue,Sahara Community Care Services Limited,Purchased Social Care Services
Peterborough City Council,Commissioning and Commercial Operations,Early Years & Quality Improvement,Interview & Training Expenses,12/12/2018,30204048,834.00,Revenue,Fenland First Aid Services Ltd,Training
Peterborough City Council,Commissioning and Commercial Operations,Clare Lodge,"Tools, Equipment, Furniture & Materials",12/12/2018,30204067,774.00,Revenue,Link Design,Furniture And Equipment Purchase
Peterborough City Council,Children's & Safeguarding,Access to Resources & Specialist Commissioning,Services,12/12/2018,30204072,1917.84,Revenue,Mirrin Homes Limited,Boarding Out Fees
Peterborough City Council,Westcombe Engineering,Westcombe Engineering,"Tools, Equipment, Furniture & Materials",12/12/2018,30204073,688.18,Revenue,M O 8 Specialities Ltd,Materials
Peterborough City Council,Commissioning and Commercial Operations,Clare Lodge,Agency Staff,12/12/2018,30204081,1696.00,Revenue,Wrixon Care Services,External Temporary Staff
Peterborough City Council,Commissioning and Commercial Operations,Clare Lodge,Agency Staff,12/12/2018,30204082,2224.00,Revenue,Wrixon Care Services,External Temporary Staff
Peterborough City Council,Commissioning and Commercial Operations,Clare Lodge,Agency Staff,12/12/2018,30204083,1416.00,Revenue,Wrixon Care Services,External Temporary Staff
Peterborough City Council,Commissioning and Commercial Operations,Clare Lodge,Agency Staff,12/12/2018,30204084,2000.00,Revenue,Wrixon Care Services,External Temporary Staff
Peterborough City Council,Commissioning and Commercial Operations,Clare Lodge,Agency Staff,12/12/2018,30204085,1032.00,Revenue,Wrixon Care Services,External Temporary Staff
Peterborough City Council,Commissioning and Commercial Operations,Clare Lodge,Agency Staff,12/12/2018,30204086,1840.00,Revenue,Wrixon Care Services,External Temporary Staff
Peterborough City Council,Commissioning and Commercial Operations,Commissioning,Services,12/12/2018,30204129,800.00,Revenue,BDP Social Care Ltd,Hired Services
Peterborough City Council,Commissioning and Commercial Operations,Commissioning,Services,12/12/2018,30204131,2257.20,Revenue,BDP Social Care Ltd,Hired Services
Peterborough City Council,Children's & Safeguarding,Early Help ASC/CSC,Services,12/12/2018,30204132,2288.55,Revenue,BDP Social Care Ltd,Hired Services
Peterborough City Council,Commissioning and Commercial Operations,Commissioning,Services,12/12/2018,30204133,920.00,Revenue,BDP Social Care Ltd,Hired Services
Peterborough City Council,Adults,Independent Sector Placements,Services,12/12/2018,30204148,1751.88,Revenue,Park Vista Care Home,Residential Care
Peterborough City Council,Commissioning and Commercial Operations,Commissioning,Services,12/12/2018,30204154,600.00,Revenue,BDP Social Care Ltd,Hired Services
Peterborough City Council,Adults,Block Contracts,Third Party Payments,12/12/2018,30204156,60548.12,Revenue,HEREWARD CARE SERVICES LIMITED,Third Party Payments - Contract
Peterborough City Council,Westcombe Engineering,Westcombe Engineering,"Tools, Equipment, Furniture & Materials",12/12/2018,30204177,565.35,Revenue,AALCO,Materials
Peterborough City Council,ICT,ICT,Services,12/12/2018,30204179,2640.00,Revenue,Cloud Technology Solutions,Computer Software
Peterborough City Council,Adults,Home Services Delivery Model,Services,12/12/2018,30204180,909.50,Revenue,Handyman Steve,Contractors
Peterborough City Council,Children's & Safeguarding,Child Health,Services,12/12/2018,30204182,2000.00,Revenue,P F S Builders & Contractors,Contractors
Peterborough City Council,Children's & Safeguarding,Child Health,Services,12/12/2018,30204183,3200.00,Revenue,P F S Builders & Contractors,Contractors
Peterborough City Council,Children's & Safeguarding,Child Health,Services,12/12/2018,30204184,580.00,Revenue,P F S Builders & Contractors,Contractors
Peterborough City Council,Children's & Safeguarding,Child Health,Services,12/12/2018,30204185,3233.76,Revenue,Circles Network,Purchased Social Care Services
Peterborough City Council,Children's & Safeguarding,Child Health,Services,12/12/2018,30204186,930.00,Revenue,P F S Builders & Contractors,Contractors
Peterborough City Council,Corporate,Corporate,Non Revenue,12/12/2018,30204196,22121.40,Capital,IIC by Education (P'boro) Ltd,Building And Site Works
Peterborough City Council,Corporate,Corporate,Non Revenue,12/12/2018,30204197,6119.15,Capital,IIC by Education (P'boro) Ltd,Building And Site Works
Peterborough City Council,Corporate,Corporate,Non Revenue,12/12/2018,30204198,5520.00,Capital,IIC by Education (P'boro) Ltd,Building And Site Works
Peterborough City Council,Corporate,Corporate,Non Revenue,12/12/2018,30204199,931.50,Capital,IIC by Education (P'boro) Ltd,Building And Site Works
Peterborough City Council,Corporate,Corporate,Non Revenue,12/12/2018,30204200,943.00,Capital,IIC by Education (P'boro) Ltd,Building And Site Works
Peterborough City Council,Corporate,Corporate,Non Revenue,12/12/2018,30204201,1752.60,Capital,IIC by Education (P'boro) Ltd,Building And Site Works
Peterborough City Council,Corporate,Corporate,Non Revenue,12/12/2018,30204202,1144.25,Capital,IIC by Education (P'boro) Ltd,Building And Site Works
Peterborough City Council,Corporate,Corporate,Non Revenue,12/12/2018,30204203,9890.00,Capital,IIC by Education (P'boro) Ltd,Building And Site Works
Peterborough City Council,Corporate,Corporate,Non Revenue,12/12/2018,30204205,3910.00,Capital,IIC by Education (P'boro) Ltd,Building And Site Works
Peterborough City Council,Corporate,Corporate,Non Revenue,12/12/2018,30204206,2766.75,Capital,IIC by Education (P'boro) Ltd,Building And Site Works
Peterborough City Council,Corporate,Corporate,Non Revenue,12/12/2018,30204207,115096.24,Capital,IIC by Education (P'boro) Ltd,Building And Site Works
Peterborough City Council,Corporate,Corporate,Non Revenue,12/12/2018,30204209,6515.60,Capital,IIC by Education (P'boro) Ltd,Building And Site Works
Peterborough City Council,Corporate,Corporate,Non Revenue,12/12/2018,30204210,5400.40,Capital,IIC by Education (P'boro) Ltd,Building And Site Works
Peterborough City Council,Corporate,Corporate,Non Revenue,12/12/2018,30204212,8305.30,Capital,IIC by Education (P'boro) Ltd,Building And Site Works
Peterborough City Council,Corporate,Corporate,Non Revenue,12/12/2018,30204214,5621.20,Capital,IIC by Education (P'boro) Ltd,Building And Site Works
Peterborough City Council,Corporate Property,Commercial Propety,Third Party Payments,12/12/2018,30204248,185273.32,Revenue,NPS Peterborough Ltd,Third Party Payments - Contract
Peterborough City Council,Corporate Property,Commercial Propety,Services,12/12/2018,30204249,1800.00,Revenue,Wilks Head & Eve,Valuations
Peterborough City Council,Peterborough Highway Services,Transport & Infrastructure Commissioning,Services,12/12/2018,30204265,6137.36,Revenue,Tym Huckin Ltd,Hired Services
Peterborough City Council,Regulatory Services,Regulatory Services,Advertising,12/12/2018,30204266,750.00,Revenue,Chartered Inst of Environmental Health,Recruitment Advertising
Peterborough City Council,Development and Construction,Planning Compliance,Agency Staff,12/12/2018,30204269,1573.35,Revenue,Park Avenue Recruitment Limited,External Temporary Staff
Peterborough City Council,Communities,Cultural Services,Services,12/12/2018,30204274,10000.00,Revenue,Britten Sinfonia Ltd,Hired Services
Peterborough City Council,Constitutional Services,Elections,Services,12/12/2018,30204285,4316.91,Revenue,CFH Docmail Limited,Postage
Peterborough City Council,Constitutional Services,Democratic Services,Services,12/12/2018,30204286,500.00,Revenue,Principal Protection Ltd,Security
Peterborough City Council,Adults,Community Team,Agency Staff,12/12/2018,30204299,1221.00,Revenue,Medicare First Ltd,External Temporary Staff
Peterborough City Council,Children's & Safeguarding,Access to Resources & Specialist Commissioning,Services,12/12/2018,30204405,9000.00,Revenue,A & T Home Limited,Boarding Out Fees
Peterborough City Council,Peterborough Highway Services,Transport & Infrastructure Commissioning,Transport Costs,12/12/2018,30204453,188901.95,Revenue,Stagecoach in Peterborough,Public Transport
Peterborough City Council,Constitutional Services,Elections,Services,12/12/2018,30204465,741.00,Revenue,Print UK,Printing
Peterborough City Council,Education,Special Educational Needs / Inclusion,Agency Staff,12/12/2018,30204466,1375.00,Revenue,Permanent Futures Ltd,External Temporary Staff
Peterborough City Council,Communities,Housing,Services,12/12/2018,30204490,1300.00,Revenue,Redacted Personal Information,Financial Assistance
Peterborough City Council,"Cemeteries, Cremation & Registrars",Bereavement Service,Services,12/12/2018,30204501,1728.00,Revenue,Anglia Co-operative Funerals,Contract Funerals
Peterborough City Council,"Cemeteries, Cremation & Registrars",Bereavement Service,Services,12/12/2018,30204502,1673.00,Revenue,Anglia Co-operative Funerals,Contract Funerals
Peterborough City Council,Peterborough Highway Services,Network and Traffic Management,Services,12/12/2018,30204580,2042.86,Revenue,Dynniq UK Ltd,Infrastructure Maintenance
Peterborough City Council,Peterborough Highway Services,Network and Traffic Management,Services,12/12/2018,30204590,2274.79,Revenue,Dynniq UK Ltd,Infrastructure Maintenance
Peterborough City Council,Peterborough Highway Services,Network and Traffic Management,Services,12/12/2018,30204591,1192.28,Revenue,Dynniq UK Ltd,Infrastructure Maintenance
Peterborough City Council,Peterborough Highway Services,Network and Traffic Management,Services,12/12/2018,30204594,1937.92,Revenue,Dynniq UK Ltd,Infrastructure Maintenance
Peterborough City Council,Corporate,Corporate,Non Revenue,12/12/2018,30204613,3469.00,Capital,Palmer Building Solutions Ltd,Furniture And Equipment Purchase
Peterborough City Council,Children's & Safeguarding,Children's Social Care,Services,12/12/2018,30204703,1000.00,Revenue,Cross Keys Homes,Financial Assistance
Peterborough City Council,Peterborough Serco Strategic Partnership,Peterborough Serco Strategic Partnership,Services,12/12/2018,30204764,6600.00,Revenue,Airey Consultancy Services Ltd,Consultants Fees
Peterborough City Council,Communities,Cultural Services,"Tools, Equipment, Furniture & Materials",12/12/2018,30204835,636.00,Revenue,Chamberlain Music Education,Furniture And Equipment Purchase
Peterborough City Council,Adults,Independent Sector Placements,Services,12/12/2018,30204853,6966.72,Revenue,Autism Care (UK) Ltd,Residential Care
Peterborough City Council,Adults,Independent Sector Placements,Services,12/12/2018,30204854,6966.72,Revenue,Autism Care (UK) Ltd,Residential Care
Peterborough City Council,Westcombe Engineering,Westcombe Engineering,"Tools, Equipment, Furniture & Materials",12/12/2018,30205293,629.92,Revenue,Barron Clark Castings Ltd,Materials
Peterborough City Council,Westcombe Engineering,Westcombe Engineering,"Tools, Equipment, Furniture & Materials",12/12/2018,30205294,567.60,Revenue,Barron Clark Castings Ltd,Materials
Peterborough City Council,Westcombe Engineering,Westcombe Engineering,"Tools, Equipment, Furniture & Materials",12/12/2018,30205295,1027.52,Revenue,Barron Clark Castings Ltd,Materials
Peterborough City Council,"Director, OP & JV",Growth HoS,Third Party Payments,12/12/2018,30205427,2612798.45,Revenue & Capital,Skanska Construction UK Ltd,Third Party Payments - Contract
Peterborough City Council,Westcombe Engineering,Westcombe Engineering,"Tools, Equipment, Furniture & Materials",12/12/2018,30205456,790.00,Revenue,Rowes Precision Products Ltd,Materials
Peterborough City Council,Education,Special Educational Needs / Inclusion,Agency Staff,12/12/2018,30205529,4499.69,Revenue,Protocol National Ltd,External Temporary Staff
Peterborough City Council,Financial Services,Finance,Agency Staff,12/12/2018,30205575,853.07,Revenue,Reed Specialist Recruitment Limited,External Temporary Staff
Peterborough City Council,Commissioning and Commercial Operations,Early Years & Quality Improvement,Services,12/12/2018,30205591,682.50,Revenue,Shining Stars Pre-School Nursery,Grant Payment
Peterborough City Council,Adults,Independent Sector Placements,Services,12/12/2018,30205704,1968.96,Revenue,PHILIA LODGE REST HOME,Residential Care
Peterborough City Council,Communities,Service Director - Adults & Communities,Third Party Payments,12/12/2018,30205718,565.00,Revenue,Peterborough Citizens Advice Bureau,Grant-Third Party
Peterborough City Council,Corporate Property,Commercial Propety,Repair & Maintenance of Buildings,12/12/2018,30205828,1000.00,Revenue,Stanground Community Space CIC,Service Charges - Premises
Peterborough City Council,Children's & Safeguarding,Access to Resources & Specialist Commissioning,Services,12/12/2018,30205884,24624.69,Revenue,Aspire Scotland Ltd,Boarding Out Fees
Peterborough City Council,Commissioning and Commercial Operations,Early Years & Quality Improvement,Services,12/12/2018,30206087,910.00,Revenue,Brookside Playgroup,Grant Payment
Peterborough City Council,Communities,Housing Enforcement,Customer and client receipts - Fees & Charges,12/12/2018,30206122,750.00,Revenue,Redacted Personal Information,Refunds
Peterborough City Council,Legal Services,Legal Services,Agency Staff,12/12/2018,30206155,1177.60,Revenue,Reed Specialist Recruitment Limited,External Temporary Staff
Peterborough City Council,Education,PFI,Services,12/12/2018,30206412,9902.77,Revenue,IIC by Education (P'boro) Ltd,Service Charge
Peterborough City Council,Adults,Independent Sector Placements,Services,12/12/2018,30206413,-893.57,Revenue,Park Vista Care Home,Residential Care
Peterborough City Council,Education,PFI,Services,12/12/2018,30206415,5072.33,Revenue,IIC by Education (P'boro) Ltd,Service Charge
Peterborough City Council,Education,PFI,Services,12/12/2018,30206417,1236.55,Revenue,IIC by Education (P'boro) Ltd,Service Charge
Peterborough City Council,Education,PFI,Services,12/12/2018,30206421,-14249.33,Revenue,IIC by Education (P'boro) Ltd,Service Charge
Peterborough City Council,Children's & Safeguarding,Access to Resources & Specialist Commissioning,Services,12/12/2018,30206471,3067.45,Revenue,Key2 Futures Limited,Boarding Out Fees
Peterborough City Council,Children's & Safeguarding,Adult & Children Safeguarding Board,Interview & Training Expenses,12/12/2018,30206499,600.00,Revenue,HHSCC,Training
Peterborough City Council,Corporate,Corporate,Non Revenue,12/12/2018,30206534,485290.37,Balance Sheet,LGSS Cambridgeshire Pension Fund,Pensions
Peterborough City Council,Corporate,Corporate,Non Revenue,12/12/2018,30206535,195885.67,Balance Sheet,LGSS Cambridgeshire Pension Fund,Pensions
Peterborough City Council,Corporate,Corporate,Non Revenue,12/12/2018,30206536,16262.44,Balance Sheet,LGSS Cambridgeshire Pension Fund,Pensions
Peterborough City Council,Corporate,Corporate,Non Revenue,12/12/2018,30206537,66220.24,Balance Sheet,LGSS Cambridgeshire Pension Fund,Pensions
Peterborough City Council,Corporate,Corporate,Non Revenue,12/12/2018,30206538,541.26,Balance Sheet,NHS Pensions,Pensions
Peterborough City Council,Corporate,Corporate,Non Revenue,12/12/2018,30206541,5060.18,Balance Sheet,NHS Pensions,Pensions
Peterborough City Council,Communities,Other Enforcement,Transport Costs,12/12/2018,30206542,500.00,Revenue,Nationwide Gladwins Repair Centres,Vehicle Repairs
Peterborough City Council,Corporate,Corporate,Non Revenue,12/12/2018,30206543,9467.20,Balance Sheet,NHS Pensions,Pensions
Peterborough City Council,HR,HR,Services,12/12/2018,30206548,11198.65,Revenue,Edenred,Childcare
Peterborough City Council,Adults,Independent Sector Placements,Services,12/12/2018,30206552,1821.88,Revenue,THE CLAIR FRANCIS RETIREMENT HOME,Residential Care
Peterborough City Council,Adults,Independent Sector Placements,Services,12/12/2018,30206554,771.00,Revenue,THE CLAIR FRANCIS RETIREMENT HOME,Residential Care
Peterborough City Council,Adults,Independent Sector Placements,Services,12/12/2018,30206555,943.04,Revenue,THE CLAIR FRANCIS RETIREMENT HOME,Residential Care
Peterborough City Council,Adults,Independent Sector Placements,Services,12/12/2018,30206557,650.40,Revenue,THE CLAIR FRANCIS RETIREMENT HOME,Residential Care
Peterborough City Council,Adults,Independent Sector Placements,Services,12/12/2018,30206558,1263.44,Revenue,THE CLAIR FRANCIS RETIREMENT HOME,Residential Care
Peterborough City Council,Adults,Independent Sector Placements,Services,12/12/2018,30206559,1821.88,Revenue,THE CLAIR FRANCIS RETIREMENT HOME,Residential Care
Peterborough City Council,Adults,Independent Sector Placements,Services,12/12/2018,30206560,1301.48,Revenue,THE CLAIR FRANCIS RETIREMENT HOME,Residential Care
Peterborough City Council,Adults,Independent Sector Placements,Services,12/12/2018,30206561,1821.88,Revenue,THE CLAIR FRANCIS RETIREMENT HOME,Residential Care
Peterborough City Council,Adults,Independent Sector Placements,Services,12/12/2018,30206562,1244.76,Revenue,THE CLAIR FRANCIS RETIREMENT HOME,Residential Care
Peterborough City Council,Adults,Independent Sector Placements,Services,12/12/2018,30206563,888.16,Revenue,THE CLAIR FRANCIS RETIREMENT HOME,Residential Care
Peterborough City Council,Adults,Independent Sector Placements,Services,12/12/2018,30206565,1821.88,Revenue,THE CLAIR FRANCIS RETIREMENT HOME,Residential Care
Peterborough City Council,Adults,Independent Sector Placements,Services,12/12/2018,30206567,928.92,Revenue,THE CLAIR FRANCIS RETIREMENT HOME,Residential Care
Peterborough City Council,Adults,Independent Sector Placements,Services,12/12/2018,30206568,1269.48,Revenue,THE CLAIR FRANCIS RETIREMENT HOME,Residential Care
Peterborough City Council,Adults,Independent Sector Placements,Services,12/12/2018,30206570,1821.88,Revenue,THE CLAIR FRANCIS RETIREMENT HOME,Residential Care
Peterborough City Council,Adults,Independent Sector Placements,Services,12/12/2018,30206612,2878.13,Revenue,THE HELPING HANDS GROUP,Day Care
Peterborough City Council,Adults,Independent Sector Placements,Services,12/12/2018,30206614,945.00,Revenue,THE HELPING HANDS GROUP,Day Care
Peterborough City Council,Adults,Independent Sector Placements,Services,12/12/2018,30206616,1194.75,Revenue,THE HELPING HANDS GROUP,Day Care
Peterborough City Council,Adults,Independent Sector Placements,Services,12/12/2018,30206618,1194.75,Revenue,THE HELPING HANDS GROUP,Day Care
Peterborough City Council,Adults,Independent Sector Placements,Services,12/12/2018,30206623,945.00,Revenue,THE HELPING HANDS GROUP,Day Care
Peterborough City Council,Adults,Independent Sector Placements,Services,12/12/2018,30206624,1830.00,Revenue,THE HELPING HANDS GROUP,Day Care
Peterborough City Council,Adults,Independent Sector Placements,Services,12/12/2018,30206625,1991.25,Revenue,THE HELPING HANDS GROUP,Day Care
Peterborough City Council,Adults,Independent Sector Placements,Services,12/12/2018,30206626,796.50,Revenue,THE HELPING HANDS GROUP,Day Care
Peterborough City Council,Adults,Independent Sector Placements,Services,12/12/2018,30206642,1708.00,Revenue,THE HELPING HANDS GROUP,Day Care
Peterborough City Council,Adults,Independent Sector Placements,Services,12/12/2018,30206643,854.00,Revenue,THE HELPING HANDS GROUP,Day Care
Peterborough City Council,Adults,Independent Sector Placements,Services,12/12/2018,30206644,1200.00,Revenue,THE HELPING HANDS GROUP,Day Care
Peterborough City Council,Adults,Independent Sector Placements,Services,12/12/2018,30206645,2074.00,Revenue,THE HELPING HANDS GROUP,Day Care
Peterborough City Council,Adults,Independent Sector Placements,Services,12/12/2018,30206647,882.00,Revenue,THE HELPING HANDS GROUP,Day Care
Peterborough City Council,Adults,Independent Sector Placements,Services,12/12/2018,30206648,1071.00,Revenue,THE HELPING HANDS GROUP,Day Care
Peterborough City Council,Education,PFI,Services,12/12/2018,30206650,21671.00,Revenue,IIC by Education (P'boro) Ltd,Service Charge
Peterborough City Council,Adults,Block Contracts,Third Party Payments,12/12/2018,30206652,7938.54,Revenue,Fins Care Ltd t/a St Margarets Rest Home,Third Party Payments - Contract
Peterborough City Council,Adults,Block Contracts,Third Party Payments,12/12/2018,30206654,14849.25,Revenue,Cross Keys Homes,Third Party Payments - Contract
Peterborough City Council,Adults,Independent Sector Placements,Services,12/12/2018,30206657,630.00,Revenue,THE HELPING HANDS GROUP,Day Care
Peterborough City Council,Adults,Independent Sector Placements,Services,12/12/2018,30206659,2074.00,Revenue,THE HELPING HANDS GROUP,Day Care
Peterborough City Council,Adults,Independent Sector Placements,Services,12/12/2018,30206660,504.00,Revenue,THE HELPING HANDS GROUP,Day Care
Peterborough City Council,Adults,Independent Sector Placements,Services,12/12/2018,30206662,1071.00,Revenue,THE HELPING HANDS GROUP,Day Care
Peterborough City Council,Adults,Independent Sector Placements,Services,12/12/2018,30206663,870.75,Revenue,THE HELPING HANDS GROUP,Day Care
Peterborough City Council,Adults,Independent Sector Placements,Services,12/12/2018,30206665,1830.00,Revenue,THE HELPING HANDS GROUP,Day Care
Peterborough City Council,Adults,Independent Sector Placements,Services,12/12/2018,30206666,945.00,Revenue,THE HELPING HANDS GROUP,Day Care
Peterborough City Council,Adults,Independent Sector Placements,Services,12/12/2018,30206667,945.00,Revenue,THE HELPING HANDS GROUP,Day Care
Peterborough City Council,Adults,Independent Sector Placements,Services,12/12/2018,30206668,1464.00,Revenue,THE HELPING HANDS GROUP,Day Care
Peterborough City Council,Adults,Independent Sector Placements,Services,12/12/2018,30206670,756.00,Revenue,THE HELPING HANDS GROUP,Day Care
Peterborough City Council,Adults,Independent Sector Placements,Services,12/12/2018,30206671,1041.75,Revenue,THE HELPING HANDS GROUP,Day Care
Peterborough City Council,Adults,Independent Sector Placements,Services,12/12/2018,30206679,2915.28,Revenue,Augusta Care Ltd,Home Care
Peterborough City Council,Adults,Independent Sector Placements,Services,12/12/2018,30206680,2915.28,Revenue,Augusta Care Ltd,Home Care
Peterborough City Council,Adults,Independent Sector Placements,Services,12/12/2018,30206690,1327.50,Revenue,THE HELPING HANDS GROUP,Day Care
Peterborough City Council,Adults,Independent Sector Placements,Services,12/12/2018,30206691,929.25,Revenue,THE HELPING HANDS GROUP,Day Care
Peterborough City Council,Adults,Independent Sector Placements,Services,12/12/2018,30206692,1071.00,Revenue,THE HELPING HANDS GROUP,Day Care
Peterborough City Council,Adults,Independent Sector Placements,Services,12/12/2018,30206693,3261.88,Revenue,THE HELPING HANDS GROUP,Day Care
Peterborough City Council,Adults,Independent Sector Placements,Services,12/12/2018,30206696,1593.00,Revenue,THE HELPING HANDS GROUP,Day Care
Peterborough City Council,Adults,Independent Sector Placements,Services,12/12/2018,30206697,2256.75,Revenue,THE HELPING HANDS GROUP,Day Care
Peterborough City Council,Adults,Independent Sector Placements,Services,12/12/2018,30206698,2074.00,Revenue,THE HELPING HANDS GROUP,Day Care
Peterborough City Council,Adults,Independent Sector Placements,Services,12/12/2018,30206699,732.00,Revenue,THE HELPING HANDS GROUP,Day Care
Peterborough City Council,Constitutional Services,Elections,Services,12/12/2018,30206708,5761.30,Revenue,Electoral Reform Services,Postage
Peterborough City Council,Adults,Independent Sector Placements,Services,12/12/2018,30206742,1830.00,Revenue,THE HELPING HANDS GROUP,Day Care
Peterborough City Council,Adults,Independent Sector Placements,Services,12/12/2018,30206744,1071.00,Revenue,THE HELPING HANDS GROUP,Day Care
Peterborough City Council,Adults,Independent Sector Placements,Services,12/12/2018,30206746,567.00,Revenue,THE HELPING HANDS GROUP,Day Care
Peterborough City Council,Adults,Independent Sector Placements,Services,12/12/2018,30206749,749.81,Revenue,THE HELPING HANDS GROUP,Day Care
Peterborough City Council,Adults,Independent Sector Placements,Services,12/12/2018,30206785,1820.00,Revenue,Caretech Community Services Limited,Home Care
Peterborough City Council,Adults,Independent Sector Placements,Services,12/12/2018,30206787,3640.00,Revenue,Caretech Community Services Limited,Home Care
Peterborough City Council,Adults,Independent Sector Placements,Services,12/12/2018,30206791,3640.00,Revenue,Caretech Community Services Limited,Home Care
Peterborough City Council,Adults,Independent Sector Placements,Services,12/12/2018,30206792,3640.00,Revenue,Caretech Community Services Limited,Home Care
Peterborough City Council,Adults,Independent Sector Placements,Services,12/12/2018,30206793,745.74,Revenue,Atlas Care Services Ltd,Home Care
Peterborough City Council,Adults,Independent Sector Placements,Services,12/12/2018,30206794,1081.57,Revenue,Atlas Care Services Ltd,Home Care
Peterborough City Council,Adults,Independent Sector Placements,Services,12/12/2018,30206795,882.29,Revenue,Atlas Care Services Ltd,Home Care
Peterborough City Council,Children's & Safeguarding,Access to Resources & Specialist Commissioning,Services,12/12/2018,30206802,3067.45,Revenue,Key2 Futures Limited,Boarding Out Fees
Peterborough City Council,Education,Special Educational Needs / Inclusion,Interview & Training Expenses,12/12/2018,30206803,4002.00,Revenue,The University Of Birmingham,Training
Peterborough City Council,Education,Special Educational Needs / Inclusion,Interview & Training Expenses,12/12/2018,30206809,4002.00,Revenue,The University Of Birmingham,Training
Peterborough City Council,Education,Special Educational Needs / Inclusion,Interview & Training Expenses,12/12/2018,30206810,4002.00,Revenue,The University Of Birmingham,Training
Peterborough City Council,Adults,Independent Sector Placements,Services,12/12/2018,30206863,2526.46,Revenue,Augusta Care Ltd,Home Care
Peterborough City Council,Communities,Housing,Services,12/12/2018,30206874,3150.00,Revenue,Singh and Sons Property Management Ltd,Temporary Accommodation Costs
Peterborough City Council,Communities,Housing,Services,12/12/2018,30206875,2975.00,Revenue,Singh and Sons Property Management Ltd,Temporary Accommodation Costs
Peterborough City Council,Communities,Housing,Services,12/12/2018,30206876,2920.00,Revenue,Singh and Sons Property Management Ltd,Temporary Accommodation Costs
Peterborough City Council,Adults,Independent Sector Placements,Services,12/12/2018,8000131495,720.79,Revenue,Hales Group Ltd,Home Care
Peterborough City Council,Adults,Independent Sector Placements,Services,12/12/2018,8000131497,749.89,Revenue,Hales Group Ltd,Home Care
Peterborough City Council,Adults,Independent Sector Placements,Services,12/12/2018,8000131501,1823.33,Revenue,Augusta Care Ltd,Home Care
Peterborough City Council,Adults,Independent Sector Placements,Services,12/12/2018,8000131502,1893.32,Revenue,Augusta Care Ltd,Home Care
Peterborough City Council,Adults,Independent Sector Placements,Services,12/12/2018,8000131503,1893.32,Revenue,Augusta Care Ltd,Home Care
Peterborough City Council,Adults,Independent Sector Placements,Services,12/12/2018,8000131504,1893.32,Revenue,Augusta Care Ltd,Home Care
Peterborough City Council,Adults,Independent Sector Placements,Services,12/12/2018,8000131505,1893.32,Revenue,Augusta Care Ltd,Home Care
Peterborough City Council,Adults,Independent Sector Placements,Services,12/12/2018,8000131506,1893.32,Revenue,Augusta Care Ltd,Home Care
Peterborough City Council,Adults,Independent Sector Placements,Services,12/12/2018,8000131507,1893.32,Revenue,Augusta Care Ltd,Home Care
Peterborough City Council,Adults,Independent Sector Placements,Services,12/12/2018,8000131508,2443.12,Revenue,Augusta Care Ltd,Home Care
Peterborough City Council,Adults,Independent Sector Placements,Services,12/12/2018,8000131509,1893.32,Revenue,Augusta Care Ltd,Home Care
Peterborough City Council,Adults,Independent Sector Placements,Services,12/12/2018,8000131510,2782.97,Revenue,Hales Group Ltd,Home Care
Peterborough City Council,Adults,Independent Sector Placements,Services,12/12/2018,8000131511,1125.37,Revenue,Hales Group Ltd,Home Care
Peterborough City Council,Adults,Independent Sector Placements,Services,12/12/2018,8000131512,1893.32,Revenue,Augusta Care Ltd,Home Care
Peterborough City Council,Adults,Independent Sector Placements,Services,12/12/2018,8000131514,795.20,Revenue,Augusta Care Ltd,Home Care
Peterborough City Council,Adults,Independent Sector Placements,Services,12/12/2018,8000131515,1473.89,Revenue,Hales Group Ltd,Home Care
Peterborough City Council,Adults,Independent Sector Placements,Services,12/12/2018,8000131516,1334.30,Revenue,Hales Group Ltd,Home Care
Peterborough City Council,Adults,Independent Sector Placements,Services,12/12/2018,8000131517,715.16,Revenue,Hales Group Ltd,Home Care
Peterborough City Council,Adults,Independent Sector Placements,Services,12/12/2018,8000131518,1090.64,Revenue,Hales Group Ltd,Home Care
Peterborough City Council,Adults,Independent Sector Placements,Services,12/12/2018,8000131519,2526.46,Revenue,Augusta Care Ltd,Home Care
Peterborough City Council,Adults,Independent Sector Placements,Services,12/12/2018,8000131520,3789.69,Revenue,Augusta Care Ltd,Home Care
Peterborough City Council,Adults,Independent Sector Placements,Services,12/12/2018,8000131521,2915.28,Revenue,Augusta Care Ltd,Home Care
Peterborough City Council,Adults,Independent Sector Placements,Services,12/12/2018,8000131522,5830.56,Revenue,Augusta Care Ltd,Home Care
Peterborough City Council,Adults,Independent Sector Placements,Services,12/12/2018,8000131523,2920.03,Revenue,Hales Group Ltd,Home Care
Peterborough City Council,Adults,Independent Sector Placements,Services,12/12/2018,8000131524,7579.38,Revenue,Augusta Care Ltd,Home Care
Peterborough City Council,Adults,Independent Sector Placements,Services,12/12/2018,8000131525,1460.62,Revenue,Hales Group Ltd,Home Care
Peterborough City Council,Adults,Independent Sector Placements,Services,12/12/2018,8000131526,1057.24,Revenue,Hales Group Ltd,Home Care
Peterborough City Council,Adults,Independent Sector Placements,Services,12/12/2018,8000131527,2909.97,Revenue,Hales Group Ltd,Home Care
Peterborough City Council,Corporate,Corporate,Non Revenue,13/12/2018,8000132589,177500.00,Capital,Shoosmiths,Land/Building Acquisition
Peterborough City Council,Corporate,Corporate,Non Revenue,13/12/2018,8000132589,142500.00,Capital,ANB Law,Land/Building Acquisition
Peterborough City Council,Adults,Independent Sector Placements,Services,14/12/2018,30191891,2464.29,Revenue,PSYCARE LIMITED,Residential Care
Peterborough City Council,Adults,Therapy/Reablement/Community Equipment,Agency Staff,14/12/2018,30200663,5118.43,Revenue,Liquid Personnel,External Temporary Staff
Peterborough City Council,Commissioning and Commercial Operations,Commissioning,Services,14/12/2018,30202028,504.67,Revenue,CAPITA Translation and Interpreting,Interpretation Expenses
Peterborough City Council,Commissioning and Commercial Operations,Commissioning,Services,14/12/2018,30202029,509.28,Revenue,CAPITA Translation and Interpreting,Interpretation Expenses
Peterborough City Council,Commissioning and Commercial Operations,Commissioning,Services,14/12/2018,30202032,549.01,Revenue,CAPITA Translation and Interpreting,Interpretation Expenses
Peterborough City Council,Commissioning and Commercial Operations,Commissioning,Services,14/12/2018,30202042,545.28,Revenue,CAPITA Translation and Interpreting,Interpretation Expenses
Peterborough City Council,Commissioning and Commercial Operations,Commissioning,Services,14/12/2018,30202059,2975.17,Revenue,CAPITA Translation and Interpreting,Interpretation Expenses
Peterborough City Council,Commissioning and Commercial Operations,Commissioning,Services,14/12/2018,30202061,973.65,Revenue,CAPITA Translation and Interpreting,Interpretation Expenses
Peterborough City Council,Commissioning and Commercial Operations,Commissioning,Services,14/12/2018,30202062,697.93,Revenue,CAPITA Translation and Interpreting,Interpretation Expenses
Peterborough City Council,City Centre Management,"Markets, Tourism & Events",Services,14/12/2018,30203269,2632.50,Revenue,Chapter of Peterborough Cathedral,Tickets
Peterborough City Council,Corporate,Corporate,Non Revenue,14/12/2018,30203861,16013.96,Capital,F.P. Smiths Motors Ltd,Vehicle Acquisition
Peterborough City Council,Corporate,Corporate,Non Revenue,14/12/2018,30203862,16013.96,Capital,F.P. Smiths Motors Ltd,Vehicle Acquisition
Peterborough City Council,Corporate,Corporate,Non Revenue,14/12/2018,30203864,16013.96,Capital,F.P. Smiths Motors Ltd,Vehicle Acquisition
Peterborough City Council,Adults,Independent Sector Placements,Services,14/12/2018,30203866,1594.68,Revenue,Goldcare Homes t/a The Tudors Care Home,Residential Care
Peterborough City Council,Adults,Independent Sector Placements,Services,14/12/2018,30203868,1424.76,Revenue,Goldcare Homes t/a The Tudors Care Home,Residential Care
Peterborough City Council,Adults,Independent Sector Placements,Services,14/12/2018,30203869,1507.60,Revenue,Goldcare Homes t/a The Tudors Care Home,Residential Care
Peterborough City Council,Commissioning and Commercial Operations,Clare Lodge,Agency Staff,14/12/2018,30203926,944.00,Revenue,Wrixon Care Services,External Temporary Staff
Peterborough City Council,Commissioning and Commercial Operations,Clare Lodge,Agency Staff,14/12/2018,30203928,832.00,Revenue,Wrixon Care Services,External Temporary Staff
Peterborough City Council,Commissioning and Commercial Operations,Clare Lodge,Agency Staff,14/12/2018,30203929,928.00,Revenue,Wrixon Care Services,External Temporary Staff
Peterborough City Council,Commissioning and Commercial Operations,Clare Lodge,Agency Staff,14/12/2018,30203930,2208.00,Revenue,Wrixon Care Services,External Temporary Staff
Peterborough City Council,Commissioning and Commercial Operations,Clare Lodge,Agency Staff,14/12/2018,30203931,1680.00,Revenue,Wrixon Care Services,External Temporary Staff
Peterborough City Council,Commissioning and Commercial Operations,Clare Lodge,Agency Staff,14/12/2018,30203933,1440.00,Revenue,Wrixon Care Services,External Temporary Staff
Peterborough City Council,Adults,Independent Sector Placements,Services,14/12/2018,30204100,5354.44,Revenue,Accomplish Group Limited (Orchard Hill),Residential Care
Peterborough City Council,Adults,Independent Sector Placements,Services,14/12/2018,30204123,804.00,Revenue,FIELD HOUSE (EYE) LTD,Day Care
Peterborough City Council,Adults,Independent Sector Placements,Services,14/12/2018,30204124,761.45,Revenue,FIELD HOUSE (EYE) LTD,Home Care
Peterborough City Council,Adults,Independent Sector Placements,Services,14/12/2018,30204277,2303.00,Revenue,Deafblind Enablement Ltd,Home Care
Peterborough City Council,Legal Services,Legal Services,Services,14/12/2018,30204287,2475.00,Revenue,Spinks Notary,Professional Fees
Peterborough City Council,Children's & Safeguarding,Access to Resources & Specialist Commissioning,Services,14/12/2018,30204362,840.00,Revenue,Florinee Homes Ltd,Boarding Out Fees
Peterborough City Council,Children's & Safeguarding,Access to Resources & Specialist Commissioning,Services,14/12/2018,30204367,840.00,Revenue,Florinee Homes Ltd,Boarding Out Fees
Peterborough City Council,Commissioning and Commercial Operations,Early Years & Quality Improvement,Third Party Payments,14/12/2018,30204399,-2431.48,Revenue,CAPITA Translation and Interpreting,Third Party Payments - Contract
Peterborough City Council,Adults,Therapy/Reablement/Community Equipment,Agency Staff,14/12/2018,30204438,5361.30,Revenue,Commercial Services Trading Limited,External Temporary Staff
Peterborough City Council,Corporate,Corporate,Non Revenue,14/12/2018,30204443,7670.00,Capital,Badenoch & Clark Ltd,Consultants Fees
Peterborough City Council,Corporate,Corporate,Non Revenue,14/12/2018,30204460,3518.38,Capital,Specialised Movers Ltd,Building And Site Works
Peterborough City Council,Communities,Housing,Services,14/12/2018,30204462,10798.60,Revenue,DA Rosalia Hotel,Temporary Accommodation Costs
Peterborough City Council,Communities,Housing,Services,14/12/2018,30204579,9726.50,Revenue,Eastfield Guesthouse,Temporary Accommodation Costs
Peterborough City Council,Communities,Housing,Services,14/12/2018,30204582,11312.00,Revenue,Eastfield Guesthouse,Temporary Accommodation Costs
Peterborough City Council,Corporate,Corporate,Non Revenue,14/12/2018,30204630,50814.74,Capital,R G Carter Cambridge Ltd,Building And Site Works
Peterborough City Council,Corporate,Corporate,Non Revenue,14/12/2018,30204634,1500.00,Capital,Enterprise Managed Services Limited,Building And Site Works
Peterborough City Council,Corporate,Corporate,Non Revenue,14/12/2018,30204750,739.00,Capital,Enterprise Managed Services Limited,Consultants Fees
Peterborough City Council,Peterborough Serco Strategic Partnership,PSSP Retained Services,Services,14/12/2018,30204813,1985.59,Revenue,Whistl UK Ltd,Postage
Peterborough City Council,Adults,Independent Sector Placements,Services,14/12/2018,30204922,1150.00,Revenue,Goldcare Homes t/a The Tudors Care Home,Residential Care
Peterborough City Council,Westcombe Engineering,Westcombe Engineering,"Tools, Equipment, Furniture & Materials",14/12/2018,30205296,948.48,Revenue,Barron Clark Castings Ltd,Materials
Peterborough City Council,Westcombe Engineering,Westcombe Engineering,"Tools, Equipment, Furniture & Materials",14/12/2018,30205298,567.60,Revenue,Barron Clark Castings Ltd,Materials
Peterborough City Council,Westcombe Engineering,Westcombe Engineering,"Tools, Equipment, Furniture & Materials",14/12/2018,30205299,988.00,Revenue,Barron Clark Castings Ltd,Materials
Peterborough City Council,Westcombe Engineering,Westcombe Engineering,"Tools, Equipment, Furniture & Materials",14/12/2018,30205401,595.00,Revenue,Olis Machine Tools Ltd,Equipment Repairs
Peterborough City Council,Commissioning and Commercial Operations,Clare Lodge,Agency Staff,14/12/2018,30205706,1840.00,Revenue,Wrixon Care Services,External Temporary Staff
Peterborough City Council,Corporate,Corporate,Non Revenue,14/12/2018,30205970,3150.00,Capital,EMS Stairlifts,Grant Payment
Peterborough City Council,Children's & Safeguarding,External Education Placements,Services,14/12/2018,30206157,2956.87,Revenue,Ethelbert Childrens Services,Boarding Out Fees
Peterborough City Council,Corporate,Corporate,Non Revenue,14/12/2018,30206159,-16100.00,Capital,F.P. Smiths Motors Ltd,Vehicle Acquisition
Peterborough City Council,Peterborough Highway Services,Network and Traffic Management,Services,14/12/2018,30206183,517.27,Revenue,Johnston Press Midlands Division,Advertising
Peterborough City Council,Commissioning and Commercial Operations,Early Years & Quality Improvement,Services,14/12/2018,30206257,64583.11,Revenue,ZigZag Day Nursery Ltd,Grant Payment
Peterborough City Council,Commissioning and Commercial Operations,Early Years & Quality Improvement,Services,14/12/2018,30206258,36098.08,Revenue,Whiz Kids Day Nursery,Grant Payment
Peterborough City Council,Commissioning and Commercial Operations,Early Years & Quality Improvement,Services,14/12/2018,30206260,13091.27,Revenue,Vale Community Pre-School,Grant Payment
Peterborough City Council,Commissioning and Commercial Operations,Early Years & Quality Improvement,Services,14/12/2018,30206261,28847.61,Revenue,West Town Pre-School,Grant Payment
Peterborough City Council,Commissioning and Commercial Operations,Early Years & Quality Improvement,Services,14/12/2018,30206262,15987.01,Revenue,Young Generation Playgroup,Grant Payment
Peterborough City Council,Commissioning and Commercial Operations,Early Years & Quality Improvement,Services,14/12/2018,30206263,48189.96,Revenue,The Day Nursery Peterborough Ltd,Grant Payment
Peterborough City Council,Commissioning and Commercial Operations,Early Years & Quality Improvement,Services,14/12/2018,30206264,26207.06,Revenue,The Learning Tree Kindergarten,Grant Payment
Peterborough City Council,Commissioning and Commercial Operations,Early Years & Quality Improvement,Services,14/12/2018,30206266,9256.08,Revenue,The Village Playgroup,Grant Payment
Peterborough City Council,Commissioning and Commercial Operations,Early Years & Quality Improvement,Services,14/12/2018,30206267,39584.72,Revenue,Stars Preschool Woodston,Grant Payment
Peterborough City Council,Commissioning and Commercial Operations,Early Years & Quality Improvement,Services,14/12/2018,30206269,34029.50,Revenue,Stepping Stones Day Nursery,Grant Payment
Peterborough City Council,Commissioning and Commercial Operations,Early Years & Quality Improvement,Services,14/12/2018,30206270,46995.30,Revenue,Stars Pre-School Welland,Grant Payment
Peterborough City Council,Commissioning and Commercial Operations,Early Years & Quality Improvement,Services,14/12/2018,30206271,27085.41,Revenue,Stars Pre-School Ravensthorpe,Grant Payment
Peterborough City Council,Commissioning and Commercial Operations,Early Years & Quality Improvement,Services,14/12/2018,30206272,38113.02,Revenue,Stars Pre-School Parnwell,Grant Payment
Peterborough City Council,Commissioning and Commercial Operations,Early Years & Quality Improvement,Services,14/12/2018,30206274,30327.99,Revenue,Stars Pre-School Dogsthorpe,Grant Payment
Peterborough City Council,Commissioning and Commercial Operations,Early Years & Quality Improvement,Services,14/12/2018,30206275,34909.38,Revenue,St Thomas More Catholic Nursery,Grant Payment
Peterborough City Council,Commissioning and Commercial Operations,Early Years & Quality Improvement,Services,14/12/2018,30206276,17192.31,Revenue,St Michaels Playgroup,Grant Payment
Peterborough City Council,Commissioning and Commercial Operations,Early Years & Quality Improvement,Services,14/12/2018,30206277,33064.02,Revenue,St Josephs Day Nursery,Grant Payment
Peterborough City Council,Commissioning and Commercial Operations,Early Years & Quality Improvement,Services,14/12/2018,30206278,8885.80,Revenue,Play House Pre-School & Out of School Club,Grant Payment
Peterborough City Council,Commissioning and Commercial Operations,Early Years & Quality Improvement,Services,14/12/2018,30206279,67906.08,Revenue,Little Stars Day Nursery,Grant Payment
Peterborough City Council,Commissioning and Commercial Operations,Early Years & Quality Improvement,Services,14/12/2018,30206280,14461.37,Revenue,Little Twinkles Day Nursery,Grant Payment
Peterborough City Council,Commissioning and Commercial Operations,Early Years & Quality Improvement,Services,14/12/2018,30206281,12908.61,Revenue,Millfield Pre-School,Grant Payment
Peterborough City Council,Commissioning and Commercial Operations,Early Years & Quality Improvement,Services,14/12/2018,30206282,6761.90,Revenue,Newborough Pre-School Playgroup,Grant Payment
Peterborough City Council,Commissioning and Commercial Operations,Early Years & Quality Improvement,Services,14/12/2018,30206283,18424.21,Revenue,Longthorpe Playgroup,Grant Payment
Peterborough City Council,Commissioning and Commercial Operations,Early Years & Quality Improvement,Services,14/12/2018,30206284,38594.93,Revenue,Nene Valley Day Nursery,Grant Payment
Peterborough City Council,Commissioning and Commercial Operations,Early Years & Quality Improvement,Services,14/12/2018,30206285,12774.96,Revenue,Little Blossoms,Grant Payment
Peterborough City Council,Commissioning and Commercial Operations,Early Years & Quality Improvement,Services,14/12/2018,30206286,16218.18,Revenue,Little Owls Day Nursery,Grant Payment
Peterborough City Council,Commissioning and Commercial Operations,Early Years & Quality Improvement,Services,14/12/2018,30206287,15943.23,Revenue,Leighton Primary Pre-School,Grant Payment
Peterborough City Council,Commissioning and Commercial Operations,Early Years & Quality Improvement,Services,14/12/2018,30206288,11960.65,Revenue,Little Poppets Day Nursery,Grant Payment
Peterborough City Council,Commissioning and Commercial Operations,Early Years & Quality Improvement,Services,14/12/2018,30206289,8937.72,Revenue,Little Bubbles Nursery,Grant Payment
Peterborough City Council,Commissioning and Commercial Operations,Early Years & Quality Improvement,Services,14/12/2018,30206290,10641.95,Revenue,Little Bees Pre-School,Grant Payment
Peterborough City Council,Commissioning and Commercial Operations,Early Years & Quality Improvement,Services,14/12/2018,30206291,75533.04,Revenue,Herlington Pre-School,Grant Payment
Peterborough City Council,Commissioning and Commercial Operations,Early Years & Quality Improvement,Services,14/12/2018,30206292,12569.25,Revenue,Helpston Playhouse & Under Fives,Grant Payment
Peterborough City Council,Commissioning and Commercial Operations,Early Years & Quality Improvement,Services,14/12/2018,30206293,9081.27,Revenue,Husaini Pre-School,Grant Payment
Peterborough City Council,Commissioning and Commercial Operations,Early Years & Quality Improvement,Services,14/12/2018,30206295,15775.89,Revenue,First Steps Nursery (Maxey) Ltd,Grant Payment
Peterborough City Council,Commissioning and Commercial Operations,Early Years & Quality Improvement,Services,14/12/2018,30206297,3152.16,Revenue,Happy Days Playgroup,Grant Payment
Peterborough City Council,Commissioning and Commercial Operations,Early Years & Quality Improvement,Services,14/12/2018,30206298,11795.85,Revenue,East Community Playgroup,Grant Payment
Peterborough City Council,Commissioning and Commercial Operations,Early Years & Quality Improvement,Services,14/12/2018,30206299,16315.20,Revenue,Four Cs MAT T/A The Fulbridge Academy,Grant Payment
Peterborough City Council,Commissioning and Commercial Operations,Early Years & Quality Improvement,Services,14/12/2018,30206346,752.18,Revenue,Redacted Personal Information,Grant Payment
Peterborough City Council,Commissioning and Commercial Operations,Early Years & Quality Improvement,Services,14/12/2018,30206348,24303.18,Revenue,Peterborough High School Nursery,Grant Payment
Peterborough City Council,Commissioning and Commercial Operations,Early Years & Quality Improvement,Services,14/12/2018,30206349,18008.02,Revenue,SDN Ltd t/a Stars Day Nursery Bushfield,Grant Payment
Peterborough City Council,Commissioning and Commercial Operations,Early Years & Quality Improvement,Services,14/12/2018,30206351,508.86,Revenue,Redacted Personal Information,Grant Payment
Peterborough City Council,Commissioning and Commercial Operations,Early Years & Quality Improvement,Services,14/12/2018,30206352,7787.30,Revenue,Southfields Pre-School Playgroup,Grant Payment
Peterborough City Council,Commissioning and Commercial Operations,Early Years & Quality Improvement,Services,14/12/2018,30206353,18997.61,Revenue,South Bretton Pre School,Grant Payment
Peterborough City Council,Commissioning and Commercial Operations,Early Years & Quality Improvement,Services,14/12/2018,30206354,942.18,Revenue,Redacted Personal Information,Grant Payment
Peterborough City Council,Commissioning and Commercial Operations,Early Years & Quality Improvement,Services,14/12/2018,30206355,16201.35,Revenue,Shooting Stars Pre-School,Grant Payment
Peterborough City Council,Commissioning and Commercial Operations,Early Years & Quality Improvement,Services,14/12/2018,30206357,3055.88,Revenue,Redacted Personal Information,Grant Payment
Peterborough City Council,Commissioning and Commercial Operations,Early Years & Quality Improvement,Services,14/12/2018,30206358,8242.74,Revenue,Rainbow Pre-School,Grant Payment
Peterborough City Council,Commissioning and Commercial Operations,Early Years & Quality Improvement,Services,14/12/2018,30206359,11782.10,Revenue,Rise & Shine Day Nursery,Grant Payment
Peterborough City Council,Commissioning and Commercial Operations,Early Years & Quality Improvement,Services,14/12/2018,30206360,1086.80,Revenue,Redacted Personal Information,Grant Payment
Peterborough City Council,Commissioning and Commercial Operations,Early Years & Quality Improvement,Services,14/12/2018,30206364,543.40,Revenue,Redacted Personal Information,Grant Payment
Peterborough City Council,Commissioning and Commercial Operations,Early Years & Quality Improvement,Services,14/12/2018,30206365,13227.53,Revenue,Shining Stars Pre-School Nursery,Grant Payment
Peterborough City Council,Commissioning and Commercial Operations,Early Years & Quality Improvement,Services,14/12/2018,30206366,1580.44,Revenue,Redacted Personal Information,Grant Payment
Peterborough City Council,Commissioning and Commercial Operations,Early Years & Quality Improvement,Services,14/12/2018,30206367,1358.50,Revenue,Redacted Personal Information,Grant Payment
Peterborough City Council,Commissioning and Commercial Operations,Early Years & Quality Improvement,Services,14/12/2018,30206369,1108.80,Revenue,Redacted Personal Information,Grant Payment
Peterborough City Council,Commissioning and Commercial Operations,Early Years & Quality Improvement,Services,14/12/2018,30206370,14028.11,Revenue,Springtime Nursery Ltd T/As Daisy Chain Day Nursery,Grant Payment
Peterborough City Council,Commissioning and Commercial Operations,Early Years & Quality Improvement,Services,14/12/2018,30206371,14609.85,Revenue,PSLA,Grant Payment
Peterborough City Council,Commissioning and Commercial Operations,Early Years & Quality Improvement,Services,14/12/2018,30206372,1210.30,Revenue,Redacted Personal Information,Grant Payment
Peterborough City Council,Commissioning and Commercial Operations,Early Years & Quality Improvement,Services,14/12/2018,30206373,1165.07,Revenue,Redacted Personal Information,Grant Payment
Peterborough City Council,Commissioning and Commercial Operations,Early Years & Quality Improvement,Services,14/12/2018,30206375,1244.88,Revenue,Redacted Personal Information,Grant Payment
Peterborough City Council,Commissioning and Commercial Operations,Early Years & Quality Improvement,Services,14/12/2018,30206377,1912.90,Revenue,Redacted Personal Information,Grant Payment
Peterborough City Council,Commissioning and Commercial Operations,Early Years & Quality Improvement,Services,14/12/2018,30206379,508.86,Revenue,Redacted Personal Information,Grant Payment
Peterborough City Council,Commissioning and Commercial Operations,Early Years & Quality Improvement,Services,14/12/2018,30206380,1825.82,Revenue,Redacted Personal Information,Grant Payment
Peterborough City Council,Commissioning and Commercial Operations,Early Years & Quality Improvement,Services,14/12/2018,30206385,789.25,Revenue,Redacted Personal Information,Grant Payment
Peterborough City Council,Commissioning and Commercial Operations,Early Years & Quality Improvement,Services,14/12/2018,30206386,978.12,Revenue,Redacted Personal Information,Grant Payment
Peterborough City Council,Commissioning and Commercial Operations,Early Years & Quality Improvement,Services,14/12/2018,30206388,1086.80,Revenue,Redacted Personal Information,Grant Payment
Peterborough City Council,Commissioning and Commercial Operations,Early Years & Quality Improvement,Services,14/12/2018,30206396,660.88,Revenue,Redacted Personal Information,Grant Payment
Peterborough City Council,Commissioning and Commercial Operations,Early Years & Quality Improvement,Services,14/12/2018,30206402,8271.45,Revenue,Family Action,Grant Payment
Peterborough City Council,Commissioning and Commercial Operations,Early Years & Quality Improvement,Services,14/12/2018,30206404,19352.52,Revenue,Family Action,Grant Payment
Peterborough City Council,Commissioning and Commercial Operations,Early Years & Quality Improvement,Services,14/12/2018,30206406,14507.46,Revenue,Family Action,Grant Payment
Peterborough City Council,Commissioning and Commercial Operations,Early Years & Quality Improvement,Services,14/12/2018,30206408,5728.54,Revenue,Family Action,Grant Payment
Peterborough City Council,Commissioning and Commercial Operations,Early Years & Quality Improvement,Services,14/12/2018,30206411,17036.61,Revenue,Eye Pre-School,Grant Payment
Peterborough City Council,Commissioning and Commercial Operations,Early Years & Quality Improvement,Services,14/12/2018,30206414,40505.45,Revenue,Family Action,Grant Payment
Peterborough City Council,Commissioning and Commercial Operations,Early Years & Quality Improvement,Services,14/12/2018,30206416,14909.80,Revenue,Dogsthorpe Community Pre-School,Grant Payment
Peterborough City Council,Commissioning and Commercial Operations,Early Years & Quality Improvement,Services,14/12/2018,30206419,8581.10,Revenue,Discovery Pre School,Grant Payment
Peterborough City Council,Commissioning and Commercial Operations,Early Years & Quality Improvement,Services,14/12/2018,30206420,38833.74,Revenue,Busy Bunnies Nursery,Grant Payment
Peterborough City Council,Commissioning and Commercial Operations,Early Years & Quality Improvement,Services,14/12/2018,30206426,11050.05,Revenue,Castor & Ailsworth Pre School,Grant Payment
Peterborough City Council,Commissioning and Commercial Operations,Early Years & Quality Improvement,Services,14/12/2018,30206427,7831.56,Revenue,Busy Bees Pre-School,Grant Payment
Peterborough City Council,Commissioning and Commercial Operations,Early Years & Quality Improvement,Services,14/12/2018,30206429,35480.51,Revenue,Bright Star's day Nursery,Grant Payment
Peterborough City Council,Commissioning and Commercial Operations,Early Years & Quality Improvement,Services,14/12/2018,30206431,18718.37,Revenue,Busy Bunnies Braybrook,Grant Payment
Peterborough City Council,Commissioning and Commercial Operations,Early Years & Quality Improvement,Services,14/12/2018,30206433,8185.32,Revenue,Brookside Playgroup,Grant Payment
Peterborough City Council,Commissioning and Commercial Operations,Early Years & Quality Improvement,Services,14/12/2018,30206434,35102.93,Revenue,Bretton Community Pre-School,Grant Payment
Peterborough City Council,Commissioning and Commercial Operations,Early Years & Quality Improvement,Services,14/12/2018,30206435,11711.70,Revenue,"Family Action ,  Birchtree Pre- School",Grant Payment
Peterborough City Council,Commissioning and Commercial Operations,Early Years & Quality Improvement,Services,14/12/2018,30206436,978.12,Revenue,Redacted Personal Information,Grant Payment
Peterborough City Council,Commissioning and Commercial Operations,Early Years & Quality Improvement,Services,14/12/2018,30206437,1068.69,Revenue,Redacted Personal Information,Grant Payment
Peterborough City Council,Commissioning and Commercial Operations,Early Years & Quality Improvement,Services,14/12/2018,30206439,2058.90,Revenue,Redacted Personal Information,Grant Payment
Peterborough City Council,Commissioning and Commercial Operations,Early Years & Quality Improvement,Services,14/12/2018,30206440,30476.32,Revenue,Toddlers Inn Day Nursery,Grant Payment
Peterborough City Council,Commissioning and Commercial Operations,Early Years & Quality Improvement,Services,14/12/2018,30206441,28454.88,Revenue,Orton Longueville Playgroup,Grant Payment
Peterborough City Council,Commissioning and Commercial Operations,Early Years & Quality Improvement,Services,14/12/2018,30206442,49104.00,Revenue,Manor House Nursery (Peterborough) Ltd,Grant Payment
Peterborough City Council,Commissioning and Commercial Operations,Early Years & Quality Improvement,Services,14/12/2018,30206443,53177.59,Revenue,Blackberry House Day Nursery,Grant Payment
Peterborough City Council,Commissioning and Commercial Operations,Early Years & Quality Improvement,Services,14/12/2018,30206444,25764.28,Revenue,Belsize Day Nursery,Grant Payment
Peterborough City Council,Commissioning and Commercial Operations,Early Years & Quality Improvement,Services,14/12/2018,30206445,1956.24,Revenue,Redacted Personal Information,Grant Payment
Peterborough City Council,Commissioning and Commercial Operations,Early Years & Quality Improvement,Services,14/12/2018,30206446,24776.73,Revenue,Beeches Pre-School,Grant Payment
Peterborough City Council,Commissioning and Commercial Operations,Early Years & Quality Improvement,Services,14/12/2018,30206447,4298.53,Revenue,Barnack Pre-School,Grant Payment
Peterborough City Council,Commissioning and Commercial Operations,Early Years & Quality Improvement,Services,14/12/2018,30206448,38324.88,Revenue,Apricot Childcare,Grant Payment
Peterborough City Council,Commissioning and Commercial Operations,Early Years & Quality Improvement,Services,14/12/2018,30206449,78945.24,Revenue,Alpha Big Sky Ltd,Grant Payment
Peterborough City Council,Commissioning and Commercial Operations,Early Years & Quality Improvement,Services,14/12/2018,30206450,1967.26,Revenue,Redacted Personal Information,Grant Payment
Peterborough City Council,Commissioning and Commercial Operations,Early Years & Quality Improvement,Services,14/12/2018,30206451,3367.10,Revenue,Redacted Personal Information,Grant Payment
Peterborough City Council,Commissioning and Commercial Operations,Early Years & Quality Improvement,Services,14/12/2018,30206452,978.12,Revenue,Redacted Personal Information,Grant Payment
Peterborough City Council,Commissioning and Commercial Operations,Early Years & Quality Improvement,Services,14/12/2018,30206453,1956.24,Revenue,Redacted Personal Information,Grant Payment
Peterborough City Council,Commissioning and Commercial Operations,Early Years & Quality Improvement,Services,14/12/2018,30206462,1285.06,Revenue,Little Tykes Childcare,Grant Payment
Peterborough City Council,Commissioning and Commercial Operations,Early Years & Quality Improvement,Services,14/12/2018,30206463,1956.24,Revenue,Redacted Personal Information,Grant Payment
Peterborough City Council,Commissioning and Commercial Operations,Early Years & Quality Improvement,Services,14/12/2018,30206464,508.86,Revenue,Redacted Personal Information,Grant Payment
Peterborough City Council,Commissioning and Commercial Operations,Early Years & Quality Improvement,Services,14/12/2018,30206465,3829.49,Revenue,Lisa Childminding,Grant Payment
Peterborough City Council,Commissioning and Commercial Operations,Early Years & Quality Improvement,Services,14/12/2018,30206469,941.89,Revenue,Redacted Personal Information,Grant Payment
Peterborough City Council,Commissioning and Commercial Operations,Early Years & Quality Improvement,Services,14/12/2018,30206474,2347.62,Revenue,Redacted Personal Information,Grant Payment
Peterborough City Council,Commissioning and Commercial Operations,Early Years & Quality Improvement,Services,14/12/2018,30206475,586.87,Revenue,Redacted Personal Information,Grant Payment
Peterborough City Council,Commissioning and Commercial Operations,Early Years & Quality Improvement,Services,14/12/2018,30206477,3051.97,Revenue,Redacted Personal Information,Grant Payment
Peterborough City Council,Commissioning and Commercial Operations,Early Years & Quality Improvement,Services,14/12/2018,30206479,4059.13,Revenue,Redacted Personal Information,Grant Payment
Peterborough City Council,Commissioning and Commercial Operations,Early Years & Quality Improvement,Services,14/12/2018,30206480,1660.79,Revenue,Redacted Personal Information,Grant Payment
Peterborough City Council,Commissioning and Commercial Operations,Early Years & Quality Improvement,Services,14/12/2018,30206482,1486.98,Revenue,Redacted Personal Information,Grant Payment
Peterborough City Council,Commissioning and Commercial Operations,Early Years & Quality Improvement,Services,14/12/2018,30206509,10041.83,Revenue,Noah's Ark Pre-School,Grant Payment
Peterborough City Council,Education,School Standards & Effectiveness,Services,14/12/2018,30206510,1000.00,Revenue,Northampton Academy,Grant Payment
Peterborough City Council,Education,School Standards & Effectiveness,Services,14/12/2018,30206517,750.00,Revenue,Rise Academy,Grant Payment
Peterborough City Council,Education,School Standards & Effectiveness,Services,14/12/2018,30206518,1500.00,Revenue,Ling Moor Primary Academy,Grant Payment
Peterborough City Council,Education,School Standards & Effectiveness,Services,14/12/2018,30206521,1040.00,Revenue,Sir Harry Smith Community College,Grant Payment
Peterborough City Council,Education,School Standards & Effectiveness,Services,14/12/2018,30206522,1200.00,Revenue,St Simon Stock Catholic School,Grant Payment
Peterborough City Council,Education,School Standards & Effectiveness,Services,14/12/2018,30206526,575.00,Revenue,NCC Ringstead C E Primary School,Grant Payment
Peterborough City Council,Education,School Standards & Effectiveness,Services,14/12/2018,30206529,1267.31,Revenue,The Arnewood School,Grant Payment
Peterborough City Council,Education,School Standards & Effectiveness,Services,14/12/2018,30206530,1575.00,Revenue,The Bluecoat School,Grant Payment
Peterborough City Council,Communities,Housing,Services,14/12/2018,30206686,1420.00,Revenue,Haart Lettings,Financial Assistance
Peterborough City Council,Education,School Standards & Effectiveness,Services,14/12/2018,30206687,663.26,Revenue,Cromwell Community College,Grant Payment
Peterborough City Council,Education,School Standards & Effectiveness,Services,14/12/2018,30206689,750.00,Revenue,Abbey College,Grant Payment
Peterborough City Council,Education,School Standards & Effectiveness,Services,14/12/2018,30206714,550.00,Revenue,Sawtry Village Academy,Grant Payment
Peterborough City Council,Education,School Standards & Effectiveness,Services,14/12/2018,30206717,600.00,Revenue,Shenley Academy,Grant Payment
Peterborough City Council,Education,School Standards & Effectiveness,Services,14/12/2018,30206718,1000.00,Revenue,Belton Lane Primary School,Grant Payment
Peterborough City Council,Commissioning and Commercial Operations,Early Years & Quality Improvement,Services,14/12/2018,30206729,24082.74,Revenue,Smiley Faces Day Nursery,Grant Payment
Peterborough City Council,Service Director Environment & Economy,Service Director,Agency Staff,14/12/2018,30206731,6400.00,Revenue,Regen Management Consultancy Limited,External Temporary Staff
Peterborough City Council,Service Director Environment & Economy,Service Director,Agency Staff,14/12/2018,30206733,6400.00,Revenue,Regen Management Consultancy Limited,External Temporary Staff
Peterborough City Council,Children's & Safeguarding,Children's Social Care,Agency Staff,14/12/2018,30206827,-530.40,Revenue,Liquid Personnel,External Temporary Staff
Peterborough City Council,Peterborough Highway Services,Transport & Infrastructure Commissioning,Energy Costs,14/12/2018,30206842,1682.59,Revenue,British Gas Business,Electricity
Peterborough City Council,Adults,Independent Sector Placements,Services,14/12/2018,30206895,3517.43,Revenue,Park Vista Care Home,Residential Care
Peterborough City Council,Children's & Safeguarding,Access to Resources & Specialist Commissioning,Services,14/12/2018,30206923,2982.90,Revenue,Key2 Futures Limited,Boarding Out Fees
Peterborough City Council,Children's & Safeguarding,Access to Resources & Specialist Commissioning,Services,14/12/2018,30206924,3067.45,Revenue,Key2 Futures Limited,Boarding Out Fees
Peterborough City Council,Children's & Safeguarding,Access to Resources & Specialist Commissioning,Services,14/12/2018,30206925,2968.50,Revenue,Key2 Futures Limited,Boarding Out Fees
Peterborough City Council,Children's & Safeguarding,Access to Resources & Specialist Commissioning,Services,14/12/2018,30206926,2968.50,Revenue,Key2 Futures Limited,Boarding Out Fees
Peterborough City Council,Children's & Safeguarding,Access to Resources & Specialist Commissioning,Services,14/12/2018,30206927,2968.50,Revenue,Key2 Futures Limited,Boarding Out Fees
Peterborough City Council,Education,School Standards & Effectiveness,Services,14/12/2018,30206958,1200.00,Revenue,West Lea School,Grant Payment
Peterborough City Council,Communities,Housing,Services,14/12/2018,30206961,11726.00,Revenue,Cross Keys Homes,Temporary Accommodation Costs
Peterborough City Council,Development and Construction,Development Management,Agency Staff,14/12/2018,30206962,1365.01,Revenue,Reed Specialist Recruitment Limited,External Temporary Staff
Peterborough City Council,Legal Services,Legal Services,Agency Staff,14/12/2018,30206963,630.99,Revenue,Ten-Percent.co.uk Limited,External Temporary Staff
Peterborough City Council,Adults,Day opportunities - Older People,Catering,14/12/2018,30206964,917.60,Revenue,The Cresset (Peterborough) Ltd,Catering Provisions
Peterborough City Council,Adults,Other Services,Third Party Payments,14/12/2018,30206966,12791.00,Revenue,Healthwatch Cambridgeshire and Peterborough,Third Party Payments - Contract
Peterborough City Council,Children's & Safeguarding,Access to Resources & Specialist Commissioning,Services,14/12/2018,30207000,1360.00,Revenue,Sixteen Plus Limited,Boarding Out Fees
Peterborough City Council,Adults,Independent Sector Placements,Services,14/12/2018,30207095,6543.32,Revenue,Mencap,Home Care
Peterborough City Council,Adults,Independent Sector Placements,Services,14/12/2018,30207131,2096.12,Revenue,Mayfield Residential Home,Residential Care
Peterborough City Council,Adults,Independent Sector Placements,Services,14/12/2018,30207132,2096.12,Revenue,Mayfield Residential Home,Residential Care
Peterborough City Council,Adults,Independent Sector Placements,Services,14/12/2018,30207133,2096.12,Revenue,Mayfield Residential Home,Residential Care
Peterborough City Council,Corporate,Corporate,Non Revenue,14/12/2018,30207168,1500.00,Capital,Barker Storey Matthews,Consultants Fees
Peterborough City Council,Legal Services,Legal Services,Agency Staff,14/12/2018,30207174,902.63,Revenue,Giant Professional Limited,External Temporary Staff
Peterborough City Council,Corporate,Corporate,Non Revenue,14/12/2018,30207184,15167.01,Capital,CEL Leadwork Contracts Ltd,Building And Site Works
Peterborough City Council,Corporate,Corporate,Non Revenue,14/12/2018,30207184,24101.80,Capital,CEL Leadwork Contracts Ltd,Building And Site Works
Peterborough City Council,Corporate,Corporate,Non Revenue,14/12/2018,30207186,69417.93,Capital,Serco Ltd,IT Equipment
Peterborough City Council,Education,Special Educational Needs / Inclusion,Services,14/12/2018,30207191,518.00,Revenue,Ewing Foundation,Hired Services
Peterborough City Council,Children's & Safeguarding,Access to Resources & Specialist Commissioning,Services,14/12/2018,30207230,687.14,Revenue,Locate Accommodation Ltd,Boarding Out Fees
Peterborough City Council,Children's & Safeguarding,Access to Resources & Specialist Commissioning,Services,14/12/2018,30207231,610.00,Revenue,Maze Independent Care Ltd,Boarding Out Fees
Peterborough City Council,Children's & Safeguarding,Access to Resources & Specialist Commissioning,Services,14/12/2018,30207233,10992.00,Revenue,Positive Steps (Care Services) Ltd,Boarding Out Fees
Peterborough City Council,City Centre Management,"Markets, Tourism & Events",Services,14/12/2018,30207271,2723.48,Revenue,National Express Ltd,Tickets
Peterborough City Council,Peterborough Highway Services,Highway & Drainage Control,Contract Hire and Operating Leases,14/12/2018,30207342,3740.21,Revenue,Northumbria Healthcare NHS Foundation Trust,Leasing Charges
Peterborough City Council,Resilience & Health & Safety,Resilience & Health & Safety,Contract Hire and Operating Leases,14/12/2018,30207343,6398.54,Revenue,Northumbria Healthcare NHS Foundation Trust,Leasing Charges
Peterborough City Council,Children's & Safeguarding,Children's Social Care,Contract Hire and Operating Leases,14/12/2018,30207344,4638.02,Revenue,Northumbria Healthcare NHS Foundation Trust,Leasing Charges
Peterborough City Council,Westcombe Engineering,Westcombe Engineering,Contract Hire and Operating Leases,14/12/2018,30207345,5148.98,Revenue,Northumbria Healthcare NHS Foundation Trust,Leasing Charges
Peterborough City Council,Constitutional Services,Elections,Contract Hire and Operating Leases,14/12/2018,30207346,2982.50,Revenue,Northumbria Healthcare NHS Foundation Trust,Leasing Charges
Peterborough City Council,Communities,Service Director - Adults & Communities,Contract Hire and Operating Leases,14/12/2018,30207347,6387.04,Revenue,Northumbria Healthcare NHS Foundation Trust,Leasing Charges
Peterborough City Council,Education,HTS & CSC Transport,Contract Hire and Operating Leases,14/12/2018,8000131595,3740.00,Revenue,Newborough Coaches Ltd,Hired Transport
Peterborough City Council,Education,HTS & CSC Transport,Contract Hire and Operating Leases,14/12/2018,8000131596,3553.00,Revenue,Newborough Coaches Ltd,Hired Transport
Peterborough City Council,Education,HTS & CSC Transport,Contract Hire and Operating Leases,14/12/2018,8000131597,4063.00,Revenue,Newborough Coaches Ltd,Hired Transport
Peterborough City Council,Education,HTS & CSC Transport,Contract Hire and Operating Leases,14/12/2018,8000131598,3870.00,Revenue,Newborough Coaches Ltd,Hired Transport
Peterborough City Council,Education,HTS & CSC Transport,Contract Hire and Operating Leases,14/12/2018,8000131599,4140.00,Revenue,Newborough Coaches Ltd,Hired Transport
Peterborough City Council,Education,HTS & CSC Transport,Contract Hire and Operating Leases,14/12/2018,8000131601,612.00,Revenue,King Carz Ltd,Hired Transport
Peterborough City Council,Education,HTS & CSC Transport,Contract Hire and Operating Leases,14/12/2018,8000131602,816.00,Revenue,King Carz Ltd,Hired Transport
Peterborough City Council,Education,HTS & CSC Transport,Contract Hire and Operating Leases,14/12/2018,8000131615,636.53,Revenue,Redacted Personal Information,Hired Transport
Peterborough City Council,Education,HTS & CSC Transport,Contract Hire and Operating Leases,14/12/2018,8000131628,1051.20,Revenue,A2B Euro Cars,Hired Transport
Peterborough City Council,Education,HTS & CSC Transport,Contract Hire and Operating Leases,14/12/2018,8000131629,954.40,Revenue,A2B Euro Cars,Hired Transport
Peterborough City Council,Education,HTS & CSC Transport,Contract Hire and Operating Leases,14/12/2018,8000131632,618.00,Revenue,A2B Euro Cars,Hired Transport
Peterborough City Council,Education,HTS & CSC Transport,Contract Hire and Operating Leases,14/12/2018,8000131633,500.40,Revenue,A2B Euro Cars,Hired Transport
Peterborough City Council,Education,HTS & CSC Transport,Contract Hire and Operating Leases,14/12/2018,8000131655,770.67,Revenue,Redacted Personal Information,Hired Transport
Peterborough City Council,Adults,Independent Sector Placements,Services,17/12/2018,30183897,-48314.03,Revenue,PJ Care Ltd,Residential Care
Peterborough City Council,Adults,Independent Sector Placements,Services,17/12/2018,30204042,1703.36,Revenue,Athena (Ashlynn Grange),Residential Care
Peterborough City Council,Adults,Independent Sector Placements,Services,17/12/2018,30204050,1821.88,Revenue,Athena (Ashlynn Grange),Residential Care
Peterborough City Council,Adults,Independent Sector Placements,Services,17/12/2018,30204051,2318.36,Revenue,Athena (Ashlynn Grange),Residential Care
Peterborough City Council,Adults,Independent Sector Placements,Services,17/12/2018,30204052,1115.20,Revenue,Athena (Ashlynn Grange),Residential Care
Peterborough City Council,Adults,Independent Sector Placements,Services,17/12/2018,30204053,1987.17,Revenue,Athena (Ashlynn Grange),Residential Care
Peterborough City Council,Adults,Independent Sector Placements,Services,17/12/2018,30204055,1785.96,Revenue,Athena (Ashlynn Grange),Residential Care
Peterborough City Council,Adults,Independent Sector Placements,Services,17/12/2018,30204060,1159.18,Revenue,Athena (Ashlynn Grange),Residential Care
Peterborough City Council,Adults,Independent Sector Placements,Services,17/12/2018,30204061,1014.96,Revenue,Athena (Ashlynn Grange),Residential Care
Peterborough City Council,Adults,Independent Sector Placements,Services,17/12/2018,30204063,1569.36,Revenue,Athena (Ashlynn Grange),Residential Care
Peterborough City Council,Adults,Independent Sector Placements,Services,17/12/2018,30204069,1165.92,Revenue,Athena (Ashlynn Grange),Residential Care
Peterborough City Council,Adults,Independent Sector Placements,Services,17/12/2018,30204070,1737.96,Revenue,Athena (Ashlynn Grange),Residential Care
Peterborough City Council,Adults,Independent Sector Placements,Services,17/12/2018,30204071,1729.00,Revenue,Athena (Ashlynn Grange),Residential Care
Peterborough City Council,Adults,Independent Sector Placements,Services,17/12/2018,30204087,2318.36,Revenue,Athena (Ashlynn Grange),Residential Care
Peterborough City Council,Adults,Independent Sector Placements,Services,17/12/2018,30204088,1455.20,Revenue,Athena (Ashlynn Grange),Residential Care
Peterborough City Council,Adults,Independent Sector Placements,Services,17/12/2018,30204089,1032.88,Revenue,Athena (Ashlynn Grange),Residential Care
Peterborough City Council,Adults,Independent Sector Placements,Services,17/12/2018,30204090,1687.00,Revenue,Athena (Ashlynn Grange),Residential Care
Peterborough City Council,Adults,Independent Sector Placements,Services,17/12/2018,30204091,920.92,Revenue,Athena (Ashlynn Grange),Residential Care
Peterborough City Council,Adults,Independent Sector Placements,Services,17/12/2018,30204093,1821.88,Revenue,Athena (Ashlynn Grange),Residential Care
Peterborough City Council,Adults,Independent Sector Placements,Services,17/12/2018,30204094,1685.72,Revenue,Athena (Ashlynn Grange),Residential Care
Peterborough City Council,Adults,Independent Sector Placements,Services,17/12/2018,30204097,2318.36,Revenue,Athena (Ashlynn Grange),Residential Care
Peterborough City Council,Adults,Independent Sector Placements,Services,17/12/2018,30204099,1821.04,Revenue,Athena (Ashlynn Grange),Residential Care
Peterborough City Council,Adults,Independent Sector Placements,Services,17/12/2018,30204101,1773.96,Revenue,Athena (Ashlynn Grange),Residential Care
Peterborough City Council,Adults,Independent Sector Placements,Services,17/12/2018,30204102,1268.16,Revenue,Athena (Ashlynn Grange),Residential Care
Peterborough City Council,Adults,Independent Sector Placements,Services,17/12/2018,30204104,1765.96,Revenue,Athena (Ashlynn Grange),Residential Care
Peterborough City Council,Adults,Independent Sector Placements,Services,17/12/2018,30204106,2318.36,Revenue,Athena (Ashlynn Grange),Residential Care
Peterborough City Council,Adults,Independent Sector Placements,Services,17/12/2018,30204108,1980.00,Revenue,Athena (Ashlynn Grange),Residential Care
Peterborough City Council,Adults,Independent Sector Placements,Services,17/12/2018,30204109,1821.88,Revenue,Athena (Ashlynn Grange),Residential Care
Peterborough City Council,Adults,Independent Sector Placements,Services,17/12/2018,30204115,1649.48,Revenue,Athena (Ashlynn Grange),Residential Care
Peterborough City Council,Adults,Independent Sector Placements,Services,17/12/2018,30204118,1681.28,Revenue,Athena (Ashlynn Grange),Residential Care
Peterborough City Council,Adults,Independent Sector Placements,Services,17/12/2018,30204120,1190.43,Revenue,Athena (Ashlynn Grange),Residential Care
Peterborough City Council,Adults,Independent Sector Placements,Services,17/12/2018,30204121,1591.20,Revenue,Athena (Ashlynn Grange),Residential Care
Peterborough City Council,Adults,Independent Sector Placements,Services,17/12/2018,30204122,1731.44,Revenue,Athena (Ashlynn Grange),Residential Care
Peterborough City Council,Communities,Cultural Services,Repair & Maintenance of Buildings,17/12/2018,30204410,515.00,Revenue,Jones Lang LaSalle,Service Charges - Premises
Peterborough City Council,Communities,Cohesion,Third Party Payments,17/12/2018,30204504,3999.66,Revenue,Solutions 4 Health Ltd,Third Party Payments - Contract
Peterborough City Council,City Centre Management,"Markets, Tourism & Events",Services,17/12/2018,30204506,700.00,Revenue,Street Arts Hire Ltd,Hired Services
Peterborough City Council,Commissioning and Commercial Operations,Commissioning,Services,17/12/2018,30204538,545.80,Revenue,121 Social Care Limited,Hired Services
Peterborough City Council,Peterborough Highway Services,Highway Services - HoS,Services,17/12/2018,30204601,4590.62,Revenue,Dynniq UK Ltd,Infrastructure Maintenance
Peterborough City Council,Adults,Finance,Third Party Payments,17/12/2018,30204686,9000.00,Revenue,Lincolnshire Care Association Ltd,Third Party Payments - Contract
Peterborough City Council,Communities,Housing,Services,17/12/2018,30204690,11368.58,Revenue,DA Rosalia Hotel,Temporary Accommodation Costs
Peterborough City Council,Corporate,Corporate,Non Revenue,17/12/2018,30204691,7240.46,Capital,Cambridgeshire County Council,Infrastructure
Peterborough City Council,Westcombe Engineering,Westcombe Engineering,"Tools, Equipment, Furniture & Materials",17/12/2018,30204701,639.83,Revenue,Carillon Industrial Services Ltd,Tools
Peterborough City Council,HR,HR WFD & Training,Services,17/12/2018,30204702,6700.00,Revenue,University of East Anglia,Course Instructors Fees
Peterborough City Council,Director,Director,Services,17/12/2018,30205013,60526.49,Revenue,PJ Care Ltd,Residential Care
Peterborough City Council,Adults,Independent Sector Placements,Services,17/12/2018,30205302,2464.29,Revenue,PSYCARE LIMITED,Residential Care
Peterborough City Council,Peterborough Serco Strategic Partnership,Peterborough Serco Strategic Partnership,Services,17/12/2018,30205425,164148.24,Revenue,Serco Ltd,Contract Services
Peterborough City Council,Peterborough Serco Strategic Partnership,Peterborough Serco Strategic Partnership,Third Party Payments,17/12/2018,30205430,890312.78,Revenue,Serco Ltd,Third Party Payments - Contract
Peterborough City Council,Peterborough Serco Strategic Partnership,Peterborough Serco Strategic Partnership,Third Party Payments,17/12/2018,30205433,504984.00,Revenue,Serco Ltd,Third Party Payments - Contract
Peterborough City Council,Commissioning and Commercial Operations,Clare Lodge,Agency Staff,17/12/2018,30205705,1952.00,Revenue,Wrixon Care Services,External Temporary Staff
Peterborough City Council,Westcombe Engineering,Westcombe Engineering,"Tools, Equipment, Furniture & Materials",17/12/2018,30206004,567.60,Revenue,Barron Clark Castings Ltd,Materials
Peterborough City Council,Westcombe Engineering,Westcombe Engineering,"Tools, Equipment, Furniture & Materials",17/12/2018,30206005,1023.36,Revenue,Barron Clark Castings Ltd,Materials
Peterborough City Council,Westcombe Engineering,Westcombe Engineering,"Tools, Equipment, Furniture & Materials",17/12/2018,30206006,533.52,Revenue,Barron Clark Castings Ltd,Materials
Peterborough City Council,Corporate Property,Office Accomodation,Rents,17/12/2018,30206099,8250.00,Revenue,Beeson Wright Ltd,Rent
Peterborough City Council,Corporate,Corporate,Non Revenue,17/12/2018,30206519,650.00,Capital,Spotless {Cleaning Services},Grant Payment
Peterborough City Council,Corporate,Corporate,Non Revenue,17/12/2018,30206520,4021.47,Capital,G & J Roffe Limited,Grant Payment
Peterborough City Council,Corporate,Corporate,Non Revenue,17/12/2018,30206527,9663.33,Capital,Obam Domestic Lift Services Ltd,Grant Payment
Peterborough City Council,Corporate,Corporate,Non Revenue,17/12/2018,30206531,1403.20,Capital,Richard Masham Building Services,Grant Payment
Peterborough City Council,Corporate Items,Corporate Services,Services,17/12/2018,30206649,6752.00,Revenue,Ernst & Young LLP,Audit Fees
Peterborough City Council,City Centre Management,"Markets, Tourism & Events",Services,17/12/2018,30206700,563.40,Revenue,Chapter of Peterborough Cathedral,Tickets
Peterborough City Council,Peterborough Highway Services,Transport & Infrastructure Commissioning,Energy Costs,17/12/2018,30206836,739.56,Revenue,British Gas Business,Electricity
Peterborough City Council,Peterborough Highway Services,Transport & Infrastructure Commissioning,Energy Costs,17/12/2018,30206838,718.67,Revenue,British Gas Business,Electricity
Peterborough City Council,Adults,Independent Sector Placements,Services,17/12/2018,30207017,1879.12,Revenue,Augusta Care Ltd,Home Care
Peterborough City Council,Corporate,Corporate,Non Revenue,17/12/2018,30207156,2046.31,Capital,Nadeem Construction Ltd,Grant Payment
Peterborough City Council,Corporate,Corporate,Non Revenue,17/12/2018,30207158,4546.50,Capital,Gaswise Services Ltd,Grant Payment
Peterborough City Council,Corporate Property,Commercial Propety,Services,17/12/2018,30207161,1000.00,Revenue,Barker Storey Matthews,Valuations
Peterborough City Council,Adults,Independent Sector Placements,Services,17/12/2018,30207268,1671.43,Revenue,HC-One Oval Limited,Residential Care
Peterborough City Council,Adults,Independent Sector Placements,Services,17/12/2018,30207270,1800.00,Revenue,HC-One Oval Limited,Residential Care
Peterborough City Council,Commissioning and Commercial Operations,Early Years & Quality Improvement,Services,17/12/2018,30207297,11900.33,Revenue,Sunflower Seed Pre-School,Grant Payment
Peterborough City Council,Commissioning and Commercial Operations,Early Years & Quality Improvement,Services,17/12/2018,30207298,40380.12,Revenue,Peterborough Regional College,Grant Payment
Peterborough City Council,Commissioning and Commercial Operations,Early Years & Quality Improvement,Services,17/12/2018,30207299,15362.33,Revenue,Winyates Pre School,Grant Payment
Peterborough City Council,Commissioning and Commercial Operations,Early Years & Quality Improvement,Services,17/12/2018,30207300,17776.18,Revenue,The Teddy Bears inn Day Nursery Ltd,Grant Payment
Peterborough City Council,Commissioning and Commercial Operations,Early Years & Quality Improvement,Services,17/12/2018,30207301,37886.47,Revenue,The Hampton Day Nursery,Grant Payment
Peterborough City Council,Commissioning and Commercial Operations,Early Years & Quality Improvement,Services,17/12/2018,30207302,12075.14,Revenue,The Voyager Nursery,Grant Payment
Peterborough City Council,Commissioning and Commercial Operations,Early Years & Quality Improvement,Services,17/12/2018,30207303,8783.06,Revenue,The Owls' Nest Pre-School,Grant Payment
Peterborough City Council,Commissioning and Commercial Operations,Early Years & Quality Improvement,Services,17/12/2018,30207304,11988.38,Revenue,Orton Wistow Under Fives,Grant Payment
Peterborough City Council,Commissioning and Commercial Operations,Early Years & Quality Improvement,Services,17/12/2018,30207305,9280.26,Revenue,Paston & Gunthorpe Pre-School,Grant Payment
Peterborough City Council,Commissioning and Commercial Operations,Early Years & Quality Improvement,Services,17/12/2018,30207306,7830.90,Revenue,Shiny Stars Pre-School,Grant Payment
Peterborough City Council,Commissioning and Commercial Operations,Early Years & Quality Improvement,Services,17/12/2018,30207307,39910.73,Revenue,Kiddi Caru Day Nursery,Grant Payment
Peterborough City Council,Commissioning and Commercial Operations,Early Years & Quality Improvement,Services,17/12/2018,30207308,29282.59,Revenue,Flying Start Pre-School & Day Care Centre,Grant Payment
Peterborough City Council,Commissioning and Commercial Operations,Early Years & Quality Improvement,Services,17/12/2018,30207309,4542.11,Revenue,Little Angels,Grant Payment
Peterborough City Council,Commissioning and Commercial Operations,Early Years & Quality Improvement,Services,17/12/2018,30207310,2085.93,Revenue,Stars Pre-School Ravensthorpe,Grant Payment
Peterborough City Council,Commissioning and Commercial Operations,Early Years & Quality Improvement,Services,17/12/2018,30207311,2174.77,Revenue,Stars Pre-School Dogsthorpe,Grant Payment
Peterborough City Council,Commissioning and Commercial Operations,Early Years & Quality Improvement,Services,17/12/2018,30207312,862.79,Revenue,Shining Stars Pre-School Nursery,Grant Payment
Peterborough City Council,Commissioning and Commercial Operations,Early Years & Quality Improvement,Services,17/12/2018,30207314,24608.46,Revenue,Newark Playgroup,Grant Payment
Peterborough City Council,Commissioning and Commercial Operations,Early Years & Quality Improvement,Services,17/12/2018,30207315,16941.08,Revenue,Stanground St Johns Pre-School,Grant Payment
Peterborough City Council,Commissioning and Commercial Operations,Early Years & Quality Improvement,Services,17/12/2018,30207316,13931.06,Revenue,PSLA,Grant Payment
Peterborough City Council,Commissioning and Commercial Operations,Early Years & Quality Improvement,Services,17/12/2018,30207320,10405.88,Revenue,Duke Of Bedford Pre-School,Grant Payment
Peterborough City Council,Commissioning and Commercial Operations,Early Years & Quality Improvement,Services,17/12/2018,30207322,28622.88,Revenue,ABC Nursery,Grant Payment
Peterborough City Council,Commissioning and Commercial Operations,Early Years & Quality Improvement,Services,17/12/2018,30207323,40612.84,Revenue,Anna-Ca-Soo Day Nursery,Grant Payment
Peterborough City Council,Commissioning and Commercial Operations,Early Years & Quality Improvement,Services,17/12/2018,30207324,7273.53,Revenue,Family Action,Grant Payment
Peterborough City Council,Commissioning and Commercial Operations,Early Years & Quality Improvement,Services,17/12/2018,30207328,11259.82,Revenue,Bee Bright Day Nursery,Grant Payment
Peterborough City Council,Commissioning and Commercial Operations,Early Years & Quality Improvement,Services,17/12/2018,30207330,1108.80,Revenue,Redacted Personal Information,Grant Payment
Peterborough City Council,Children's & Safeguarding,CSC Quality Assurance,Services,17/12/2018,30207381,18004.00,Revenue,Cambs & P'boro NHS Foundation Trust,Contributions
Peterborough City Council,Children's & Safeguarding,External Education Placements,Services,17/12/2018,30207407,3111.33,Revenue,Gosberton House Academy,Education Expenses
Peterborough City Council,Adults,Strategic Commissioning - Management,Agency Staff,17/12/2018,30207437,836.88,Revenue,Reed Specialist Recruitment Limited,External Temporary Staff
Peterborough City Council,Adults,Home Services Delivery Model,Third Party Payments,17/12/2018,30207455,8259.10,Revenue,Cross Keys Homes,Grant-Third Party
Peterborough City Council,Communities,Housing,Services,17/12/2018,30207471,8190.00,Revenue,Tower Properties (Peterborough) Ltd,Temporary Accommodation Costs
Peterborough City Council,Education,School Standards & Effectiveness,Contract Hire and Operating Leases,17/12/2018,30207513,3604.82,Revenue,Northumbria Healthcare NHS Foundation Trust,Leasing Charges
Peterborough City Council,Communities,Housing,Contract Hire and Operating Leases,17/12/2018,30207514,3274.82,Revenue,Northumbria Healthcare NHS Foundation Trust,Leasing Charges
Peterborough City Council,Communities,Targeted Youth Service,Contract Hire and Operating Leases,17/12/2018,30207516,4705.94,Revenue,Northumbria Healthcare NHS Foundation Trust,Leasing Charges
Peterborough City Council,Adults,Community Team,Contract Hire and Operating Leases,17/12/2018,30207521,4188.43,Revenue,Northumbria Healthcare NHS Foundation Trust,Leasing Charges
Peterborough City Council,Adults,Independent Sector Placements,Services,17/12/2018,8000130747,681.60,Revenue,Augusta Care Ltd,Home Care
Peterborough City Council,Adults,Independent Sector Placements,Services,17/12/2018,8000130748,932.76,Revenue,Augusta Care Ltd,Home Care
Peterborough City Council,Adults,Independent Sector Placements,Services,17/12/2018,8000131528,795.20,Revenue,Augusta Care Ltd,Home Care
Peterborough City Council,Adults,Independent Sector Placements,Services,17/12/2018,8000131529,4100.08,Revenue,Augusta Care Ltd,Home Care
Peterborough City Council,Adults,Independent Sector Placements,Services,17/12/2018,8000131530,2964.08,Revenue,Augusta Care Ltd,Home Care
Peterborough City Council,Adults,Independent Sector Placements,Services,17/12/2018,8000131531,1400.12,Revenue,Augusta Care Ltd,Home Care
Peterborough City Council,Adults,Independent Sector Placements,Services,17/12/2018,8000131532,3588.52,Revenue,Augusta Care Ltd,Home Care
Peterborough City Council,Adults,Independent Sector Placements,Services,17/12/2018,8000131533,2862.72,Revenue,Augusta Care Ltd,Home Care
Peterborough City Council,Adults,Independent Sector Placements,Services,17/12/2018,8000131534,4843.00,Revenue,Augusta Care Ltd,Home Care
Peterborough City Council,Adults,Independent Sector Placements,Services,17/12/2018,8000131536,4710.68,Revenue,Augusta Care Ltd,Home Care
Peterborough City Council,Adults,Independent Sector Placements,Services,17/12/2018,8000131538,1590.40,Revenue,Augusta Care Ltd,Home Care
Peterborough City Council,Adults,Independent Sector Placements,Services,17/12/2018,8000131539,1590.40,Revenue,Augusta Care Ltd,Home Care
Peterborough City Council,Adults,Independent Sector Placements,Services,17/12/2018,8000131542,5014.88,Revenue,Augusta Care Ltd,Home Care
Peterborough City Council,Adults,Independent Sector Placements,Services,17/12/2018,8000131543,653.20,Revenue,Augusta Care Ltd,Home Care
Peterborough City Council,Adults,Independent Sector Placements,Services,17/12/2018,8000131544,1420.00,Revenue,Augusta Care Ltd,Home Care
Peterborough City Council,Adults,Independent Sector Placements,Services,17/12/2018,8000131545,1022.40,Revenue,Augusta Care Ltd,Home Care
Peterborough City Council,Adults,Independent Sector Placements,Services,17/12/2018,8000131546,2044.80,Revenue,Augusta Care Ltd,Home Care
Peterborough City Council,Adults,Independent Sector Placements,Services,17/12/2018,8000131547,1178.60,Revenue,Augusta Care Ltd,Home Care
Peterborough City Council,Adults,Independent Sector Placements,Services,17/12/2018,8000131548,7916.16,Revenue,Augusta Care Ltd,Home Care
Peterborough City Council,Adults,Independent Sector Placements,Services,17/12/2018,8000131549,7712.88,Revenue,Augusta Care Ltd,Home Care
Peterborough City Council,Adults,Independent Sector Placements,Services,17/12/2018,8000131551,3598.48,Revenue,Augusta Care Ltd,Home Care
Peterborough City Council,Adults,Independent Sector Placements,Services,17/12/2018,8000131552,11132.80,Revenue,Augusta Care Ltd,Home Care
Peterborough City Council,Adults,Independent Sector Placements,Services,17/12/2018,8000131553,1604.60,Revenue,Augusta Care Ltd,Home Care
Peterborough City Council,Adults,Independent Sector Placements,Services,17/12/2018,8000131554,908.80,Revenue,Augusta Care Ltd,Home Care
Peterborough City Council,Adults,Independent Sector Placements,Services,17/12/2018,8000131555,1628.24,Revenue,Augusta Care Ltd,Home Care
Peterborough City Council,Adults,Independent Sector Placements,Services,17/12/2018,8000131556,2139.44,Revenue,Augusta Care Ltd,Home Care
Peterborough City Council,Adults,Independent Sector Placements,Services,17/12/2018,8000131557,2253.04,Revenue,Augusta Care Ltd,Home Care
Peterborough City Council,Adults,Independent Sector Placements,Services,17/12/2018,8000131558,4013.04,Revenue,Augusta Care Ltd,Home Care
Peterborough City Council,Adults,Independent Sector Placements,Services,17/12/2018,8000131559,1382.14,Revenue,Augusta Care Ltd,Home Care
Peterborough City Council,Adults,Independent Sector Placements,Services,17/12/2018,8000131560,1741.88,Revenue,Augusta Care Ltd,Home Care
Peterborough City Council,Adults,Independent Sector Placements,Services,17/12/2018,8000131561,1798.68,Revenue,Augusta Care Ltd,Home Care
Peterborough City Council,Adults,Independent Sector Placements,Services,17/12/2018,8000131562,831.00,Revenue,Augusta Care Ltd,Home Care
Peterborough City Council,Adults,Independent Sector Placements,Services,17/12/2018,8000131563,1576.20,Revenue,Augusta Care Ltd,Home Care
Peterborough City Council,Adults,Independent Sector Placements,Services,17/12/2018,8000131564,2688.20,Revenue,Augusta Care Ltd,Home Care
Peterborough City Council,Adults,Independent Sector Placements,Services,17/12/2018,8000131565,2399.76,Revenue,Augusta Care Ltd,Home Care
Peterborough City Council,Adults,Independent Sector Placements,Services,17/12/2018,8000131566,3251.80,Revenue,Augusta Care Ltd,Home Care
Peterborough City Council,Adults,Independent Sector Placements,Services,17/12/2018,8000131567,2683.80,Revenue,Augusta Care Ltd,Home Care
Peterborough City Council,Adults,Independent Sector Placements,Services,17/12/2018,8000131568,2173.16,Revenue,Augusta Care Ltd,Home Care
Peterborough City Council,Adults,Independent Sector Placements,Services,17/12/2018,8000131569,2456.60,Revenue,Augusta Care Ltd,Home Care
Peterborough City Council,Adults,Independent Sector Placements,Services,17/12/2018,8000131570,1893.32,Revenue,Augusta Care Ltd,Home Care
Peterborough City Council,Children's & Safeguarding,Commissioning - CSC,Services,17/12/2018,8000131670,748.76,Revenue,Redacted Personal Information,Financial Assistance
Peterborough City Council,Children's & Safeguarding,Commissioning - CSC,Services,17/12/2018,8000131670,748.76,Revenue,Redacted Personal Information,Financial Assistance
Peterborough City Council,Children's & Safeguarding,Commissioning - CSC,Services,17/12/2018,8000131670,603.76,Revenue,Redacted Personal Information,Financial Assistance
Peterborough City Council,Children's & Safeguarding,Commissioning - CSC,Services,17/12/2018,8000131670,576.38,Revenue,Redacted Personal Information,Financial Assistance
Peterborough City Council,Children's & Safeguarding,Commissioning - CSC,Services,17/12/2018,8000131670,866.76,Revenue,Redacted Personal Information,Financial Assistance
Peterborough City Council,Children's & Safeguarding,Commissioning - CSC,Services,17/12/2018,8000131670,766.34,Revenue,Redacted Personal Information,Financial Assistance
Peterborough City Council,Children's & Safeguarding,Commissioning - CSC,Services,17/12/2018,8000131670,1260.00,Revenue,Redacted Personal Information,Financial Assistance
Peterborough City Council,Children's & Safeguarding,Commissioning - CSC,Services,17/12/2018,8000131670,866.92,Revenue,Redacted Personal Information,Financial Assistance
Peterborough City Council,Children's & Safeguarding,Commissioning - CSC,Services,17/12/2018,8000131670,673.84,Revenue,Redacted Personal Information,Financial Assistance
Peterborough City Council,Children's & Safeguarding,Commissioning - CSC,Services,17/12/2018,8000131670,2022.82,Revenue,Redacted Personal Information,Financial Assistance
Peterborough City Council,Children's & Safeguarding,Commissioning - CSC,Services,17/12/2018,8000131670,627.18,Revenue,Redacted Personal Information,Financial Assistance
Peterborough City Council,Children's & Safeguarding,Commissioning - CSC,Services,17/12/2018,8000131670,550.40,Revenue,Redacted Personal Information,Financial Assistance
Peterborough City Council,Adults,Independent Sector Placements,Services,17/12/2018,8000131687,1940.40,Revenue,Sagecare Ltd,Home Care
Peterborough City Council,Adults,Independent Sector Placements,Services,17/12/2018,8000131689,599.76,Revenue,Axiom Housing Association Ltd,Home Care
Peterborough City Council,Adults,Independent Sector Placements,Services,17/12/2018,8000131690,2056.32,Revenue,Axiom Housing Association Ltd,Home Care
Peterborough City Council,Adults,Independent Sector Placements,Services,17/12/2018,8000131693,599.76,Revenue,Axiom Housing Association Ltd,Home Care
Peterborough City Council,Adults,Independent Sector Placements,Services,17/12/2018,8000131694,771.12,Revenue,Axiom Housing Association Ltd,Home Care
Peterborough City Council,Adults,Independent Sector Placements,Services,17/12/2018,8000131696,2056.32,Revenue,Axiom Housing Association Ltd,Home Care
Peterborough City Council,Adults,Independent Sector Placements,Services,17/12/2018,8000131698,685.44,Revenue,Axiom Housing Association Ltd,Home Care
Peterborough City Council,Adults,Independent Sector Placements,Services,17/12/2018,8000131744,975.15,Revenue,Hales Group Ltd,Home Care
Peterborough City Council,Adults,Independent Sector Placements,Services,17/12/2018,8000131745,1533.45,Revenue,Hales Group Ltd,Home Care
Peterborough City Council,Communities,Cultural Services,Services,19/12/2018,30202178,6943.06,Revenue,Vivacity Culture and Leisure,Contributions
Peterborough City Council,Adults,Block Contracts,Third Party Payments,19/12/2018,30203775,17500.00,Revenue,Enabling Independence Service,Third Party Payments - Contract
Peterborough City Council,"Waste, Cleansing and Open Spaces",Waste Management,Services,19/12/2018,30203909,14156.01,Revenue,H W Martin Waste Ltd,Recycling
Peterborough City Council,Adults,Independent Sector Placements,Services,19/12/2018,30204111,2367.36,Revenue,ABBEY COURT PRIORY,Residential Care
Peterborough City Council,Adults,Independent Sector Placements,Services,19/12/2018,30204116,1169.28,Revenue,ABBEY COURT PRIORY,Residential Care
Peterborough City Council,Adults,Independent Sector Placements,Services,19/12/2018,30204272,1459.52,Revenue,PRIME LIFE LTD (Caenarvon House),Residential Care
